Body Name,Body,Service Area Catergorisation,Service Division Catergorisation,Responsible Unit,Expenses Type,Detailed Expenses Type,Expenses Code,Date,Transaction Number,Amount,Capital / Revenue,Supplier Name,Supplier ID
North East Lincolnshire Council,http://statistics.data.gov.uk/id/local-authority/00FC),Resources And Governance,Resources,Backlog Maintenance,Cap Land/Build-Build Enh Wrk,Cap Land/Build-Build Enh Wrk,YA102,28/07/2020,631303,6815.41,CAPITAL,UNIBUILD BUILDING CONTRACTORS LTD,101469
North East Lincolnshire Council,http://statistics.data.gov.uk/id/local-authority/00FC),Resources And Governance,Resources,Backlog Maintenance,Cap Land/Build-Prof Fees,Cap Land/Build-Prof Fees,YA103,13/07/2020,629588,1826.38,CAPITAL,ENGIE SERVICES LTD,133267
North East Lincolnshire Council,http://statistics.data.gov.uk/id/local-authority/00FC),Resources And Governance,Resources,Backlog Maintenance,Cap Land/Build-Build Enh Wrk,Cap Land/Build-Build Enh Wrk,YA102,31/07/2020,632001,1190,CAPITAL,ENGIE SERVICES LTD,133267
North East Lincolnshire Council,http://statistics.data.gov.uk/id/local-authority/00FC),Resources And Governance,Resources,Backlog Maintenance,Cap Land/Build-Build Enh Wrk,Cap Land/Build-Build Enh Wrk,YA102,07/07/2020,628381,770,CAPITAL,ETON-LINCS LIMITED,101510
North East Lincolnshire Council,http://statistics.data.gov.uk/id/local-authority/00FC),Resources And Governance,Resources,Backlog Maintenance,Cap Land/Build-Build Enh Wrk,Cap Land/Build-Build Enh Wrk,YA102,31/07/2020,631974,1960,CAPITAL,ETON-LINCS LIMITED,101510
North East Lincolnshire Council,http://statistics.data.gov.uk/id/local-authority/00FC),Resources And Governance,Resources,Backlog Maintenance,Cap Land/Build-Prof Fees,Cap Land/Build-Prof Fees,YA103,08/07/2020,628132,890.14,CAPITAL,ENGIE SERVICES LTD,133267
North East Lincolnshire Council,http://statistics.data.gov.uk/id/local-authority/00FC),Resources And Governance,Resources,Backlog Maintenance,Cap Land/Build-Prof Fees,Cap Land/Build-Prof Fees,YA103,08/07/2020,628129,890.14,CAPITAL,ENGIE SERVICES LTD,133267
North East Lincolnshire Council,http://statistics.data.gov.uk/id/local-authority/00FC),Resources And Governance,Resources,Backlog Maintenance,Cap Land/Build-Prof Fees,Cap Land/Build-Prof Fees,YA103,08/07/2020,628130,440.94,CAPITAL,ENGIE SERVICES LTD,133267
North East Lincolnshire Council,http://statistics.data.gov.uk/id/local-authority/00FC),Resources And Governance,Resources,Backlog Maintenance,Cap Land/Build-Prof Fees,Cap Land/Build-Prof Fees,YA103,08/07/2020,628185,8815.94,CAPITAL,ENGIE SERVICES LTD,133267
North East Lincolnshire Council,http://statistics.data.gov.uk/id/local-authority/00FC),Resources And Governance,Resources,Backlog Maintenance,Cap Land/Build-Prof Fees,Cap Land/Build-Prof Fees,YA103,08/07/2020,628131,440.94,CAPITAL,ENGIE SERVICES LTD,133267
North East Lincolnshire Council,http://statistics.data.gov.uk/id/local-authority/00FC),Resources And Governance,Resources,Backlog Maintenance,Cap Land/Build-Prof Fees,Cap Land/Build-Prof Fees,YA103,16/07/2020,629987,635.25,CAPITAL,ENGIE SERVICES LTD,133267
North East Lincolnshire Council,http://statistics.data.gov.uk/id/local-authority/00FC),Resources And Governance,Resources,Backlog Maintenance,Cap Land/Build-Build Enh Wrk,Cap Land/Build-Build Enh Wrk,YA102,31/07/2020,632003,385,CAPITAL,ENGIE SERVICES LTD,133267
North East Lincolnshire Council,http://statistics.data.gov.uk/id/local-authority/00FC),Resources And Governance,Resources,Backlog Maintenance,Cap Land/Build-Build Enh Wrk,Cap Land/Build-Build Enh Wrk,YA102,20/07/2020,630421,963.23,CAPITAL,HAITHS HEATING LTD,101342
North East Lincolnshire Council,http://statistics.data.gov.uk/id/local-authority/00FC),Resources And Governance,Resources,Backlog Maintenance,Cap Land/Build-Build Enh Wrk,Cap Land/Build-Build Enh Wrk,YA102,31/07/2020,632004,6796.64,CAPITAL,ENGIE SERVICES LTD,133267
North East Lincolnshire Council,http://statistics.data.gov.uk/id/local-authority/00FC),Resources And Governance,Resources,Backlog Maintenance,Cap Land/Build-Prof Fees,Cap Land/Build-Prof Fees,YA103,31/07/2020,632004,1015.59,CAPITAL,ENGIE SERVICES LTD,133267
North East Lincolnshire Council,http://statistics.data.gov.uk/id/local-authority/00FC),Resources And Governance,Resources,Backlog Maintenance,Cap Land/Build-Build Enh Wrk,Cap Land/Build-Build Enh Wrk,YA102,16/07/2020,629407,43937.2,CAPITAL,TOPCON CONSTRUCTION LTD,108462
North East Lincolnshire Council,http://statistics.data.gov.uk/id/local-authority/00FC),Resources And Governance,Resources,Backlog Maintenance,Cap Land/Build-Prof Fees,Cap Land/Build-Prof Fees,YA103,06/07/2020,628258,7000,CAPITAL,ENGIE SERVICES LTD,133267
North East Lincolnshire Council,http://statistics.data.gov.uk/id/local-authority/00FC),Resources And Governance,Resources,Backlog Maintenance,Cap Land/Build-Prof Fees,Cap Land/Build-Prof Fees,YA103,03/07/2020,628161,2000,CAPITAL,ENGIE SERVICES LTD,133267
North East Lincolnshire Council,http://statistics.data.gov.uk/id/local-authority/00FC),Resources And Governance,Resources,Backlog Maintenance,Cap Land/Build-Prof Fees,Cap Land/Build-Prof Fees,YA103,03/07/2020,628153,80185,CAPITAL,ENGIE SERVICES LTD,133267
North East Lincolnshire Council,http://statistics.data.gov.uk/id/local-authority/00FC),Resources And Governance,Resources,Heritage Assets At Risk,Cap Land/Build-Prof Fees,Cap Land/Build-Prof Fees,YA103,09/07/2020,629033,953.58,CAPITAL,ENGIE SERVICES LTD,133267
North East Lincolnshire Council,http://statistics.data.gov.uk/id/local-authority/00FC),Resources And Governance,Resources,Heritage Assets At Risk,Cap Land/Build-Prof Fees,Cap Land/Build-Prof Fees,YA103,16/07/2020,629481,2000,CAPITAL,ENGIE SERVICES LTD,133267
North East Lincolnshire Council,http://statistics.data.gov.uk/id/local-authority/00FC),Resources And Governance,Shared Services,Ict Refresh,Cap Land/Build-Build Enh Wrk,Cap Land/Build-Build Enh Wrk,YA102,06/07/2020,628239,1510,CAPITAL,DAISY COMMUNICATIONS LTD,146583
North East Lincolnshire Council,http://statistics.data.gov.uk/id/local-authority/00FC),Resources And Governance,Shared Services,Ict Refresh,Cap Land/Build-Build Enh Wrk,Cap Land/Build-Build Enh Wrk,YA102,06/07/2020,628239,1125,CAPITAL,DAISY COMMUNICATIONS LTD,146583
North East Lincolnshire Council,http://statistics.data.gov.uk/id/local-authority/00FC),Resources And Governance,Shared Services,Ict Refresh,Cap Land/Build-Build Enh Wrk,Cap Land/Build-Build Enh Wrk,YA102,07/07/2020,628295,27586.4,CAPITAL,XMA LIMITED,100699
North East Lincolnshire Council,http://statistics.data.gov.uk/id/local-authority/00FC),Resources And Governance,Shared Services,Ict Refresh,Cap Land/Build-Build Enh Wrk,Cap Land/Build-Build Enh Wrk,YA102,23/07/2020,629993,4800,CAPITAL,XMA LIMITED,100699
North East Lincolnshire Council,http://statistics.data.gov.uk/id/local-authority/00FC),Resources And Governance,Shared Services,Ict Refresh,Cap Intangible Assets,Cap Intangible Assets,YH101,31/07/2020,632033,22148.11,CAPITAL,CAPITA BUSINESS SERVICES LTD,102314
North East Lincolnshire Council,http://statistics.data.gov.uk/id/local-authority/00FC),Environment Economy And Growth,Environment,Fleet Replacement Programme,Cap Veh Plt Eqp-Purchase,Cap Veh Plt Eqp-Purchase,YB101,20/07/2020,630607,4106.04,CAPITAL,ROYAL MAIL GROUP PLC,101082
North East Lincolnshire Council,http://statistics.data.gov.uk/id/local-authority/00FC),Environment Economy And Growth,Environment,Enhancement Bereavement Serv,Cap Land/Build-Build Enh Wrk,Cap Land/Build-Build Enh Wrk,YA102,17/07/2020,630002,600,CAPITAL,LUCION ENVIRONMENTAL,142063
North East Lincolnshire Council,http://statistics.data.gov.uk/id/local-authority/00FC),Environment Economy And Growth,Environment,Enhancement Bereavement Serv,Cap Land/Build-Build Enh Wrk,Cap Land/Build-Build Enh Wrk,YA102,03/07/2020,627431,2000,CAPITAL,ENGIE SERVICES LTD,133267
North East Lincolnshire Council,http://statistics.data.gov.uk/id/local-authority/00FC),Environment Economy And Growth,Environment,Enhancement Bereavement Serv,Cap Land/Build-Build Enh Wrk,Cap Land/Build-Build Enh Wrk,YA102,21/07/2020,630044,2372.5,CAPITAL,TLP GROUND INVESTIGATIONS,126700
North East Lincolnshire Council,http://statistics.data.gov.uk/id/local-authority/00FC),Environment Economy And Growth,Environment,Enhancement Bereavement Serv,Cap Land/Build-Build Enh Wrk,Cap Land/Build-Build Enh Wrk,YA102,17/07/2020,628419,460,CAPITAL,LUCION ENVIRONMENTAL,142063
North East Lincolnshire Council,http://statistics.data.gov.uk/id/local-authority/00FC),Environment Economy And Growth,Environment,Enhancement Bereavement Serv,Cap Land/Build-Build Enh Wrk,Cap Land/Build-Build Enh Wrk,YA102,16/07/2020,629482,357,CAPITAL,CADENT GAS LIMITED,138392
North East Lincolnshire Council,http://statistics.data.gov.uk/id/local-authority/00FC),Environment Economy And Growth,Environment,Enhancement Bereavement Serv,Cap Land/Build-Build Enh Wrk,Cap Land/Build-Build Enh Wrk,YA102,03/07/2020,627432,10000,CAPITAL,ENGIE SERVICES LTD,133267
North East Lincolnshire Council,http://statistics.data.gov.uk/id/local-authority/00FC),Environment Economy And Growth,Economy & Growth,Local Transport Plan Schemes,Cap Infrastr-Build Enh Wrk,Cap Infrastr-Build Enh Wrk,YC102,20/07/2020,630441,2147.65,CAPITAL,ENGIE SERVICES LTD,133267
North East Lincolnshire Council,http://statistics.data.gov.uk/id/local-authority/00FC),Environment Economy And Growth,Economy & Growth,Local Transport Plan Schemes,Cap Infrastr-Build Enh Wrk,Cap Infrastr-Build Enh Wrk,YC102,01/07/2020,627356,795,CAPITAL,CLS CIVIL ENGINEERING LTD,146425
North East Lincolnshire Council,http://statistics.data.gov.uk/id/local-authority/00FC),Environment Economy And Growth,Economy & Growth,Local Transport Plan Schemes,Cap Infrastr-Build Enh Wrk,Cap Infrastr-Build Enh Wrk,YC102,08/07/2020,628328,2100,CAPITAL,CLS CIVIL ENGINEERING LTD,146425
North East Lincolnshire Council,http://statistics.data.gov.uk/id/local-authority/00FC),Environment Economy And Growth,Economy & Growth,Local Transport Plan Schemes,Cap Infrastr-Build Enh Wrk,Cap Infrastr-Build Enh Wrk,YC102,03/07/2020,627979,121501.62,CAPITAL,ONEWAY TM LIMITED,128602
North East Lincolnshire Council,http://statistics.data.gov.uk/id/local-authority/00FC),Environment Economy And Growth,Economy & Growth,Local Transport Plan Schemes,Cap Infrastr-Build Enh Wrk,Cap Infrastr-Build Enh Wrk,YC102,21/07/2020,630096,375,CAPITAL,SEVENAIRS CONSULTING LTD,141944
North East Lincolnshire Council,http://statistics.data.gov.uk/id/local-authority/00FC),Environment Economy And Growth,Economy & Growth,Local Transport Plan Schemes,Cap Infrastr-Build Enh Wrk,Cap Infrastr-Build Enh Wrk,YC102,07/07/2020,628383,908.08,CAPITAL,J MCCANN & CO LTD,100841
North East Lincolnshire Council,http://statistics.data.gov.uk/id/local-authority/00FC),Environment Economy And Growth,Economy & Growth,Local Transport Plan Schemes,Cap Infrastr-Build Enh Wrk,Cap Infrastr-Build Enh Wrk,YC102,20/07/2020,630449,30357,CAPITAL,ENGIE SERVICES LTD,133267
North East Lincolnshire Council,http://statistics.data.gov.uk/id/local-authority/00FC),Environment Economy And Growth,Economy & Growth,Local Transport Plan Schemes,Cap Infrastr-Build Enh Wrk,Cap Infrastr-Build Enh Wrk,YC102,29/07/2020,622562,1000,CAPITAL,RIGGOTT & CO LTD,104915
North East Lincolnshire Council,http://statistics.data.gov.uk/id/local-authority/00FC),Environment Economy And Growth,Economy & Growth,Local Transport Plan Schemes,Cap Infrastr-Build Enh Wrk,Cap Infrastr-Build Enh Wrk,YC102,31/07/2020,631975,2414.78,CAPITAL,EC SURFACING LTD,125951
North East Lincolnshire Council,http://statistics.data.gov.uk/id/local-authority/00FC),Environment Economy And Growth,Economy & Growth,Local Transport Plan Schemes,Cap Infrastr-Build Enh Wrk,Cap Infrastr-Build Enh Wrk,YC102,13/07/2020,628798,825,CAPITAL,JAPANESE KNOTWEED SOLUTIONS LTD,127717
North East Lincolnshire Council,http://statistics.data.gov.uk/id/local-authority/00FC),Environment Economy And Growth,Economy & Growth,Local Transport Plan Schemes,Cap Infrastr-Build Enh Wrk,Cap Infrastr-Build Enh Wrk,YC102,20/07/2020,630400,3322.35,CAPITAL,PBS CONSTRUCTION (NORTH EAST) LTD,127459
North East Lincolnshire Council,http://statistics.data.gov.uk/id/local-authority/00FC),Environment Economy And Growth,Economy & Growth,Local Transport Plan Schemes,Cap Infrastr-Build Enh Wrk,Cap Infrastr-Build Enh Wrk,YC102,09/07/2020,629085,3775,CAPITAL,MASON CLARK ASSOCIATES,100793
North East Lincolnshire Council,http://statistics.data.gov.uk/id/local-authority/00FC),Environment Economy And Growth,Economy & Growth,Local Transport Plan Schemes,Cap Infrastr-Build Enh Wrk,Cap Infrastr-Build Enh Wrk,YC102,22/07/2020,630452,518,CAPITAL,LUCION ENVIRONMENTAL,142063
North East Lincolnshire Council,http://statistics.data.gov.uk/id/local-authority/00FC),Environment Economy And Growth,Economy & Growth,Local Transport Plan Schemes,Cap Infrastr-Prof Fees,Cap Infrastr-Prof Fees,YC103,20/07/2020,630438,2074.99,CAPITAL,ENGIE SERVICES LTD,133267
North East Lincolnshire Council,http://statistics.data.gov.uk/id/local-authority/00FC),Environment Economy And Growth,Economy & Growth,Local Transport Plan Schemes,Cap Infrastr-Prof Fees,Cap Infrastr-Prof Fees,YC103,20/07/2020,630429,3450,CAPITAL,BASEMAP LTD,143677
North East Lincolnshire Council,http://statistics.data.gov.uk/id/local-authority/00FC),Environment Economy And Growth,Economy & Growth,Local Transport Plan Schemes,Cap Land/Build-Build Enh Wrk,Cap Land/Build-Build Enh Wrk,YA102,30/07/2020,631826,403.65,CAPITAL,ENGIE SERVICES LTD,133267
North East Lincolnshire Council,http://statistics.data.gov.uk/id/local-authority/00FC),Environment Economy And Growth,Economy & Growth,Local Transport Plan Schemes,Cap Infrastr-Build Enh Wrk,Cap Infrastr-Build Enh Wrk,YC102,17/07/2020,630404,6520,CAPITAL,ONEWAY TM LIMITED,128602
North East Lincolnshire Council,http://statistics.data.gov.uk/id/local-authority/00FC),Environment Economy And Growth,Economy & Growth,Local Transport Plan Schemes,Cap Infrastr-Build Enh Wrk,Cap Infrastr-Build Enh Wrk,YC102,17/07/2020,630398,98248.77,CAPITAL,SPECIALIST SURFACING LIMITED,100579
North East Lincolnshire Council,http://statistics.data.gov.uk/id/local-authority/00FC),Environment Economy And Growth,Economy & Growth,Local Transport Plan Schemes,Cap Infrastr-Build Enh Wrk,Cap Infrastr-Build Enh Wrk,YC102,21/07/2020,630137,8694,CAPITAL,ONEWAY TM LIMITED,128602
North East Lincolnshire Council,http://statistics.data.gov.uk/id/local-authority/00FC),Environment Economy And Growth,Economy & Growth,Local Transport Plan Schemes,Cap Infrastr-Build Enh Wrk,Cap Infrastr-Build Enh Wrk,YC102,17/07/2020,630401,7489.67,CAPITAL,EC SURFACING LTD,125951
North East Lincolnshire Council,http://statistics.data.gov.uk/id/local-authority/00FC),Environment Economy And Growth,Economy & Growth,Local Transport Plan Schemes,Cap Infrastr-Build Enh Wrk,Cap Infrastr-Build Enh Wrk,YC102,22/07/2020,631034,1360,CAPITAL,ONEWAY TM LIMITED,128602
North East Lincolnshire Council,http://statistics.data.gov.uk/id/local-authority/00FC),Environment Economy And Growth,Economy & Growth,Local Transport Plan Schemes,Cap Infrastr-Build Enh Wrk,Cap Infrastr-Build Enh Wrk,YC102,17/07/2020,630402,3217.8,CAPITAL,EC SURFACING LTD,125951
North East Lincolnshire Council,http://statistics.data.gov.uk/id/local-authority/00FC),Environment Economy And Growth,Economy & Growth,Local Transport Plan Schemes,Cap Infrastr-Build Enh Wrk,Cap Infrastr-Build Enh Wrk,YC102,17/07/2020,630395,8892.72,CAPITAL,EC SURFACING LTD,125951
North East Lincolnshire Council,http://statistics.data.gov.uk/id/local-authority/00FC),Environment Economy And Growth,Economy & Growth,Clee Hlf Townscape Heritage,Cap Land/Build-Prof Fees,Cap Land/Build-Prof Fees,YA103,03/07/2020,627846,1007.95,CAPITAL,ENGIE SERVICES LTD,133267
North East Lincolnshire Council,http://statistics.data.gov.uk/id/local-authority/00FC),Environment Economy And Growth,Economy & Growth,Clee Hlf Townscape Heritage,Cap Infrastr-Build Enh Wrk,Cap Infrastr-Build Enh Wrk,YC102,09/07/2020,629069,82057.92,CAPITAL,PBS CONSTRUCTION (NORTH EAST) LTD,127459
North East Lincolnshire Council,http://statistics.data.gov.uk/id/local-authority/00FC),Environment Economy And Growth,Economy & Growth,Clee Hlf Townscape Heritage,Cap Infrastr-Prof Fees,Cap Infrastr-Prof Fees,YC103,09/07/2020,628749,1500,CAPITAL,ENGIE SERVICES LTD,133267
North East Lincolnshire Council,http://statistics.data.gov.uk/id/local-authority/00FC),Environment Economy And Growth,Economy & Growth,Clee Hlf Townscape Heritage,Cap Infrastr-Prof Fees,Cap Infrastr-Prof Fees,YC103,23/07/2020,630450,1500,CAPITAL,ENGIE SERVICES LTD,133267
North East Lincolnshire Council,http://statistics.data.gov.uk/id/local-authority/00FC),Environment Economy And Growth,Economy & Growth,Gllep Junction Improvement,Cap Infrastr-Build Enh Wrk,Cap Infrastr-Build Enh Wrk,YC102,16/07/2020,629390,2364.39,CAPITAL,SOUTHAM SERVICES (LINCS) LTD,140951
North East Lincolnshire Council,http://statistics.data.gov.uk/id/local-authority/00FC),Environment Economy And Growth,Economy & Growth,Gllep Junction Improvement,Cap Infrastr-Build Enh Wrk,Cap Infrastr-Build Enh Wrk,YC102,17/07/2020,630403,5540,CAPITAL,SOUTHAM SERVICES (LINCS) LTD,140951
North East Lincolnshire Council,http://statistics.data.gov.uk/id/local-authority/00FC),Environment Economy And Growth,Economy & Growth,Gllep Junction Improvement,Cap Infrastr-Build Enh Wrk,Cap Infrastr-Build Enh Wrk,YC102,20/07/2020,630539,34734.86,CAPITAL,CADENT GAS LIMITED,138392
North East Lincolnshire Council,http://statistics.data.gov.uk/id/local-authority/00FC),Environment Economy And Growth,Economy & Growth,Gllep Junction Improvement,Cap Infrastr-Build Enh Wrk,Cap Infrastr-Build Enh Wrk,YC102,31/07/2020,631976,7800,CAPITAL,SOUTHAM SERVICES (LINCS) LTD,140951
North East Lincolnshire Council,http://statistics.data.gov.uk/id/local-authority/00FC),Environment Economy And Growth,Economy & Growth,Gllep Junction Improvement,Cap Infrastr-Build Enh Wrk,Cap Infrastr-Build Enh Wrk,YC102,24/07/2020,630436,12000,CAPITAL,ENGIE SERVICES LTD,133267
North East Lincolnshire Council,http://statistics.data.gov.uk/id/local-authority/00FC),Environment Economy And Growth,Economy & Growth,Gllep Junction Improvement,Cap Infrastr-Build Enh Wrk,Cap Infrastr-Build Enh Wrk,YC102,24/07/2020,630445,12000,CAPITAL,ENGIE SERVICES LTD,133267
North East Lincolnshire Council,http://statistics.data.gov.uk/id/local-authority/00FC),Environment Economy And Growth,Economy & Growth,Gllep Junction Improvement,Cap Infrastr-Build Enh Wrk,Cap Infrastr-Build Enh Wrk,YC102,31/07/2020,631990,6000,CAPITAL,ENGIE SERVICES LTD,133267
North East Lincolnshire Council,http://statistics.data.gov.uk/id/local-authority/00FC),Environment Economy And Growth,Economy & Growth,Gllep Junction Improvement,Cap Infrastr-Build Enh Wrk,Cap Infrastr-Build Enh Wrk,YC102,21/07/2020,630095,189582.16,CAPITAL,JACKSON CIVILS LTD,136631
North East Lincolnshire Council,http://statistics.data.gov.uk/id/local-authority/00FC),Environment Economy And Growth,Economy & Growth,Gllep Junction Improvement,Cap Infrastr-Build Enh Wrk,Cap Infrastr-Build Enh Wrk,YC102,22/07/2020,629391,8330,CAPITAL,J MCCANN & CO LTD,100841
North East Lincolnshire Council,http://statistics.data.gov.uk/id/local-authority/00FC),Environment Economy And Growth,Economy & Growth,Shiip Scheme,Cap Infrastr-Build Enh Wrk,Cap Infrastr-Build Enh Wrk,YC102,01/07/2020,627753,37230.61,CAPITAL,INTEGRATED UTILITY SERVICES,104162
North East Lincolnshire Council,http://statistics.data.gov.uk/id/local-authority/00FC),Environment Economy And Growth,Economy & Growth,Shiip Scheme,Cap Infrastr-Build Enh Wrk,Cap Infrastr-Build Enh Wrk,YC102,03/07/2020,628207,115746.36,CAPITAL,C R REYNOLDS (CONSTRUCTION) LTD,103021
North East Lincolnshire Council,http://statistics.data.gov.uk/id/local-authority/00FC),Environment Economy And Growth,Economy & Growth,Shiip Scheme,Cap Infrastr-Build Enh Wrk,Cap Infrastr-Build Enh Wrk,YC102,23/07/2020,631290,267636.54,CAPITAL,C R REYNOLDS (CONSTRUCTION) LTD,103021
North East Lincolnshire Council,http://statistics.data.gov.uk/id/local-authority/00FC),Environment Economy And Growth,Economy & Growth,Shiip Scheme,Cap Infrastr-Prof Fees,Cap Infrastr-Prof Fees,YC103,07/07/2020,624013,4247.39,CAPITAL,ENGIE SERVICES LTD,133267
North East Lincolnshire Council,http://statistics.data.gov.uk/id/local-authority/00FC),Environment Economy And Growth,Economy & Growth,Shiip Scheme,Cap Infrastr-Prof Fees,Cap Infrastr-Prof Fees,YC103,23/07/2020,628745,4247.39,CAPITAL,ENGIE SERVICES LTD,133267
North East Lincolnshire Council,http://statistics.data.gov.uk/id/local-authority/00FC),Environment Economy And Growth,Economy & Growth,Shiip Scheme,Cap Infrastr-Prof Fees,Cap Infrastr-Prof Fees,YC103,23/07/2020,630442,4247.39,CAPITAL,ENGIE SERVICES LTD,133267
North East Lincolnshire Council,http://statistics.data.gov.uk/id/local-authority/00FC),Environment Economy And Growth,Economy & Growth,Shiip Scheme,Cap Infrastr-Prof Fees,Cap Infrastr-Prof Fees,YC103,30/07/2020,631857,4247.39,CAPITAL,ENGIE SERVICES LTD,133267
North East Lincolnshire Council,http://statistics.data.gov.uk/id/local-authority/00FC),Environment Economy And Growth,Economy & Growth,Shiip Scheme,Cap Infrastr-Build Enh Wrk,Cap Infrastr-Build Enh Wrk,YC102,21/07/2020,630635,143304.97,CAPITAL,COLAS SIAC  LTD,100605
North East Lincolnshire Council,http://statistics.data.gov.uk/id/local-authority/00FC),Environment Economy And Growth,Economy & Growth,Shiip Scheme,Cap Infrastr-Build Enh Wrk,Cap Infrastr-Build Enh Wrk,YC102,27/07/2020,631461,907.5,CAPITAL,CIVIL ENGINEERING SPECIALIST,104444
North East Lincolnshire Council,http://statistics.data.gov.uk/id/local-authority/00FC),Environment Economy And Growth,Economy & Growth,Shiip Scheme,Cap Infrastr-Build Enh Wrk,Cap Infrastr-Build Enh Wrk,YC102,22/07/2020,630492,582.01,CAPITAL,CADENT GAS LIMITED,138392
North East Lincolnshire Council,http://statistics.data.gov.uk/id/local-authority/00FC),Environment Economy And Growth,Economy & Growth,Shiip Scheme,Cap Infrastr-Prof Fees,Cap Infrastr-Prof Fees,YC103,08/07/2020,628746,5500,CAPITAL,ENGIE SERVICES LTD,133267
North East Lincolnshire Council,http://statistics.data.gov.uk/id/local-authority/00FC),Environment Economy And Growth,Economy & Growth,Shiip Scheme,Cap Infrastr-Prof Fees,Cap Infrastr-Prof Fees,YC103,20/07/2020,630443,5500,CAPITAL,ENGIE SERVICES LTD,133267
North East Lincolnshire Council,http://statistics.data.gov.uk/id/local-authority/00FC),Environment Economy And Growth,Economy & Growth,Shiip Scheme,Cap Infrastr-Prof Fees,Cap Infrastr-Prof Fees,YC103,30/07/2020,631858,3815,CAPITAL,ENGIE SERVICES LTD,133267
North East Lincolnshire Council,http://statistics.data.gov.uk/id/local-authority/00FC),Environment Economy And Growth,Economy & Growth,Unlocking The Potential,Cap Infrastr-Build Enh Wrk,Cap Infrastr-Build Enh Wrk,YC102,23/07/2020,631279,3500,CAPITAL,MICK BURNS,105241
North East Lincolnshire Council,http://statistics.data.gov.uk/id/local-authority/00FC),Environment Economy And Growth,Economy & Growth,Unlocking The Potential,Cap Infrastr-Build Enh Wrk,Cap Infrastr-Build Enh Wrk,YC102,28/07/2020,628470,17060,CAPITAL,ONEWAY TM LIMITED,128602
North East Lincolnshire Council,http://statistics.data.gov.uk/id/local-authority/00FC),Environment Economy And Growth,Economy & Growth,Unlocking The Potential,Cap Infrastr-Build Enh Wrk,Cap Infrastr-Build Enh Wrk,YC102,20/07/2020,630458,6000,CAPITAL,ENGIE SERVICES LTD,133267
North East Lincolnshire Council,http://statistics.data.gov.uk/id/local-authority/00FC),Environment Economy And Growth,Economy & Growth,Unlocking The Potential,Cap Infrastr-Build Enh Wrk,Cap Infrastr-Build Enh Wrk,YC102,24/07/2020,631381,5500,CAPITAL,ENGIE SERVICES LTD,133267
North East Lincolnshire Council,http://statistics.data.gov.uk/id/local-authority/00FC),Environment Economy And Growth,Economy & Growth,Unlocking The Potential,Cap Infrastr-Build Enh Wrk,Cap Infrastr-Build Enh Wrk,YC102,31/07/2020,631991,6000,CAPITAL,ENGIE SERVICES LTD,133267
North East Lincolnshire Council,http://statistics.data.gov.uk/id/local-authority/00FC),Environment Economy And Growth,Economy & Growth,Unlocking The Potential,Cap Infrastr-Prof Fees,Cap Infrastr-Prof Fees,YC103,15/07/2020,629615,2250,CAPITAL,OUR BIG PICTURE LTD,134087
North East Lincolnshire Council,http://statistics.data.gov.uk/id/local-authority/00FC),Environment Economy And Growth,Economy & Growth,Cleethorpes Public Art,Cap Land/Build-Build Enh Wrk,Cap Land/Build-Build Enh Wrk,YA102,31/07/2020,632002,1297.5,CAPITAL,ENGIE SERVICES LTD,133267
North East Lincolnshire Council,http://statistics.data.gov.uk/id/local-authority/00FC),Environment Economy And Growth,Economy & Growth,Cleethorpes Public Art,Cap Infrastr-Build Enh Wrk,Cap Infrastr-Build Enh Wrk,YC102,21/07/2020,630308,760,CAPITAL,ALAN WOOD PARTNERSHIP LTD,101760
North East Lincolnshire Council,http://statistics.data.gov.uk/id/local-authority/00FC),Environment Economy And Growth,Economy & Growth,Cleethorpes Public Art,Cap Infrastr-Prof Fees,Cap Infrastr-Prof Fees,YC103,03/07/2020,628074,4770,CAPITAL,SIMON MACRO & MARCUS BECK,144002
North East Lincolnshire Council,http://statistics.data.gov.uk/id/local-authority/00FC),Environment Economy And Growth,Economy & Growth,Cleethorpes Public Art,Cap Infrastr-Prof Fees,Cap Infrastr-Prof Fees,YC103,01/07/2020,627784,23000,CAPITAL,SIMON MACRO & MARCUS BECK,144002
North East Lincolnshire Council,http://statistics.data.gov.uk/id/local-authority/00FC),Environment Economy And Growth,Economy & Growth,Cleethorpes Public Art,Cap Infrastr-Prof Fees,Cap Infrastr-Prof Fees,YC103,20/07/2020,630124,2053.5,CAPITAL,LOTHAR GOETZ,146597
North East Lincolnshire Council,http://statistics.data.gov.uk/id/local-authority/00FC),Environment Economy And Growth,Economy & Growth,A18 Laceby To Ludborough,Cap Land/Build-Build Enh Wrk,Cap Land/Build-Build Enh Wrk,YA102,17/07/2020,630362,393641.56,CAPITAL,C R REYNOLDS (CONSTRUCTION) LTD,103021
North East Lincolnshire Council,http://statistics.data.gov.uk/id/local-authority/00FC),Environment Economy And Growth,Economy & Growth,A18 Laceby To Ludborough,Cap Land/Build-Build Enh Wrk,Cap Land/Build-Build Enh Wrk,YA102,17/07/2020,630360,237871.61,CAPITAL,C R REYNOLDS (CONSTRUCTION) LTD,103021
North East Lincolnshire Council,http://statistics.data.gov.uk/id/local-authority/00FC),Environment Economy And Growth,Economy & Growth,A18 Laceby To Ludborough,Cap Land/Build-Build Enh Wrk,Cap Land/Build-Build Enh Wrk,YA102,17/07/2020,630361,299460.8,CAPITAL,C R REYNOLDS (CONSTRUCTION) LTD,103021
North East Lincolnshire Council,http://statistics.data.gov.uk/id/local-authority/00FC),Environment Economy And Growth,Economy & Growth,A18 Laceby To Ludborough,Cap Land/Build-Build Enh Wrk,Cap Land/Build-Build Enh Wrk,YA102,23/07/2020,631289,174841.33,CAPITAL,C R REYNOLDS (CONSTRUCTION) LTD,103021
North East Lincolnshire Council,http://statistics.data.gov.uk/id/local-authority/00FC),Environment Economy And Growth,Economy & Growth,Willingham / Peaks Drainage,Cap Land/Build-Prof Fees,Cap Land/Build-Prof Fees,YA103,16/07/2020,629397,39934.99,CAPITAL,PBS CONSTRUCTION (NORTH EAST) LTD,127459
North East Lincolnshire Council,http://statistics.data.gov.uk/id/local-authority/00FC),Environment Economy And Growth,Economy & Growth,Smart Energy For Business,Cap Land/Build-Prof Fees,Cap Land/Build-Prof Fees,YA103,09/07/2020,629068,2413.43,CAPITAL,ENGIE SERVICES LTD,133267
North East Lincolnshire Council,http://statistics.data.gov.uk/id/local-authority/00FC),Environment Economy And Growth,Economy & Growth,Smart Energy For Business,Cap Land/Build-Build Enh Wrk,Cap Land/Build-Build Enh Wrk,YA102,03/07/2020,628187,64552.97,CAPITAL,NERG LTD,144866
North East Lincolnshire Council,http://statistics.data.gov.uk/id/local-authority/00FC),Environment Economy And Growth,Economy & Growth,Smart Energy For Business,Cap Land/Build-Build Enh Wrk,Cap Land/Build-Build Enh Wrk,YA102,29/07/2020,631738,77770.87,CAPITAL,WIL-LEC GROUP LIMITED,121711
North East Lincolnshire Council,http://statistics.data.gov.uk/id/local-authority/00FC),Environment Economy And Growth,Economy & Growth,Smart Energy For Business,Cap Land/Build-Build Enh Wrk,Cap Land/Build-Build Enh Wrk,YA102,17/07/2020,630354,15798.4,CAPITAL,HAMES CHOCOLATES LTD,146705
North East Lincolnshire Council,http://statistics.data.gov.uk/id/local-authority/00FC),Environment Economy And Growth,Economy & Growth,Smart Energy For Business,Cap Land/Build-Build Enh Wrk,Cap Land/Build-Build Enh Wrk,YA102,21/07/2020,630638,11658.44,CAPITAL,PENNELL AND SONS LTD,145978
North East Lincolnshire Council,http://statistics.data.gov.uk/id/local-authority/00FC),Environment Economy And Growth,Economy & Growth,Smart Energy For Business,Cap Land/Build-Build Enh Wrk,Cap Land/Build-Build Enh Wrk,YA102,21/07/2020,630631,430.25,CAPITAL,COOL ENERGY HOLDING LTD,141436
North East Lincolnshire Council,http://statistics.data.gov.uk/id/local-authority/00FC),Environment Economy And Growth,Economy & Growth,Smart Energy For Business,Cap Land/Build-Build Enh Wrk,Cap Land/Build-Build Enh Wrk,YA102,31/07/2020,632007,500,CAPITAL,JANICE ROACH,147064
North East Lincolnshire Council,http://statistics.data.gov.uk/id/local-authority/00FC),Environment Economy And Growth,Economy & Growth,A180 Sth Humb Bank Major Maint,Cap Land/Build-Build Enh Wrk,Cap Land/Build-Build Enh Wrk,YA102,16/07/2020,629398,87411.92,CAPITAL,C R REYNOLDS (CONSTRUCTION) LTD,103021
North East Lincolnshire Council,http://statistics.data.gov.uk/id/local-authority/00FC),Environment Economy And Growth,Economy & Growth,A180 Sth Humb Bank Major Maint,Cap Infrastr-Build Enh Wrk,Cap Infrastr-Build Enh Wrk,YC102,24/07/2020,630447,15000,CAPITAL,ENGIE SERVICES LTD,133267
North East Lincolnshire Council,http://statistics.data.gov.uk/id/local-authority/00FC),Environment Economy And Growth,Economy & Growth,A180 Sth Humb Bank Major Maint,Cap Infrastr-Build Enh Wrk,Cap Infrastr-Build Enh Wrk,YC102,24/07/2020,624017,15000,CAPITAL,ENGIE SERVICES LTD,133267
North East Lincolnshire Council,http://statistics.data.gov.uk/id/local-authority/00FC),Environment Economy And Growth,Economy & Growth,A180 Sth Humb Bank Major Maint,Cap Infrastr-Build Enh Wrk,Cap Infrastr-Build Enh Wrk,YC102,24/07/2020,630463,15000,CAPITAL,ENGIE SERVICES LTD,133267
North East Lincolnshire Council,http://statistics.data.gov.uk/id/local-authority/00FC),Environment Economy And Growth,Economy & Growth,A180 Sth Humb Bank Major Maint,Cap Infrastr-Build Enh Wrk,Cap Infrastr-Build Enh Wrk,YC102,31/07/2020,631989,15000,CAPITAL,ENGIE SERVICES LTD,133267
North East Lincolnshire Council,http://statistics.data.gov.uk/id/local-authority/00FC),Environment Economy And Growth,Economy & Growth,Town Deal Investment,Cap Land/Build-Prof Fees,Cap Land/Build-Prof Fees,YA103,08/07/2020,619929,3905,CAPITAL,MASON CLARK ASSOCIATES,100793
North East Lincolnshire Council,http://statistics.data.gov.uk/id/local-authority/00FC),Environment Economy And Growth,Economy & Growth,Town Deal Investment,Cap Land/Build-Prof Fees,Cap Land/Build-Prof Fees,YA103,02/07/2020,627677,800,CAPITAL,ENGIE SERVICES LTD,133267
North East Lincolnshire Council,http://statistics.data.gov.uk/id/local-authority/00FC),Environment Economy And Growth,Economy & Growth,Central Clee Regeneration,Cap Infrastr-Build Enh Wrk,Cap Infrastr-Build Enh Wrk,YC102,20/07/2020,630624,11282.1,CAPITAL,ONEWAY TM LIMITED,128602
North East Lincolnshire Council,http://statistics.data.gov.uk/id/local-authority/00FC),Environment Economy And Growth,Economy & Growth,Central Clee Regeneration,Cap Infrastr-Build Enh Wrk,Cap Infrastr-Build Enh Wrk,YC102,21/07/2020,627426,3950,CAPITAL,MASON CLARK ASSOCIATES,100793
North East Lincolnshire Council,http://statistics.data.gov.uk/id/local-authority/00FC),Environment Economy And Growth,Economy & Growth,Central Clee Regeneration,Cap Infrastr-Prof Fees,Cap Infrastr-Prof Fees,YC103,17/07/2020,630396,48037.94,CAPITAL,GBM DEMOLITION EARTHMOVING & PLANT HIRE,101176
North East Lincolnshire Council,http://statistics.data.gov.uk/id/local-authority/00FC),Environment Economy And Growth,Economy & Growth,Central Clee Regeneration,Cap Infrastr-Prof Fees,Cap Infrastr-Prof Fees,YC103,17/07/2020,630397,33483.57,CAPITAL,GBM DEMOLITION EARTHMOVING & PLANT HIRE,101176
North East Lincolnshire Council,http://statistics.data.gov.uk/id/local-authority/00FC),Environment Economy And Growth,Economy & Growth,Central Clee Regeneration,Cap Infrastr-Prof Fees,Cap Infrastr-Prof Fees,YC103,28/07/2020,631629,40181.72,CAPITAL,ENGIE SERVICES LTD,133267
North East Lincolnshire Council,http://statistics.data.gov.uk/id/local-authority/00FC),Environment Economy And Growth,Economy & Growth,Central Clee Regeneration,Cap Infrastr-Prof Fees,Cap Infrastr-Prof Fees,YC103,20/07/2020,630440,5000,CAPITAL,ENGIE SERVICES LTD,133267
North East Lincolnshire Council,http://statistics.data.gov.uk/id/local-authority/00FC),Environment Economy And Growth,Economy & Growth,Central Clee Regeneration,Cap Infrastr-Prof Fees,Cap Infrastr-Prof Fees,YC103,23/07/2020,624010,7000,CAPITAL,ENGIE SERVICES LTD,133267
North East Lincolnshire Council,http://statistics.data.gov.uk/id/local-authority/00FC),Environment Economy And Growth,Economy & Growth,Central Clee Regeneration,Cap Infrastr-Prof Fees,Cap Infrastr-Prof Fees,YC103,30/07/2020,630448,7000,CAPITAL,ENGIE SERVICES LTD,133267
North East Lincolnshire Council,http://statistics.data.gov.uk/id/local-authority/00FC),Environment Economy And Growth,Economy & Growth,Stallingborough Aemu,Cap Land/Build-Build Enh Wrk,Cap Land/Build-Build Enh Wrk,YA102,16/07/2020,630099,177328.48,CAPITAL,GEO HOULTON & SONS LTD,102697
North East Lincolnshire Council,http://statistics.data.gov.uk/id/local-authority/00FC),Environment Economy And Growth,Economy & Growth,Cdf - Open For Culture,Cap Land/Build-Prof Fees,Cap Land/Build-Prof Fees,YA103,28/07/2020,631637,19456.07,CAPITAL,DONALD INSALL ASSOCIATES LTD,146092
North East Lincolnshire Council,http://statistics.data.gov.uk/id/local-authority/00FC),Environment Economy And Growth,Economy & Growth,Cdf - Open For Culture,Cap Land/Build-Prof Fees,Cap Land/Build-Prof Fees,YA103,28/07/2020,631631,1260,CAPITAL,CUT LTD,105425
North East Lincolnshire Council,http://statistics.data.gov.uk/id/local-authority/00FC),Environment Economy And Growth,Economy & Growth,Cdf - Open For Culture,Cap Land/Build-Prof Fees,Cap Land/Build-Prof Fees,YA103,28/07/2020,631632,840,CAPITAL,CUT LTD,105425
North East Lincolnshire Council,http://statistics.data.gov.uk/id/local-authority/00FC),Environment Economy And Growth,Economy & Growth,Nelc Funded Energy,Cap Land/Build-Build Enh Wrk,Cap Land/Build-Build Enh Wrk,YA102,15/07/2020,629122,825,CAPITAL,NORFOLK & WAVENEY ENTERPRISE SERVICES LTD,145349
North East Lincolnshire Council,http://statistics.data.gov.uk/id/local-authority/00FC),Environment Economy And Growth,Economy & Growth,Nelc Funded Energy,Cap Land/Build-Build Enh Wrk,Cap Land/Build-Build Enh Wrk,YA102,20/07/2020,630520,2974.72,CAPITAL,PACE COMMUNICATIONS LIMITED,140495
North East Lincolnshire Council,http://statistics.data.gov.uk/id/local-authority/00FC),Environment Economy And Growth,Housing,Housing Assist Grants And Loan,Cap Grants To O/Side Sources,Cap Grants To O/Side Sources,YJ101,28/07/2020,631663,10830,CAPITAL,VIC HANSEN BUILDING & JOINERY LTD,103981
North East Lincolnshire Council,http://statistics.data.gov.uk/id/local-authority/00FC),Environment Economy And Growth,Housing,Housing Assist Grants And Loan,Cap Grants To O/Side Sources,Cap Grants To O/Side Sources,YJ101,20/07/2020,630291,1100,CAPITAL,VALUATION OFFICE AGENCY,146421
North East Lincolnshire Council,http://statistics.data.gov.uk/id/local-authority/00FC),Environment Economy And Growth,Housing,Conv Rd Apartment Block,Cap Land/Build-Build Enh Wrk,Cap Land/Build-Build Enh Wrk,YA102,27/07/2020,631406,148505.73,CAPITAL,JC POMFRET CONSTRUCTION LTD,136453
North East Lincolnshire Council,http://statistics.data.gov.uk/id/local-authority/00FC),Environment Economy And Growth,Housing,Community Hsg Fund,Cap Land/Build-Prof Fees,Cap Land/Build-Prof Fees,YA103,29/07/2020,631723,3296.55,CAPITAL,ENGIE SERVICES LTD,133267
North East Lincolnshire Council,http://statistics.data.gov.uk/id/local-authority/00FC),Environment Economy And Growth,Housing,Community Hsg Fund,Cap Land/Build-Prof Fees,Cap Land/Build-Prof Fees,YA103,29/07/2020,631722,3296.5,CAPITAL,ENGIE SERVICES LTD,133267
North East Lincolnshire Council,http://statistics.data.gov.uk/id/local-authority/00FC),Environment Economy And Growth,Housing,Community Hsg Fund,Cap Land/Build-Prof Fees,Cap Land/Build-Prof Fees,YA103,07/07/2020,628417,1500,CAPITAL,EAST MARSH CONSTRUCTION CIC,146757
North East Lincolnshire Council,http://statistics.data.gov.uk/id/local-authority/00FC),Environment Economy And Growth,Housing,Community Hsg Fund,Cap Land/Build-Prof Fees,Cap Land/Build-Prof Fees,YA103,16/07/2020,630033,1500,CAPITAL,EAST MARSH CONSTRUCTION CIC,146757
North East Lincolnshire Council,http://statistics.data.gov.uk/id/local-authority/00FC),Environment Economy And Growth,Housing,Community Hsg Fund,Cap Land/Build-Prof Fees,Cap Land/Build-Prof Fees,YA103,20/07/2020,630625,1500,CAPITAL,EAST MARSH CONSTRUCTION CIC,146757
North East Lincolnshire Council,http://statistics.data.gov.uk/id/local-authority/00FC),Environment Economy And Growth,Housing,Community Hsg Fund,Cap Land/Build-Prof Fees,Cap Land/Build-Prof Fees,YA103,27/07/2020,631433,1500,CAPITAL,EAST MARSH CONSTRUCTION CIC,146757
North East Lincolnshire Council,http://statistics.data.gov.uk/id/local-authority/00FC),Environment Economy And Growth,Housing,Accelerated Cons Funding,Cap Infrastr-Build Enh Wrk,Cap Infrastr-Build Enh Wrk,YC102,02/07/2020,627701,1350,CAPITAL,DELTA-SIMONS ENVIRONMENTAL CONSULTANTS LTD,122455
North East Lincolnshire Council,http://statistics.data.gov.uk/id/local-authority/00FC),Environment Economy And Growth,Housing,Accelerated Cons Funding,Cap Infrastr-Build Enh Wrk,Cap Infrastr-Build Enh Wrk,YC102,30/07/2020,631775,22962.92,CAPITAL,FIRST CONNECT UTILITY SOLUTIONS LTD,146619
North East Lincolnshire Council,http://statistics.data.gov.uk/id/local-authority/00FC),Environment Economy And Growth,Housing,Accelerated Cons Funding,Cap Infrastr-Prof Fees,Cap Infrastr-Prof Fees,YC103,20/07/2020,630435,3600,CAPITAL,ENGIE SERVICES LTD,133267
North East Lincolnshire Council,http://statistics.data.gov.uk/id/local-authority/00FC),Environment Economy And Growth,Housing,Accelerated Cons Funding,Cap Infrastr-Prof Fees,Cap Infrastr-Prof Fees,YC103,22/07/2020,624009,14000,CAPITAL,ENGIE SERVICES LTD,133267
North East Lincolnshire Council,http://statistics.data.gov.uk/id/local-authority/00FC),Environment Economy And Growth,Housing,Accelerated Cons Funding,Cap Infrastr-Prof Fees,Cap Infrastr-Prof Fees,YC103,23/07/2020,630437,14000,CAPITAL,ENGIE SERVICES LTD,133267
North East Lincolnshire Council,http://statistics.data.gov.uk/id/local-authority/00FC),Environment Economy And Growth,Housing,Accelerated Cons Funding,Cap Infrastr-Prof Fees,Cap Infrastr-Prof Fees,YC103,31/07/2020,631992,14000,CAPITAL,ENGIE SERVICES LTD,133267
North East Lincolnshire Council,http://statistics.data.gov.uk/id/local-authority/00FC),Public Health And Leisure,Leisure,Playing Pitch Reprovision,Cap Land/Build-Build Enh Wrk,Cap Land/Build-Build Enh Wrk,YA102,02/07/2020,627953,2937,CAPITAL,BRIANPLANT (HUMBERSIDE) LTD,100583
North East Lincolnshire Council,http://statistics.data.gov.uk/id/local-authority/00FC),Adult Services,Adult Services,Hps-Disabled Fac. Grants,Cap Grants To O/Side Sources,Cap Grants To O/Side Sources,YJ101,07/07/2020,628486,720,CAPITAL,NEWGLAZE,100642
North East Lincolnshire Council,http://statistics.data.gov.uk/id/local-authority/00FC),Adult Services,Adult Services,Hps-Disabled Fac. Grants,Cap Grants To O/Side Sources,Cap Grants To O/Side Sources,YJ101,27/07/2020,631133,1765,CAPITAL,OBAM LIFT SERVICES LTD,112666
North East Lincolnshire Council,http://statistics.data.gov.uk/id/local-authority/00FC),Adult Services,Adult Services,Hps-Disabled Fac. Grants,Cap Grants To O/Side Sources,Cap Grants To O/Side Sources,YJ101,07/07/2020,628488,1080,CAPITAL,NEWGLAZE,100642
North East Lincolnshire Council,http://statistics.data.gov.uk/id/local-authority/00FC),Adult Services,Adult Services,Hps-Disabled Fac. Grants,Cap Grants To O/Side Sources,Cap Grants To O/Side Sources,YJ101,20/07/2020,630619,935,CAPITAL,NEWGLAZE,100642
North East Lincolnshire Council,http://statistics.data.gov.uk/id/local-authority/00FC),Adult Services,Adult Services,Hps-Disabled Fac. Grants,Cap Grants To O/Side Sources,Cap Grants To O/Side Sources,YJ101,20/07/2020,630618,1425,CAPITAL,NEWGLAZE,100642
North East Lincolnshire Council,http://statistics.data.gov.uk/id/local-authority/00FC),Adult Services,Adult Services,Hps-Disabled Fac. Grants,Cap Grants To O/Side Sources,Cap Grants To O/Side Sources,YJ101,07/07/2020,628485,955,CAPITAL,NEWGLAZE,100642
North East Lincolnshire Council,http://statistics.data.gov.uk/id/local-authority/00FC),Adult Services,Adult Services,Hps-Disabled Fac. Grants,Cap Grants To O/Side Sources,Cap Grants To O/Side Sources,YJ101,15/07/2020,629613,1230,CAPITAL,OBAM LIFT SERVICES LTD,112666
North East Lincolnshire Council,http://statistics.data.gov.uk/id/local-authority/00FC),Adult Services,Adult Services,Hps-Disabled Fac. Grants,Cap Grants To O/Side Sources,Cap Grants To O/Side Sources,YJ101,28/07/2020,631474,1630,CAPITAL,E S RUDKIN LTD,100632
North East Lincolnshire Council,http://statistics.data.gov.uk/id/local-authority/00FC),Adult Services,Adult Services,Hps-Disabled Fac. Grants,Cap Grants To O/Side Sources,Cap Grants To O/Side Sources,YJ101,24/07/2020,631296,1602.22,CAPITAL,MARK BENNETT,101838
North East Lincolnshire Council,http://statistics.data.gov.uk/id/local-authority/00FC),Adult Services,Adult Services,Hps-Disabled Fac. Grants,Cap Grants To O/Side Sources,Cap Grants To O/Side Sources,YJ101,17/07/2020,630394,7557.16,CAPITAL,F R TOWNSEND & CO LTD,104217
North East Lincolnshire Council,http://statistics.data.gov.uk/id/local-authority/00FC),Adult Services,Adult Services,Hps-Disabled Fac. Grants,Cap Grants To O/Side Sources,Cap Grants To O/Side Sources,YJ101,20/07/2020,630486,6131.25,CAPITAL,OBAM LIFT SERVICES LTD,112666
North East Lincolnshire Council,http://statistics.data.gov.uk/id/local-authority/00FC),Adult Services,Adult Services,Hps-Disabled Fac. Grants,Cap Grants To O/Side Sources,Cap Grants To O/Side Sources,YJ101,22/07/2020,631014,7759.68,CAPITAL,ABLE 4 ENTERPRISE LTD,120159
North East Lincolnshire Council,http://statistics.data.gov.uk/id/local-authority/00FC),Adult Services,Adult Services,Hps-Disabled Fac. Grants,Cap Grants To O/Side Sources,Cap Grants To O/Side Sources,YJ101,16/07/2020,630243,3401,CAPITAL,OBAM LIFT SERVICES LTD,112666
North East Lincolnshire Council,http://statistics.data.gov.uk/id/local-authority/00FC),Adult Services,Adult Services,Hps-Disabled Fac. Grants,Cap Grants To O/Side Sources,Cap Grants To O/Side Sources,YJ101,08/07/2020,628284,9246.81,CAPITAL,E S RUDKIN LTD,100632
North East Lincolnshire Council,http://statistics.data.gov.uk/id/local-authority/00FC),Adult Services,Adult Services,Hps-Disabled Fac. Grants,Cap Grants To O/Side Sources,Cap Grants To O/Side Sources,YJ101,23/07/2020,630989,3805,CAPITAL,OBAM LIFT SERVICES LTD,112666
North East Lincolnshire Council,http://statistics.data.gov.uk/id/local-authority/00FC),Adult Services,Adult Services,Hps-Disabled Fac. Grants,Cap Grants To O/Side Sources,Cap Grants To O/Side Sources,YJ101,24/07/2020,631297,9420.09,CAPITAL,MARK BENNETT,101838
North East Lincolnshire Council,http://statistics.data.gov.uk/id/local-authority/00FC),Adult Services,Adult Services,Hps-Disabled Fac. Grants,Cap Grants To O/Side Sources,Cap Grants To O/Side Sources,YJ101,24/07/2020,631298,8400.23,CAPITAL,E S RUDKIN LTD,100632
North East Lincolnshire Council,http://statistics.data.gov.uk/id/local-authority/00FC),Adult Services,Adult Services,Hps-Disabled Fac. Grants,Cap Grants To O/Side Sources,Cap Grants To O/Side Sources,YJ101,09/07/2020,629106,8491.41,CAPITAL,ABLE 4 ENTERPRISE LTD,120159
North East Lincolnshire Council,http://statistics.data.gov.uk/id/local-authority/00FC),Adult Services,Adult Services,Hps-Disabled Fac. Grants,Cap Grants To O/Side Sources,Cap Grants To O/Side Sources,YJ101,09/07/2020,629125,4344,CAPITAL,N LINCS & GOOLE HOSPITALS NHS FOUNDATION TRUS,111074
North East Lincolnshire Council,http://statistics.data.gov.uk/id/local-authority/00FC),Adult Services,Adult Services,Hps-Disabled Fac. Grants,Cap Grants To O/Side Sources,Cap Grants To O/Side Sources,YJ101,17/07/2020,629479,4344,CAPITAL,N LINCS & GOOLE HOSPITALS NHS FOUNDATION TRUS,111074
North East Lincolnshire Council,http://statistics.data.gov.uk/id/local-authority/00FC),Adult Services,Adult Services,Hps-Disabled Fac. Grants,Cap Grants To O/Side Sources,Cap Grants To O/Side Sources,YJ101,13/07/2020,628510,15557.82,CAPITAL,ABLE 4 ENTERPRISE LTD,120159
North East Lincolnshire Council,http://statistics.data.gov.uk/id/local-authority/00FC),Adult Services,Adult Services,Hps-Disabled Fac. Grants,Cap Grants To O/Side Sources,Cap Grants To O/Side Sources,YJ101,03/07/2020,628202,19150.87,CAPITAL,E S RUDKIN LTD,100632
North East Lincolnshire Council,http://statistics.data.gov.uk/id/local-authority/00FC),Adult Services,Adult Services,Hps-Disabled Fac. Grants,Cap Grants To O/Side Sources,Cap Grants To O/Side Sources,YJ101,06/07/2020,628261,15851.04,CAPITAL,ENGIE SERVICES LTD,133267
North East Lincolnshire Council,http://statistics.data.gov.uk/id/local-authority/00FC),Adult Services,Adult Services,Hps-Disabled Fac. Grants,Cap Grants To O/Side Sources,Cap Grants To O/Side Sources,YJ101,21/07/2020,630136,16089.09,CAPITAL,JC POMFRET CONSTRUCTION LTD,136453
North East Lincolnshire Council,http://statistics.data.gov.uk/id/local-authority/00FC),Adult Services,Adult Services,Hps-Disabled Fac. Grants,Cap Grants To O/Side Sources,Cap Grants To O/Side Sources,YJ101,16/07/2020,629614,6198,CAPITAL,DOLPHIN MOBILITY EAST MIDLANDS LTD,101317
North East Lincolnshire Council,http://statistics.data.gov.uk/id/local-authority/00FC),Adult Services,Adult Services,Hps-Disabled Fac. Grants,Cap Grants To O/Side Sources,Cap Grants To O/Side Sources,YJ101,28/07/2020,631301,8200.26,CAPITAL,ABLE 4 ENTERPRISE LTD,120159
North East Lincolnshire Council,http://statistics.data.gov.uk/id/local-authority/00FC),Children & Family Services,Ass Dir - Education,Access And Education Services,Contract Hire-Operating Leases,Vehicles - Contract Hire,JC101,07/07/2020,628474,1092,REVENUE,DRS TAXI SERVICE,141083
North East Lincolnshire Council,http://statistics.data.gov.uk/id/local-authority/00FC),Children & Family Services,Ass Dir - Education,Access And Education Services,Contract Hire-Operating Leases,Vehicles - Contract Hire,JC101,07/07/2020,628325,1106,REVENUE,REDACTED PERSONAL INFORMATION,REDACTED PERSONAL INFORMATION
North East Lincolnshire Council,http://statistics.data.gov.uk/id/local-authority/00FC),Children & Family Services,Ass Dir - Education,Access And Education Services,Contract Hire-Operating Leases,Vehicles - Contract Hire,JC101,07/07/2020,628393,968,REVENUE,LINKS TAXIS,100546
North East Lincolnshire Council,http://statistics.data.gov.uk/id/local-authority/00FC),Children & Family Services,Ass Dir - Education,Access And Education Services,Contract Hire-Operating Leases,Vehicles - Contract Hire,JC101,07/07/2020,628530,700,REVENUE,LINKS TAXIS,100546
North East Lincolnshire Council,http://statistics.data.gov.uk/id/local-authority/00FC),Children & Family Services,Ass Dir - Education,Access And Education Services,Contract Hire-Operating Leases,Vehicles - Contract Hire,JC101,07/07/2020,628390,836,REVENUE,LINKS TAXIS,100546
North East Lincolnshire Council,http://statistics.data.gov.uk/id/local-authority/00FC),Children & Family Services,Ass Dir - Education,Access And Education Services,Contract Hire-Operating Leases,Vehicles - Contract Hire,JC101,07/07/2020,628391,1144,REVENUE,LINKS TAXIS,100546
North East Lincolnshire Council,http://statistics.data.gov.uk/id/local-authority/00FC),Children & Family Services,Ass Dir - Education,Access And Education Services,Contract Hire-Operating Leases,Vehicles - Contract Hire,JC101,01/07/2020,627708,628,REVENUE,REDACTED PERSONAL INFORMATION,REDACTED PERSONAL INFORMATION
North East Lincolnshire Council,http://statistics.data.gov.uk/id/local-authority/00FC),Children & Family Services,Ass Dir - Education,Access And Education Services,Contract Hire-Operating Leases,Vehicles - Contract Hire,JC101,07/07/2020,628527,880,REVENUE,LINKS TAXIS,100546
North East Lincolnshire Council,http://statistics.data.gov.uk/id/local-authority/00FC),Children & Family Services,Ass Dir - Education,Access And Education Services,Contract Hire-Operating Leases,Vehicles - Contract Hire,JC101,07/07/2020,628479,484,REVENUE,MINICABS CLEETHORPES (LINCS) LTD,102124
North East Lincolnshire Council,http://statistics.data.gov.uk/id/local-authority/00FC),Children & Family Services,Ass Dir - Education,Access And Education Services,Contract Hire-Operating Leases,Vehicles - Contract Hire,JC101,06/07/2020,628269,384,REVENUE,AA RADIO CARS LTD,101222
North East Lincolnshire Council,http://statistics.data.gov.uk/id/local-authority/00FC),Children & Family Services,Ass Dir - Education,Access And Education Services,Contract Hire-Operating Leases,Vehicles - Contract Hire,JC101,07/07/2020,628541,2705,REVENUE,LINKS TAXIS,100546
North East Lincolnshire Council,http://statistics.data.gov.uk/id/local-authority/00FC),Children & Family Services,Ass Dir - Education,Access And Education Services,Contract Hire-Operating Leases,Vehicles - Contract Hire,JC101,20/07/2020,630596,731.9,REVENUE,GRIMSBY MINIBUSES LTD,121524
North East Lincolnshire Council,http://statistics.data.gov.uk/id/local-authority/00FC),Children & Family Services,Ass Dir - Education,Access And Education Services,Contract Hire-Operating Leases,Vehicles - Contract Hire,JC101,07/07/2020,628369,836,REVENUE,LINKS TAXIS,100546
North East Lincolnshire Council,http://statistics.data.gov.uk/id/local-authority/00FC),Children & Family Services,Ass Dir - Education,Access And Education Services,Contract Hire-Operating Leases,Vehicles - Contract Hire,JC101,06/07/2020,628268,1210,REVENUE,AA RADIO CARS LTD,101222
North East Lincolnshire Council,http://statistics.data.gov.uk/id/local-authority/00FC),Children & Family Services,Ass Dir - Education,Access And Education Services,Contract Hire-Operating Leases,Vehicles - Contract Hire,JC101,07/07/2020,628542,880,REVENUE,LINKS TAXIS,100546
North East Lincolnshire Council,http://statistics.data.gov.uk/id/local-authority/00FC),Children & Family Services,Ass Dir - Education,Access And Education Services,Contract Hire-Operating Leases,Vehicles - Contract Hire,JC101,07/07/2020,628540,1144,REVENUE,LINKS TAXIS,100546
North East Lincolnshire Council,http://statistics.data.gov.uk/id/local-authority/00FC),Children & Family Services,Ass Dir - Education,Access And Education Services,Contract Hire-Operating Leases,Vehicles - Contract Hire,JC101,07/07/2020,628467,352,REVENUE,LINKS TAXIS,100546
North East Lincolnshire Council,http://statistics.data.gov.uk/id/local-authority/00FC),Children & Family Services,Ass Dir - Education,Access And Education Services,Contract Hire-Operating Leases,Vehicles - Contract Hire,JC101,07/07/2020,628546,1364,REVENUE,LINKS TAXIS,100546
North East Lincolnshire Council,http://statistics.data.gov.uk/id/local-authority/00FC),Children & Family Services,Ass Dir - Education,Access And Education Services,Contract Hire-Operating Leases,Vehicles - Contract Hire,JC101,07/07/2020,628552,1364,REVENUE,LINKS TAXIS,100546
North East Lincolnshire Council,http://statistics.data.gov.uk/id/local-authority/00FC),Children & Family Services,Ass Dir - Education,Access And Education Services,Contract Hire-Operating Leases,Vehicles - Contract Hire,JC101,16/07/2020,630052,3630,REVENUE,AMVALE LIMITED,101030
North East Lincolnshire Council,http://statistics.data.gov.uk/id/local-authority/00FC),Children & Family Services,Ass Dir - Education,Access And Education Services,Contract Hire-Operating Leases,Vehicles - Contract Hire,JC101,16/07/2020,630051,3850,REVENUE,AMVALE LIMITED,101030
North East Lincolnshire Council,http://statistics.data.gov.uk/id/local-authority/00FC),Children & Family Services,Ass Dir - Education,Access And Education Services,Contract Hire-Operating Leases,Vehicles - Contract Hire,JC101,16/07/2020,630050,3630,REVENUE,AMVALE LIMITED,101030
North East Lincolnshire Council,http://statistics.data.gov.uk/id/local-authority/00FC),Children & Family Services,Ass Dir - Education,Access And Education Services,Contract Hire-Operating Leases,Vehicles - Contract Hire,JC101,16/07/2020,630048,4048,REVENUE,AMVALE LIMITED,101030
North East Lincolnshire Council,http://statistics.data.gov.uk/id/local-authority/00FC),Children & Family Services,Ass Dir - Education,Access And Education Services,Contract Hire-Operating Leases,Vehicles - Contract Hire,JC101,16/07/2020,630049,3410,REVENUE,AMVALE LIMITED,101030
North East Lincolnshire Council,http://statistics.data.gov.uk/id/local-authority/00FC),Children & Family Services,Ass Dir - Education,Access And Education Services,Contract Hire-Operating Leases,Vehicles - Contract Hire,JC101,20/07/2020,630516,616,REVENUE,COXONS CARS LIMITED,100578
North East Lincolnshire Council,http://statistics.data.gov.uk/id/local-authority/00FC),Children & Family Services,Ass Dir - Education,Access And Education Services,Contract Hire-Operating Leases,Vehicles - Contract Hire,JC101,07/07/2020,628545,1276,REVENUE,LINKS TAXIS,100546
North East Lincolnshire Council,http://statistics.data.gov.uk/id/local-authority/00FC),Children & Family Services,Ass Dir - Education,Access And Education Services,Contract Hire-Operating Leases,Vehicles - Contract Hire,JC101,06/07/2020,628275,2530,REVENUE,AMVALE MEDICAL TRANSPORT LTD,130777
North East Lincolnshire Council,http://statistics.data.gov.uk/id/local-authority/00FC),Children & Family Services,Ass Dir - Education,Access And Education Services,Contract Hire-Operating Leases,Vehicles - Contract Hire,JC101,20/07/2020,630507,264,REVENUE,COXONS CARS LIMITED,100578
North East Lincolnshire Council,http://statistics.data.gov.uk/id/local-authority/00FC),Children & Family Services,Ass Dir - Education,Access And Education Services,Contract Hire-Operating Leases,Vehicles - Contract Hire,JC101,07/07/2020,628538,1958,REVENUE,LINKS TAXIS,100546
North East Lincolnshire Council,http://statistics.data.gov.uk/id/local-authority/00FC),Children & Family Services,Ass Dir - Education,Access And Education Services,Contract Hire-Operating Leases,Vehicles - Contract Hire,JC101,22/07/2020,630986,884,REVENUE,TIME TAXIS,146433
North East Lincolnshire Council,http://statistics.data.gov.uk/id/local-authority/00FC),Children & Family Services,Ass Dir - Education,Access And Education Services,Contract Hire-Operating Leases,Vehicles - Contract Hire,JC101,20/07/2020,630515,352,REVENUE,COXONS CARS LIMITED,100578
North East Lincolnshire Council,http://statistics.data.gov.uk/id/local-authority/00FC),Children & Family Services,Ass Dir - Education,Access And Education Services,Contract Hire-Operating Leases,Vehicles - Contract Hire,JC101,20/07/2020,630508,1900,REVENUE,LINKS TAXIS,100546
North East Lincolnshire Council,http://statistics.data.gov.uk/id/local-authority/00FC),Children & Family Services,Ass Dir - Education,Access And Education Services,Contract Hire-Operating Leases,Vehicles - Contract Hire,JC101,24/07/2020,631391,1275,REVENUE,LINKS TAXIS,100546
North East Lincolnshire Council,http://statistics.data.gov.uk/id/local-authority/00FC),Children & Family Services,Ass Dir - Education,Access And Education Services,Contract Hire-Operating Leases,Vehicles - Contract Hire,JC101,07/07/2020,628283,3388,REVENUE,AMVALE MEDICAL TRANSPORT LTD,130777
North East Lincolnshire Council,http://statistics.data.gov.uk/id/local-authority/00FC),Children & Family Services,Ass Dir - Education,Access And Education Services,Contract Hire-Operating Leases,Vehicles - Contract Hire,JC101,22/07/2020,630973,4084.5,REVENUE,F HUNT (COACH HIRE) LTD,104034
North East Lincolnshire Council,http://statistics.data.gov.uk/id/local-authority/00FC),Children & Family Services,Ass Dir - Education,Access And Education Services,Contract Hire-Operating Leases,Vehicles - Contract Hire,JC101,06/07/2020,628273,6600,REVENUE,AMVALE MEDICAL TRANSPORT LTD,130777
North East Lincolnshire Council,http://statistics.data.gov.uk/id/local-authority/00FC),Children & Family Services,Ass Dir - Education,Access And Education Services,Contract Hire-Operating Leases,Vehicles - Contract Hire,JC101,15/07/2020,630031,4290,REVENUE,WATAXIS,141297
North East Lincolnshire Council,http://statistics.data.gov.uk/id/local-authority/00FC),Children & Family Services,Ass Dir - Education,Access And Education Services,Contract Hire-Operating Leases,Vehicles - Contract Hire,JC101,07/07/2020,628281,2838,REVENUE,AMVALE MEDICAL TRANSPORT LTD,130777
North East Lincolnshire Council,http://statistics.data.gov.uk/id/local-authority/00FC),Children & Family Services,Ass Dir - Education,Access And Education Services,Contract Hire-Operating Leases,Vehicles - Contract Hire,JC101,06/07/2020,628274,4774,REVENUE,AMVALE MEDICAL TRANSPORT LTD,130777
North East Lincolnshire Council,http://statistics.data.gov.uk/id/local-authority/00FC),Children & Family Services,Ass Dir - Education,Access And Education Services,Contract Hire-Operating Leases,Vehicles - Contract Hire,JC101,06/07/2020,628272,4730,REVENUE,AMVALE MEDICAL TRANSPORT LTD,130777
North East Lincolnshire Council,http://statistics.data.gov.uk/id/local-authority/00FC),Children & Family Services,Ass Dir - Education,Access And Education Services,Contract Hire-Operating Leases,Vehicles - Contract Hire,JC101,07/07/2020,628472,1870,REVENUE,DRS TAXI SERVICE,141083
North East Lincolnshire Council,http://statistics.data.gov.uk/id/local-authority/00FC),Children & Family Services,Ass Dir - Education,Access And Education Services,Contract Hire-Operating Leases,Vehicles - Contract Hire,JC101,03/07/2020,627975,2200,REVENUE,REDACTED PERSONAL INFORMATION,REDACTED PERSONAL INFORMATION
North East Lincolnshire Council,http://statistics.data.gov.uk/id/local-authority/00FC),Children & Family Services,Ass Dir - Education,Access And Education Services,Contract Hire-Operating Leases,Vehicles - Contract Hire,JC101,06/07/2020,627943,1320,REVENUE,FON A CAR LTD,140517
North East Lincolnshire Council,http://statistics.data.gov.uk/id/local-authority/00FC),Children & Family Services,Ass Dir - Education,Access And Education Services,Contract Hire-Operating Leases,Vehicles - Contract Hire,JC101,07/07/2020,628526,855,REVENUE,LINKS TAXIS,100546
North East Lincolnshire Council,http://statistics.data.gov.uk/id/local-authority/00FC),Children & Family Services,Ass Dir - Education,Access And Education Services,Contract Hire-Operating Leases,Vehicles - Contract Hire,JC101,07/07/2020,628481,1716,REVENUE,MINICABS CLEETHORPES (LINCS) LTD,102124
North East Lincolnshire Council,http://statistics.data.gov.uk/id/local-authority/00FC),Children & Family Services,Ass Dir - Education,Access And Education Services,Contract Hire-Operating Leases,Vehicles - Contract Hire,JC101,30/07/2020,631801,1170,REVENUE,MINICABS CLEETHORPES (LINCS) LTD,102124
North East Lincolnshire Council,http://statistics.data.gov.uk/id/local-authority/00FC),Children & Family Services,Ass Dir - Education,Access And Education Services,Contract Hire-Operating Leases,Vehicles - Contract Hire,JC101,22/07/2020,631051,840,REVENUE,COXONS CARS LIMITED,100578
North East Lincolnshire Council,http://statistics.data.gov.uk/id/local-authority/00FC),Children & Family Services,Ass Dir - Education,Access And Education Services,Contract Hire-Operating Leases,Vehicles - Contract Hire,JC101,03/07/2020,627976,2562,REVENUE,THE BUS RUN,101522
North East Lincolnshire Council,http://statistics.data.gov.uk/id/local-authority/00FC),Children & Family Services,Ass Dir - Education,Access And Education Services,Contract Hire-Operating Leases,Vehicles - Contract Hire,JC101,20/07/2020,630604,1586,REVENUE,THE BUS RUN,101522
North East Lincolnshire Council,http://statistics.data.gov.uk/id/local-authority/00FC),Children & Family Services,Ass Dir - Education,Access And Education Services,Contract Hire-Operating Leases,Vehicles - Contract Hire,JC101,23/07/2020,630599,1830.4,REVENUE,GRIMSBY MINIBUSES LTD,121524
North East Lincolnshire Council,http://statistics.data.gov.uk/id/local-authority/00FC),Children & Family Services,Ass Dir - Education,Access And Education Services,Contract Hire-Operating Leases,Vehicles - Contract Hire,JC101,20/07/2020,630598,1823.9,REVENUE,GRIMSBY MINIBUSES LTD,121524
North East Lincolnshire Council,http://statistics.data.gov.uk/id/local-authority/00FC),Children & Family Services,Ass Dir - Education,Access And Education Services,Contract Hire-Operating Leases,Vehicles - Contract Hire,JC101,22/07/2020,630978,672,REVENUE,COXONS CARS LIMITED,100578
North East Lincolnshire Council,http://statistics.data.gov.uk/id/local-authority/00FC),Children & Family Services,Ass Dir - Education,Access And Education Services,Contract Hire-Operating Leases,Vehicles - Contract Hire,JC101,22/07/2020,631045,798,REVENUE,COXONS CARS LIMITED,100578
North East Lincolnshire Council,http://statistics.data.gov.uk/id/local-authority/00FC),Children & Family Services,Ass Dir - Education,Access And Education Services,Contract Hire-Operating Leases,Vehicles - Contract Hire,JC101,23/07/2020,631134,1050,REVENUE,COXONS CARS LIMITED,100578
North East Lincolnshire Council,http://statistics.data.gov.uk/id/local-authority/00FC),Children & Family Services,Ass Dir - Education,Access And Education Services,Contract Hire-Operating Leases,Vehicles - Contract Hire,JC101,06/07/2020,628332,2205,REVENUE,HANSONS AIRPORT EXPRESS,111879
North East Lincolnshire Council,http://statistics.data.gov.uk/id/local-authority/00FC),Children & Family Services,Ass Dir - Education,Access And Education Services,Contract Hire-Operating Leases,Vehicles - Contract Hire,JC101,23/07/2020,631136,1365,REVENUE,HANSONS AIRPORT EXPRESS,111879
North East Lincolnshire Council,http://statistics.data.gov.uk/id/local-authority/00FC),Children & Family Services,Ass Dir - Education,Access And Education Services,Contract Hire-Operating Leases,Vehicles - Contract Hire,JC101,06/07/2020,628333,1575,REVENUE,HANSONS AIRPORT EXPRESS,111879
North East Lincolnshire Council,http://statistics.data.gov.uk/id/local-authority/00FC),Children & Family Services,Ass Dir - Education,Access And Education Services,Contract Hire-Operating Leases,Vehicles - Contract Hire,JC101,23/07/2020,631137,1365,REVENUE,HANSONS AIRPORT EXPRESS,111879
North East Lincolnshire Council,http://statistics.data.gov.uk/id/local-authority/00FC),Children & Family Services,Ass Dir - Education,Access And Education Services,Contract Hire-Operating Leases,Vehicles - Contract Hire,JC101,07/07/2020,628484,1365,REVENUE,MINICABS CLEETHORPES (LINCS) LTD,102124
North East Lincolnshire Council,http://statistics.data.gov.uk/id/local-authority/00FC),Children & Family Services,Ass Dir - Education,Access And Education Services,Contract Hire-Operating Leases,Vehicles - Contract Hire,JC101,30/07/2020,631800,845,REVENUE,MINICABS CLEETHORPES (LINCS) LTD,102124
North East Lincolnshire Council,http://statistics.data.gov.uk/id/local-authority/00FC),Children & Family Services,Ass Dir - Education,Access And Education Services,Contract Hire-Operating Leases,Vehicles - Contract Hire,JC101,14/07/2020,629741,820,REVENUE,AMVALE LIMITED,101030
North East Lincolnshire Council,http://statistics.data.gov.uk/id/local-authority/00FC),Children & Family Services,Ass Dir - Education,Access And Education Services,Contract Hire-Operating Leases,Vehicles - Contract Hire,JC101,24/07/2020,631377,885.92,REVENUE,AMVALE LIMITED,101030
North East Lincolnshire Council,http://statistics.data.gov.uk/id/local-authority/00FC),Children & Family Services,Ass Dir - Education,Access And Education Services,Contract Hire-Operating Leases,Vehicles - Contract Hire,JC101,14/07/2020,629743,820,REVENUE,AMVALE LIMITED,101030
North East Lincolnshire Council,http://statistics.data.gov.uk/id/local-authority/00FC),Children & Family Services,Ass Dir - Education,Access And Education Services,Contract Hire-Operating Leases,Vehicles - Contract Hire,JC101,22/07/2020,631069,756.93,REVENUE,AMVALE LIMITED,101030
North East Lincolnshire Council,http://statistics.data.gov.uk/id/local-authority/00FC),Children & Family Services,Ass Dir - Education,Access And Education Services,Contract Hire-Operating Leases,Vehicles - Contract Hire,JC101,14/07/2020,629742,820,REVENUE,AMVALE LIMITED,101030
North East Lincolnshire Council,http://statistics.data.gov.uk/id/local-authority/00FC),Children & Family Services,Ass Dir - Education,Access And Education Services,Contract Hire-Operating Leases,Vehicles - Contract Hire,JC101,24/07/2020,631378,820,REVENUE,AMVALE LIMITED,101030
North East Lincolnshire Council,http://statistics.data.gov.uk/id/local-authority/00FC),Children & Family Services,Ass Dir - Education,Access And Education Services,Contract Hire-Operating Leases,Vehicles - Contract Hire,JC101,20/07/2020,630514,560,REVENUE,COXONS CARS LIMITED,100578
North East Lincolnshire Council,http://statistics.data.gov.uk/id/local-authority/00FC),Children & Family Services,Ass Dir - Education,Access And Education Services,Contract Hire-Operating Leases,Vehicles - Contract Hire,JC101,07/07/2020,628483,1234.8,REVENUE,MINICABS CLEETHORPES (LINCS) LTD,102124
North East Lincolnshire Council,http://statistics.data.gov.uk/id/local-authority/00FC),Children & Family Services,Ass Dir - Education,Access And Education Services,Contract Hire-Operating Leases,Vehicles - Contract Hire,JC101,30/07/2020,631811,764.4,REVENUE,MINICABS CLEETHORPES (LINCS) LTD,102124
North East Lincolnshire Council,http://statistics.data.gov.uk/id/local-authority/00FC),Children & Family Services,Ass Dir - Education,Access And Education Services,Contract Hire-Operating Leases,Vehicles - Contract Hire,JC101,15/07/2020,630039,1113,REVENUE,WATAXIS,141297
North East Lincolnshire Council,http://statistics.data.gov.uk/id/local-authority/00FC),Children & Family Services,Ass Dir - Education,Access And Education Services,Contract Hire-Operating Leases,Vehicles - Contract Hire,JC101,07/07/2020,628475,1650,REVENUE,MINICABS CLEETHORPES (LINCS) LTD,102124
North East Lincolnshire Council,http://statistics.data.gov.uk/id/local-authority/00FC),Children & Family Services,Ass Dir - Education,Access And Education Services,Contract Hire-Operating Leases,Vehicles - Contract Hire,JC101,07/07/2020,628473,660,REVENUE,MINICABS CLEETHORPES (LINCS) LTD,102124
North East Lincolnshire Council,http://statistics.data.gov.uk/id/local-authority/00FC),Children & Family Services,Ass Dir - Education,Access And Education Services,Contract Hire-Operating Leases,Vehicles - Contract Hire,JC101,30/07/2020,631809,750,REVENUE,MINICABS CLEETHORPES (LINCS) LTD,102124
North East Lincolnshire Council,http://statistics.data.gov.uk/id/local-authority/00FC),Children & Family Services,Ass Dir - Education,Access And Education Services,Contract Hire-Operating Leases,Vehicles - Contract Hire,JC101,07/07/2020,628477,1980,REVENUE,MINICABS CLEETHORPES (LINCS) LTD,102124
North East Lincolnshire Council,http://statistics.data.gov.uk/id/local-authority/00FC),Children & Family Services,Ass Dir - Education,Access And Education Services,Contract Hire-Operating Leases,Vehicles - Contract Hire,JC101,30/07/2020,631807,900,REVENUE,MINICABS CLEETHORPES (LINCS) LTD,102124
North East Lincolnshire Council,http://statistics.data.gov.uk/id/local-authority/00FC),Children & Family Services,Ass Dir - Education,Access And Education Services,Contract Hire-Operating Leases,Vehicles - Contract Hire,JC101,07/07/2020,628547,2134,REVENUE,LINKS TAXIS,100546
North East Lincolnshire Council,http://statistics.data.gov.uk/id/local-authority/00FC),Children & Family Services,Ass Dir - Education,Access And Education Services,Contract Hire-Operating Leases,Vehicles - Contract Hire,JC101,07/07/2020,628523,2420,REVENUE,LINKS TAXIS,100546
North East Lincolnshire Council,http://statistics.data.gov.uk/id/local-authority/00FC),Children & Family Services,Ass Dir - Education,Access And Education Services,Contract Hire-Operating Leases,Vehicles - Contract Hire,JC101,07/07/2020,628529,2750,REVENUE,LINKS TAXIS,100546
North East Lincolnshire Council,http://statistics.data.gov.uk/id/local-authority/00FC),Children & Family Services,Ass Dir - Education,Access And Education Services,Contract Hire-Operating Leases,Vehicles - Contract Hire,JC101,15/07/2020,630025,2420,REVENUE,WATAXIS,141297
North East Lincolnshire Council,http://statistics.data.gov.uk/id/local-authority/00FC),Children & Family Services,Ass Dir - Education,Access And Education Services,Contract Hire-Operating Leases,Vehicles - Contract Hire,JC101,20/07/2020,630519,2464,REVENUE,LINKS TAXIS,100546
North East Lincolnshire Council,http://statistics.data.gov.uk/id/local-authority/00FC),Children & Family Services,Ass Dir - Education,Access And Education Services,Contract Hire-Operating Leases,Vehicles - Contract Hire,JC101,06/07/2020,627942,550,REVENUE,FON A CAR LTD,140517
North East Lincolnshire Council,http://statistics.data.gov.uk/id/local-authority/00FC),Children & Family Services,Ass Dir - Education,Access And Education Services,Contract Hire-Operating Leases,Vehicles - Contract Hire,JC101,20/07/2020,630510,616,REVENUE,COXONS CARS LIMITED,100578
North East Lincolnshire Council,http://statistics.data.gov.uk/id/local-authority/00FC),Children & Family Services,Ass Dir - Education,Access And Education Services,Contract Hire-Operating Leases,Vehicles - Contract Hire,JC101,06/07/2020,628270,1166,REVENUE,AA RADIO CARS LTD,101222
North East Lincolnshire Council,http://statistics.data.gov.uk/id/local-authority/00FC),Children & Family Services,Ass Dir - Education,Access And Education Services,Contract Hire-Operating Leases,Vehicles - Contract Hire,JC101,07/07/2020,628478,1540,REVENUE,MINICABS CLEETHORPES (LINCS) LTD,102124
North East Lincolnshire Council,http://statistics.data.gov.uk/id/local-authority/00FC),Children & Family Services,Ass Dir - Education,Access And Education Services,Contract Hire-Operating Leases,Vehicles - Contract Hire,JC101,30/07/2020,631806,1050,REVENUE,MINICABS CLEETHORPES (LINCS) LTD,102124
North East Lincolnshire Council,http://statistics.data.gov.uk/id/local-authority/00FC),Children & Family Services,Ass Dir - Education,Access And Education Services,Contract Hire-Operating Leases,Vehicles - Contract Hire,JC101,07/07/2020,628480,1320,REVENUE,MINICABS CLEETHORPES (LINCS) LTD,102124
North East Lincolnshire Council,http://statistics.data.gov.uk/id/local-authority/00FC),Children & Family Services,Ass Dir - Education,Access And Education Services,Contract Hire-Operating Leases,Vehicles - Contract Hire,JC101,30/07/2020,631805,900,REVENUE,MINICABS CLEETHORPES (LINCS) LTD,102124
North East Lincolnshire Council,http://statistics.data.gov.uk/id/local-authority/00FC),Children & Family Services,Ass Dir - Education,Access And Education Services,Contract Hire-Operating Leases,Vehicles - Contract Hire,JC101,17/07/2020,630029,2220,REVENUE,WATAXIS,141297
North East Lincolnshire Council,http://statistics.data.gov.uk/id/local-authority/00FC),Children & Family Services,Ass Dir - Education,Access And Education Services,Contract Hire-Operating Leases,Vehicles - Contract Hire,JC101,07/07/2020,628282,2618,REVENUE,AMVALE MEDICAL TRANSPORT LTD,130777
North East Lincolnshire Council,http://statistics.data.gov.uk/id/local-authority/00FC),Children & Family Services,Ass Dir - Education,Access And Education Services,Contract Hire-Operating Leases,Vehicles - Contract Hire,JC101,07/07/2020,628524,1144,REVENUE,LINKS TAXIS,100546
North East Lincolnshire Council,http://statistics.data.gov.uk/id/local-authority/00FC),Children & Family Services,Ass Dir - Education,Access And Education Services,Contract Hire-Operating Leases,Vehicles - Contract Hire,JC101,07/07/2020,628544,1364,REVENUE,LINKS TAXIS,100546
North East Lincolnshire Council,http://statistics.data.gov.uk/id/local-authority/00FC),Children & Family Services,Ass Dir - Education,Access And Education Services,Contract Hire-Operating Leases,Vehicles - Contract Hire,JC101,22/07/2020,629955,1056,REVENUE,WATAXIS,141297
North East Lincolnshire Council,http://statistics.data.gov.uk/id/local-authority/00FC),Children & Family Services,Ass Dir - Education,Access And Education Services,Contract Hire-Operating Leases,Vehicles - Contract Hire,JC101,07/07/2020,628394,1364,REVENUE,LINKS TAXIS,100546
North East Lincolnshire Council,http://statistics.data.gov.uk/id/local-authority/00FC),Children & Family Services,Ass Dir - Education,Access And Education Services,Contract Hire-Operating Leases,Vehicles - Contract Hire,JC101,17/07/2020,630020,880,REVENUE,WATAXIS,141297
North East Lincolnshire Council,http://statistics.data.gov.uk/id/local-authority/00FC),Children & Family Services,Ass Dir - Education,Access And Education Services,Contract Hire-Operating Leases,Vehicles - Contract Hire,JC101,07/07/2020,628534,792,REVENUE,LINKS TAXIS,100546
North East Lincolnshire Council,http://statistics.data.gov.uk/id/local-authority/00FC),Children & Family Services,Ass Dir - Education,Access And Education Services,Contract Hire-Operating Leases,Vehicles - Contract Hire,JC101,07/07/2020,628267,792,REVENUE,AA RADIO CARS LTD,101222
North East Lincolnshire Council,http://statistics.data.gov.uk/id/local-authority/00FC),Children & Family Services,Ass Dir - Education,Access And Education Services,Contract Hire-Operating Leases,Vehicles - Contract Hire,JC101,22/07/2020,630979,588,REVENUE,COXONS CARS LIMITED,100578
North East Lincolnshire Council,http://statistics.data.gov.uk/id/local-authority/00FC),Children & Family Services,Ass Dir - Education,Access And Education Services,Contract Hire-Operating Leases,Vehicles - Contract Hire,JC101,07/07/2020,628531,704,REVENUE,LINKS TAXIS,100546
North East Lincolnshire Council,http://statistics.data.gov.uk/id/local-authority/00FC),Children & Family Services,Ass Dir - Education,Access And Education Services,Contract Hire-Operating Leases,Vehicles - Contract Hire,JC101,07/07/2020,628479,726,REVENUE,MINICABS CLEETHORPES (LINCS) LTD,102124
North East Lincolnshire Council,http://statistics.data.gov.uk/id/local-authority/00FC),Children & Family Services,Ass Dir - Education,Access And Education Services,Contract Hire-Operating Leases,Vehicles - Contract Hire,JC101,30/07/2020,631804,500,REVENUE,MINICABS CLEETHORPES (LINCS) LTD,102124
North East Lincolnshire Council,http://statistics.data.gov.uk/id/local-authority/00FC),Children & Family Services,Ass Dir - Education,Access And Education Services,Contract Hire-Operating Leases,Vehicles - Contract Hire,JC101,07/07/2020,628525,2156,REVENUE,LINKS TAXIS,100546
North East Lincolnshire Council,http://statistics.data.gov.uk/id/local-authority/00FC),Children & Family Services,Ass Dir - Education,Access And Education Services,Contract Hire-Operating Leases,Vehicles - Contract Hire,JC101,07/07/2020,628471,858,REVENUE,LINKS TAXIS,100546
North East Lincolnshire Council,http://statistics.data.gov.uk/id/local-authority/00FC),Children & Family Services,Ass Dir - Education,Access And Education Services,Contract Hire-Operating Leases,Vehicles - Contract Hire,JC101,06/07/2020,628268,1210,REVENUE,AA RADIO CARS LTD,101222
North East Lincolnshire Council,http://statistics.data.gov.uk/id/local-authority/00FC),Children & Family Services,Ass Dir - Education,Access And Education Services,Contract Hire-Operating Leases,Vehicles - Contract Hire,JC101,07/07/2020,628392,3014,REVENUE,LINKS TAXIS,100546
North East Lincolnshire Council,http://statistics.data.gov.uk/id/local-authority/00FC),Children & Family Services,Ass Dir - Education,Access And Education Services,Contract Hire-Operating Leases,Vehicles - Contract Hire,JC101,01/07/2020,627708,1884,REVENUE,REDACTED PERSONAL INFORMATION,REDACTED PERSONAL INFORMATION
North East Lincolnshire Council,http://statistics.data.gov.uk/id/local-authority/00FC),Children & Family Services,Ass Dir - Education,Access And Education Services,Contract Hire-Operating Leases,Vehicles - Contract Hire,JC101,07/07/2020,628487,1401.4,REVENUE,MINICABS CLEETHORPES (LINCS) LTD,102124
North East Lincolnshire Council,http://statistics.data.gov.uk/id/local-authority/00FC),Children & Family Services,Ass Dir - Education,Access And Education Services,Contract Hire-Operating Leases,Vehicles - Contract Hire,JC101,30/07/2020,631803,828.1,REVENUE,MINICABS CLEETHORPES (LINCS) LTD,102124
North East Lincolnshire Council,http://statistics.data.gov.uk/id/local-authority/00FC),Children & Family Services,Ass Dir - Education,Access And Education Services,Contract Hire-Operating Leases,Vehicles - Contract Hire,JC101,07/07/2020,628535,1100,REVENUE,MINICABS CLEETHORPES (LINCS) LTD,102124
North East Lincolnshire Council,http://statistics.data.gov.uk/id/local-authority/00FC),Children & Family Services,Ass Dir - Education,Access And Education Services,Contract Hire-Operating Leases,Vehicles - Contract Hire,JC101,30/07/2020,631802,350,REVENUE,MINICABS CLEETHORPES (LINCS) LTD,102124
North East Lincolnshire Council,http://statistics.data.gov.uk/id/local-authority/00FC),Children & Family Services,Ass Dir - Education,Access And Education Services,Contract Hire-Operating Leases,Vehicles - Contract Hire,JC101,20/07/2020,630507,264,REVENUE,COXONS CARS LIMITED,100578
North East Lincolnshire Council,http://statistics.data.gov.uk/id/local-authority/00FC),Children & Family Services,Ass Dir - Education,Access And Education Services,Contract Hire-Operating Leases,Vehicles - Contract Hire,JC101,07/07/2020,628482,814,REVENUE,LINKS TAXIS,100546
North East Lincolnshire Council,http://statistics.data.gov.uk/id/local-authority/00FC),Children & Family Services,Ass Dir - Education,Access And Education Services,Contract Hire-Operating Leases,Vehicles - Contract Hire,JC101,07/07/2020,628326,846,REVENUE,AA RADIO CARS LTD,101222
North East Lincolnshire Council,http://statistics.data.gov.uk/id/local-authority/00FC),Children & Family Services,Ass Dir - Education,Access And Education Services,Contract Hire-Operating Leases,Vehicles - Contract Hire,JC101,07/07/2020,628280,846,REVENUE,AA RADIO CARS LTD,101222
North East Lincolnshire Council,http://statistics.data.gov.uk/id/local-authority/00FC),Children & Family Services,Ass Dir - Education,Access And Education Services,Contract Hire-Operating Leases,Vehicles - Contract Hire,JC101,06/07/2020,628271,846,REVENUE,AA RADIO CARS LTD,101222
North East Lincolnshire Council,http://statistics.data.gov.uk/id/local-authority/00FC),Children & Family Services,Ass Dir - Education,Access And Education Services,Contract Hire-Operating Leases,Vehicles - Contract Hire,JC101,07/07/2020,628327,855,REVENUE,AA RADIO CARS LTD,101222
North East Lincolnshire Council,http://statistics.data.gov.uk/id/local-authority/00FC),Children & Family Services,Ass Dir - Education,Access And Education Services,Contract Hire-Operating Leases,Vehicles - Contract Hire,JC101,07/07/2020,628532,1694,REVENUE,LINKS TAXIS,100546
North East Lincolnshire Council,http://statistics.data.gov.uk/id/local-authority/00FC),Children & Family Services,Ass Dir - Education,Access And Education Services,Contract Hire-Operating Leases,Vehicles - Contract Hire,JC101,07/07/2020,628528,510,REVENUE,LINKS TAXIS,100546
North East Lincolnshire Council,http://statistics.data.gov.uk/id/local-authority/00FC),Children & Family Services,Ass Dir - Education,Access And Education Services,Contract Hire-Operating Leases,Vehicles - Contract Hire,JC101,07/07/2020,628467,352,REVENUE,LINKS TAXIS,100546
North East Lincolnshire Council,http://statistics.data.gov.uk/id/local-authority/00FC),Children & Family Services,Ass Dir - Education,Access And Education Services,Contract Hire-Operating Leases,Vehicles - Contract Hire,JC101,07/07/2020,628543,2134,REVENUE,LINKS TAXIS,100546
North East Lincolnshire Council,http://statistics.data.gov.uk/id/local-authority/00FC),Children & Family Services,Ass Dir - Education,Access And Education Services,Direct Employee Expenses,Agency Supply Teachers,EA104,09/07/2020,629108,600,REVENUE,ADRIAN CLARKE,132706
North East Lincolnshire Council,http://statistics.data.gov.uk/id/local-authority/00FC),Children & Family Services,Ass Dir - Education,Access And Education Services,Direct Employee Expenses,Agency Supply Teachers,EA104,13/07/2020,629566,1800,REVENUE,BENJAMIN NUNN,143807
North East Lincolnshire Council,http://statistics.data.gov.uk/id/local-authority/00FC),Children & Family Services,Ass Dir - Education,Access And Education Services,Direct Employee Expenses,Agency Supply Teachers,EA104,13/07/2020,629514,600,REVENUE,MATT GIDLOW,103864
North East Lincolnshire Council,http://statistics.data.gov.uk/id/local-authority/00FC),Children & Family Services,Ass Dir - Education,Access And Education Services,Direct Employee Expenses,Agency Supply Teachers,EA104,13/07/2020,629515,300,REVENUE,MATT GIDLOW,103864
North East Lincolnshire Council,http://statistics.data.gov.uk/id/local-authority/00FC),Children & Family Services,Ass Dir - Education,Access And Education Services,Direct Employee Expenses,Agency Supply Teachers,EA104,15/07/2020,629110,600,REVENUE,MIKE SELLARS,102161
North East Lincolnshire Council,http://statistics.data.gov.uk/id/local-authority/00FC),Children & Family Services,Ass Dir - Education,Access And Education Services,Direct Employee Expenses,Agency Supply Teachers,EA104,14/07/2020,629657,540,REVENUE,DAVID J COOK,100937
North East Lincolnshire Council,http://statistics.data.gov.uk/id/local-authority/00FC),Children & Family Services,Ass Dir - Education,Access And Education Services,Direct Employee Expenses,Agency Supply Teachers,EA104,01/07/2020,627721,697.5,REVENUE,JACQUELINE KIRWIN,107311
North East Lincolnshire Council,http://statistics.data.gov.uk/id/local-authority/00FC),Children & Family Services,Ass Dir - Education,Access And Education Services,Direct Employee Expenses,Agency Supply Teachers,EA104,09/07/2020,629111,810,REVENUE,MIKE SELLARS,102161
North East Lincolnshire Council,http://statistics.data.gov.uk/id/local-authority/00FC),Children & Family Services,Ass Dir - Education,Access And Education Services,Direct Employee Expenses,Agency Supply Teachers,EA104,15/07/2020,629619,390,REVENUE,ADRIAN CLARKE,132706
North East Lincolnshire Council,http://statistics.data.gov.uk/id/local-authority/00FC),Children & Family Services,Ass Dir - Education,Access And Education Services,Direct Employee Expenses,Agency Supply Teachers,EA104,21/07/2020,630471,375,REVENUE,MUSIC LINCS LTD,100944
North East Lincolnshire Council,http://statistics.data.gov.uk/id/local-authority/00FC),Children & Family Services,Ass Dir - Education,Access And Education Services,Direct Employee Expenses,Agency Supply Teachers,EA104,27/07/2020,631448,1300,REVENUE,JOANNE TOWNELL,103709
North East Lincolnshire Council,http://statistics.data.gov.uk/id/local-authority/00FC),Children & Family Services,Ass Dir - Education,Access And Education Services,Indirect Employee Expenses,Staff Training,EB122,20/07/2020,630423,445,REVENUE,SING UP,110186
North East Lincolnshire Council,http://statistics.data.gov.uk/id/local-authority/00FC),Children & Family Services,Ass Dir - Education,Access And Education Services,Print Stationery / Gen Off Exp,Publicity,LD105,22/07/2020,631053,900,REVENUE,EMMA MIDDLETON,105103
North East Lincolnshire Council,http://statistics.data.gov.uk/id/local-authority/00FC),Children & Family Services,Ass Dir - Education,Access And Education Services,Print Stationery / Gen Off Exp,Publicity,LD105,22/07/2020,631056,675,REVENUE,EMMA MIDDLETON,105103
North East Lincolnshire Council,http://statistics.data.gov.uk/id/local-authority/00FC),Children & Family Services,Ass Dir - Education,Access And Education Services,Other Agencies,Performers,PJ101,28/07/2020,631656,320,REVENUE,BENJAMIN NUNN,143807
North East Lincolnshire Council,http://statistics.data.gov.uk/id/local-authority/00FC),Children & Family Services,Ass Dir - Education,Access And Education Services,Other Agencies,Tuition,PJ112,07/07/2020,812044,250,REVENUE,REDACTED PERSONAL INFORMATION,REDACTED PERSONAL INFORMATION
North East Lincolnshire Council,http://statistics.data.gov.uk/id/local-authority/00FC),Children & Family Services,Ass Dir - Education,Access And Education Services,Other Agencies,Tuition,PJ112,08/07/2020,628324,1100,REVENUE,PROSPERO RECRUITMENT LTD,145278
North East Lincolnshire Council,http://statistics.data.gov.uk/id/local-authority/00FC),Children & Family Services,Ass Dir - Education,Access And Education Services,Other Agencies,Tuition,PJ112,07/07/2020,628508,550,REVENUE,SUE BURNHAM,145697
North East Lincolnshire Council,http://statistics.data.gov.uk/id/local-authority/00FC),Children & Family Services,Ass Dir - Education,Access And Education Services,Other Agencies,Tuition,PJ112,22/07/2020,631071,250,REVENUE,SUE BURNHAM,145697
North East Lincolnshire Council,http://statistics.data.gov.uk/id/local-authority/00FC),Children & Family Services,Ass Dir - Education,Access And Education Services,Other Agencies,Tuition,PJ112,20/07/2020,630592,1100,REVENUE,PROSPERO RECRUITMENT LTD,145278
North East Lincolnshire Council,http://statistics.data.gov.uk/id/local-authority/00FC),Children & Family Services,Ass Dir - Education,Access And Education Services,Other Agencies,Tuition,PJ112,20/07/2020,630593,1100,REVENUE,PROSPERO RECRUITMENT LTD,145278
North East Lincolnshire Council,http://statistics.data.gov.uk/id/local-authority/00FC),Children & Family Services,Ass Dir - Education,Access And Education Services,Other Agencies,Tuition,PJ112,24/07/2020,631351,525,REVENUE,LEARNING4LIFE-GY-CIC,144120
North East Lincolnshire Council,http://statistics.data.gov.uk/id/local-authority/00FC),Children & Family Services,Ass Dir - Education,Access And Education Services,Other Agencies,Tuition,PJ112,24/07/2020,631352,1237.5,REVENUE,LEARNING4LIFE-GY-CIC,144120
North East Lincolnshire Council,http://statistics.data.gov.uk/id/local-authority/00FC),Children & Family Services,Ass Dir - Education,Access And Education Services,Other Agencies,Tuition,PJ112,24/07/2020,631350,1375,REVENUE,LEARNING4LIFE-GY-CIC,144120
North East Lincolnshire Council,http://statistics.data.gov.uk/id/local-authority/00FC),Children & Family Services,Ass Dir - Education,Access And Education Services,Other Agencies,Tuition,PJ112,24/07/2020,631372,1375,REVENUE,LEARNING4LIFE-GY-CIC,144120
North East Lincolnshire Council,http://statistics.data.gov.uk/id/local-authority/00FC),Children & Family Services,Ass Dir - Education,Access And Education Services,Other Agencies,Tuition,PJ112,24/07/2020,631373,1406.25,REVENUE,LEARNING4LIFE-GY-CIC,144120
North East Lincolnshire Council,http://statistics.data.gov.uk/id/local-authority/00FC),Children & Family Services,Ass Dir - Education,Access And Education Services,Other Agencies,Tuition,PJ112,24/07/2020,631374,1462,REVENUE,LEARNING4LIFE-GY-CIC,144120
North East Lincolnshire Council,http://statistics.data.gov.uk/id/local-authority/00FC),Children & Family Services,Ass Dir - Education,Access And Education Services,Other Agencies,Tuition,PJ112,24/07/2020,631375,300,REVENUE,LEARNING4LIFE-GY-CIC,144120
North East Lincolnshire Council,http://statistics.data.gov.uk/id/local-authority/00FC),Children & Family Services,Ass Dir - Education,Access And Education Services,Other Agencies,Tuition,PJ112,24/07/2020,631371,300,REVENUE,LEARNING4LIFE-GY-CIC,144120
North East Lincolnshire Council,http://statistics.data.gov.uk/id/local-authority/00FC),Children & Family Services,Ass Dir - Education,Access And Education Services,Other Agencies,Tuition,PJ112,27/07/2020,631418,1100,REVENUE,PROSPERO RECRUITMENT LTD,145278
North East Lincolnshire Council,http://statistics.data.gov.uk/id/local-authority/00FC),Children & Family Services,Ass Dir - Education,Sen/Inclusion,Communications And Computing,Computer H/Ware - Purchases,LF105,03/07/2020,621893,2132.97,REVENUE,XMA LIMITED,100699
North East Lincolnshire Council,http://statistics.data.gov.uk/id/local-authority/00FC),Children & Family Services,Ass Dir - Education,Sen/Inclusion,Miscellaneous Expenses,Contingency Reserve,LL123,23/07/2020,631146,8550,REVENUE,THE CAMBRIDGE PARK ACADEMY,107472
North East Lincolnshire Council,http://statistics.data.gov.uk/id/local-authority/00FC),Children & Family Services,Ass Dir - Education,Sen/Inclusion,Miscellaneous Expenses,Contingency Reserve,LL123,09/07/2020,629116,3306.99,REVENUE,WELHOLME ACADEMY,127227
North East Lincolnshire Council,http://statistics.data.gov.uk/id/local-authority/00FC),Children & Family Services,Ass Dir - Education,Sen/Inclusion,Miscellaneous Expenses,Other Expenses General,LL119,23/07/2020,631152,4654,REVENUE,PHOENIX PARK ACADEMY,126685
North East Lincolnshire Council,http://statistics.data.gov.uk/id/local-authority/00FC),Children & Family Services,Ass Dir - Education,Sen/Inclusion,Miscellaneous Expenses,Other Expenses General,LL119,21/07/2020,630695,2250,REVENUE,ALDI STORES LTD,147003
North East Lincolnshire Council,http://statistics.data.gov.uk/id/local-authority/00FC),Children & Family Services,Ass Dir - Education,Sen/Inclusion,Indirect Employee Expenses,Staff Training,EB122,21/07/2020,630121,500,REVENUE,BEACON HOUSE PSYCHOLOGICAL SERVICES LTD,146949
North East Lincolnshire Council,http://statistics.data.gov.uk/id/local-authority/00FC),Children & Family Services,Ass Dir - Education,Sen/Inclusion,Indirect Employee Expenses,Staff Training,EB122,29/07/2020,631659,700,REVENUE,THE ASSOC OF EDUCATIONAL PSYCHOLOGISTS,145963
North East Lincolnshire Council,http://statistics.data.gov.uk/id/local-authority/00FC),Children & Family Services,Ass Dir - Education,Sen/Inclusion,Contributions To Provisions,Contributions - Other,LK103,03/07/2020,627971,900,REVENUE,COMMUNITY ACCORD,106613
North East Lincolnshire Council,http://statistics.data.gov.uk/id/local-authority/00FC),Children & Family Services,Ass Dir - Education,Sen/Inclusion,Contributions To Provisions,Contributions - Other,LK103,14/07/2020,629635,19625,REVENUE,BARNARDO SERVICES LTD,101050
North East Lincolnshire Council,http://statistics.data.gov.uk/id/local-authority/00FC),Children & Family Services,Ass Dir - Education,Sen/Inclusion,Equip / Furniture / Materials,Non-Teaching Resources,LA118,07/07/2020,628125,308.8,REVENUE,OFFICE FRIENDS LTD,102454
North East Lincolnshire Council,http://statistics.data.gov.uk/id/local-authority/00FC),Children & Family Services,Ass Dir - Education,Sen/Inclusion,Equip / Furniture / Materials,Teaching Materials,LA117,16/07/2020,629961,289.08,REVENUE,SHELVING PLUS LTD TRADE SYSTEMS,146979
North East Lincolnshire Council,http://statistics.data.gov.uk/id/local-authority/00FC),Children & Family Services,Ass Dir - Education,Sen/Inclusion,Miscellaneous Expenses,Other Expenses General,LL119,17/07/2020,629999,280,REVENUE,BRITISH ASSOCIATION OF TEACHERS OF THE DEAF,145154
North East Lincolnshire Council,http://statistics.data.gov.uk/id/local-authority/00FC),Children & Family Services,Ass Dir - Education,Sen/Inclusion,Other Local Authorities,Third Pp - Other Local Auth,PC101,03/07/2020,627977,1462,REVENUE,REDACTED PERSONAL INFORMATION,REDACTED PERSONAL INFORMATION
North East Lincolnshire Council,http://statistics.data.gov.uk/id/local-authority/00FC),Children & Family Services,Ass Dir - Education,Sen/Inclusion,Private Contractors,Third Party Prov - Private,PH101,20/07/2020,815839,620.36,REVENUE,REDACTED PERSONAL INFORMATION,REDACTED PERSONAL INFORMATION
North East Lincolnshire Council,http://statistics.data.gov.uk/id/local-authority/00FC),Children & Family Services,Ass Dir - Education,Sen/Inclusion,Private Contractors,Third Party Prov - Private,PH101,03/07/2020,627973,1732,REVENUE,DONCASTER DEAF TRUST,101268
North East Lincolnshire Council,http://statistics.data.gov.uk/id/local-authority/00FC),Children & Family Services,Ass Dir - Education,Sen/Inclusion,Private Contractors,Third Party Prov - Private,PH101,03/07/2020,627972,4668.66,REVENUE,DONCASTER DEAF TRUST,101268
North East Lincolnshire Council,http://statistics.data.gov.uk/id/local-authority/00FC),Children & Family Services,Ass Dir - Education,Sen/Inclusion,Private Contractors,Third Party Prov - Private,PH101,06/07/2020,627957,1121.9,REVENUE,LEARNING4LIFE-GY-CIC,144120
North East Lincolnshire Council,http://statistics.data.gov.uk/id/local-authority/00FC),Children & Family Services,Ass Dir - Education,Sen/Inclusion,Private Contractors,Third Party Prov - Private,PH101,06/07/2020,627960,1400.5,REVENUE,LEARNING4LIFE-GY-CIC,144120
North East Lincolnshire Council,http://statistics.data.gov.uk/id/local-authority/00FC),Children & Family Services,Ass Dir - Education,Sen/Inclusion,Private Contractors,Third Party Prov - Private,PH101,06/07/2020,627958,950.2,REVENUE,LEARNING4LIFE-GY-CIC,144120
North East Lincolnshire Council,http://statistics.data.gov.uk/id/local-authority/00FC),Children & Family Services,Ass Dir - Education,Sen/Inclusion,Private Contractors,Third Party Prov - Private,PH101,06/07/2020,627956,1269.2,REVENUE,LEARNING4LIFE-GY-CIC,144120
North East Lincolnshire Council,http://statistics.data.gov.uk/id/local-authority/00FC),Children & Family Services,Ass Dir - Education,Sen/Inclusion,Private Contractors,Third Party Prov - Private,PH101,06/07/2020,627959,1400.5,REVENUE,LEARNING4LIFE-GY-CIC,144120
North East Lincolnshire Council,http://statistics.data.gov.uk/id/local-authority/00FC),Children & Family Services,Ass Dir - Education,Sen/Inclusion,Private Contractors,Third Party Prov - Private,PH101,02/07/2020,627955,3124.7,REVENUE,LEARNING4LIFE-GY-CIC,144120
North East Lincolnshire Council,http://statistics.data.gov.uk/id/local-authority/00FC),Children & Family Services,Ass Dir - Education,Sen/Inclusion,Private Contractors,Third Party Prov - Private,PH101,13/07/2020,629564,5595,REVENUE,FRANKLIN COLLEGE,101073
North East Lincolnshire Council,http://statistics.data.gov.uk/id/local-authority/00FC),Children & Family Services,Ass Dir - Education,Sen/Inclusion,Private Contractors,Third Party Prov - Private,PH101,29/07/2020,631385,1121.9,REVENUE,LEARNING4LIFE-GY-CIC,144120
North East Lincolnshire Council,http://statistics.data.gov.uk/id/local-authority/00FC),Children & Family Services,Ass Dir - Education,Sen/Inclusion,Private Contractors,Third Party Prov - Private,PH101,29/07/2020,631383,1400.5,REVENUE,LEARNING4LIFE-GY-CIC,144120
North East Lincolnshire Council,http://statistics.data.gov.uk/id/local-authority/00FC),Children & Family Services,Ass Dir - Education,Sen/Inclusion,Private Contractors,Third Party Prov - Private,PH101,29/07/2020,631389,1586.5,REVENUE,LEARNING4LIFE-GY-CIC,144120
North East Lincolnshire Council,http://statistics.data.gov.uk/id/local-authority/00FC),Children & Family Services,Ass Dir - Education,Sen/Inclusion,Private Contractors,Third Party Prov - Private,PH101,29/07/2020,631390,2342.5,REVENUE,LEARNING4LIFE-GY-CIC,144120
North East Lincolnshire Council,http://statistics.data.gov.uk/id/local-authority/00FC),Children & Family Services,Ass Dir - Education,Sen/Inclusion,Private Contractors,Third Party Prov - Private,PH101,29/07/2020,631387,950.2,REVENUE,LEARNING4LIFE-GY-CIC,144120
North East Lincolnshire Council,http://statistics.data.gov.uk/id/local-authority/00FC),Children & Family Services,Ass Dir - Education,Sen/Inclusion,Private Contractors,Third Party Prov - Private,PH101,29/07/2020,631386,1462,REVENUE,LEARNING4LIFE-GY-CIC,144120
North East Lincolnshire Council,http://statistics.data.gov.uk/id/local-authority/00FC),Children & Family Services,Ass Dir - Education,Sen/Inclusion,Private Contractors,Third Party Prov - Private,PH101,29/07/2020,631384,1400.25,REVENUE,LEARNING4LIFE-GY-CIC,144120
North East Lincolnshire Council,http://statistics.data.gov.uk/id/local-authority/00FC),Children & Family Services,Ass Dir - Education,Sen/Inclusion,Miscellaneous Expenses,Contingency Reserve,LL123,23/07/2020,631153,1317,REVENUE,PHOENIX PARK ACADEMY,126685
North East Lincolnshire Council,http://statistics.data.gov.uk/id/local-authority/00FC),Children & Family Services,Ass Dir - Education,Sen/Inclusion,Miscellaneous Expenses,Contingency Reserve,LL123,23/07/2020,631155,15800,REVENUE,PHOENIX PARK ACADEMY,126685
North East Lincolnshire Council,http://statistics.data.gov.uk/id/local-authority/00FC),Children & Family Services,Ass Dir - Education,Sen/Inclusion,Miscellaneous Expenses,Contingency Reserve,LL123,23/07/2020,631154,44767,REVENUE,PHOENIX PARK ACADEMY,126685
North East Lincolnshire Council,http://statistics.data.gov.uk/id/local-authority/00FC),Children & Family Services,Ass Dir - Education,Sen/Inclusion,Miscellaneous Expenses,Contingency Reserve,LL123,23/07/2020,631157,26333,REVENUE,SEVENHILLS ACADEMY,128660
North East Lincolnshire Council,http://statistics.data.gov.uk/id/local-authority/00FC),Children & Family Services,Ass Dir - Education,Sen/Inclusion,Miscellaneous Expenses,Contingency Reserve,LL123,23/07/2020,631156,26333,REVENUE,SEVENHILLS ACADEMY,128660
North East Lincolnshire Council,http://statistics.data.gov.uk/id/local-authority/00FC),Children & Family Services,Ass Dir - Education,Sen/Inclusion,Contributions To Provisions,Contributions - Other,LK103,17/07/2020,630359,2925,REVENUE,WELLSPRING ACADEMY TRUST,143489
North East Lincolnshire Council,http://statistics.data.gov.uk/id/local-authority/00FC),Children & Family Services,Ass Dir - Education,Sen/Inclusion,Contributions To Provisions,Contributions - Third Sector,LK102,01/07/2020,626804,1317.5,REVENUE,TEACHING PERSONNEL LTD,101305
North East Lincolnshire Council,http://statistics.data.gov.uk/id/local-authority/00FC),Children & Family Services,Ass Dir - Education,Sen/Inclusion,Contributions To Provisions,Contributions - Third Sector,LK102,13/07/2020,629562,480,REVENUE,ECLIPSE GYMNASTICS CENTRE,145970
North East Lincolnshire Council,http://statistics.data.gov.uk/id/local-authority/00FC),Children & Family Services,Ass Dir - Education,Sen/Inclusion,Contributions To Provisions,Contributions - Third Sector,LK102,15/07/2020,629628,1546.25,REVENUE,TEACHING PERSONNEL LTD,101305
North East Lincolnshire Council,http://statistics.data.gov.uk/id/local-authority/00FC),Children & Family Services,Ass Dir - Education,Sen/Inclusion,Contributions To Provisions,Contributions - Third Sector,LK102,29/07/2020,631365,2250.15,REVENUE,TEACHING PERSONNEL LTD,101305
North East Lincolnshire Council,http://statistics.data.gov.uk/id/local-authority/00FC),Children & Family Services,Ass Dir - Education,Sen/Inclusion,Contributions To Provisions,Contributions - Third Sector,LK102,29/07/2020,631395,1764.65,REVENUE,TEACHING PERSONNEL LTD,101305
North East Lincolnshire Council,http://statistics.data.gov.uk/id/local-authority/00FC),Children & Family Services,Ass Dir - Education,Sen/Inclusion,Contributions To Provisions,Contributions - Third Sector,LK102,29/07/2020,631396,2955.5,REVENUE,TEACHING PERSONNEL LTD,101305
North East Lincolnshire Council,http://statistics.data.gov.uk/id/local-authority/00FC),Children & Family Services,Ass Dir - Education,Sen/Inclusion,Miscellaneous Expenses,Contingency Reserve,LL123,23/07/2020,631147,142929,REVENUE,THE CAMBRIDGE PARK ACADEMY,107472
North East Lincolnshire Council,http://statistics.data.gov.uk/id/local-authority/00FC),Children & Family Services,Ass Dir - Education,Sen/Inclusion,Miscellaneous Expenses,Contingency Reserve,LL123,23/07/2020,631148,112773,REVENUE,HUMBERSTON PARK SPECIAL SCHOOL,107911
North East Lincolnshire Council,http://statistics.data.gov.uk/id/local-authority/00FC),Children & Family Services,Ass Dir - Education,Sen/Inclusion,Miscellaneous Expenses,Other Expenses General,LL119,23/07/2020,631151,5833,REVENUE,EASTFIELD PRIMARY ACADEMY,121907
North East Lincolnshire Council,http://statistics.data.gov.uk/id/local-authority/00FC),Children & Family Services,Ass Dir - Education,Sen/Inclusion,Miscellaneous Expenses,Other Expenses General,LL119,23/07/2020,631149,1944.92,REVENUE,EASTFIELD PRIMARY ACADEMY,121907
North East Lincolnshire Council,http://statistics.data.gov.uk/id/local-authority/00FC),Children & Family Services,Ass Dir - Education,Sen/Inclusion,Miscellaneous Expenses,Other Expenses General,LL119,23/07/2020,631150,8750,REVENUE,EASTFIELD PRIMARY ACADEMY,121907
North East Lincolnshire Council,http://statistics.data.gov.uk/id/local-authority/00FC),Children & Family Services,Ass Dir - Education,Sen/Inclusion,Other Local Authorities,Third Pp - Other Local Auth,PC101,17/07/2020,630313,3840,REVENUE,REDACTED PERSONAL INFORMATION,REDACTED PERSONAL INFORMATION
North East Lincolnshire Council,http://statistics.data.gov.uk/id/local-authority/00FC),Children & Family Services,Ass Dir - Education,Sen/Inclusion,Other Local Authorities,Third Pp - Other Local Auth,PC101,16/07/2020,629991,2978.57,REVENUE,REDACTED PERSONAL INFORMATION,REDACTED PERSONAL INFORMATION
North East Lincolnshire Council,http://statistics.data.gov.uk/id/local-authority/00FC),Children & Family Services,Ass Dir - Education,Sen/Inclusion,Other Local Authorities,Third Pp - Other Local Auth,PC101,17/07/2020,630312,1189.29,REVENUE,REDACTED PERSONAL INFORMATION,REDACTED PERSONAL INFORMATION
North East Lincolnshire Council,http://statistics.data.gov.uk/id/local-authority/00FC),Children & Family Services,Ass Dir - Education,Sen/Inclusion,Other Local Authorities,Third Pp - Other Local Auth,PC101,17/07/2020,630329,205873.8,REVENUE,REDACTED PERSONAL INFORMATION,REDACTED PERSONAL INFORMATION
North East Lincolnshire Council,http://statistics.data.gov.uk/id/local-authority/00FC),Children & Family Services,Ass Dir - Education,Sen/Inclusion,Other Local Authorities,Third Pp - Other Local Auth,PC101,27/07/2020,631457,4830,REVENUE,REDACTED PERSONAL INFORMATION,REDACTED PERSONAL INFORMATION
North East Lincolnshire Council,http://statistics.data.gov.uk/id/local-authority/00FC),Children & Family Services,Ass Dir - Education,Sen/Inclusion,Other Local Authorities,Third Pp - Other Local Auth,PC101,17/07/2020,630328,10180,REVENUE,REDACTED PERSONAL INFORMATION,REDACTED PERSONAL INFORMATION
North East Lincolnshire Council,http://statistics.data.gov.uk/id/local-authority/00FC),Children & Family Services,Ass Dir - Education,Sen/Inclusion,Other Local Authorities,Third Pp - Other Local Auth,PC101,20/07/2020,630307,4725,REVENUE,REDACTED PERSONAL INFORMATION,REDACTED PERSONAL INFORMATION
North East Lincolnshire Council,http://statistics.data.gov.uk/id/local-authority/00FC),Children & Family Services,Ass Dir - Education,Sen/Inclusion,Other Local Authorities,Third Pp - Other Local Auth,PC101,20/07/2020,630303,4725,REVENUE,REDACTED PERSONAL INFORMATION,REDACTED PERSONAL INFORMATION
North East Lincolnshire Council,http://statistics.data.gov.uk/id/local-authority/00FC),Children & Family Services,Ass Dir - Education,Sen/Inclusion,Other Local Authorities,Third Pp - Other Local Auth,PC101,20/07/2020,630306,4725,REVENUE,REDACTED PERSONAL INFORMATION,REDACTED PERSONAL INFORMATION
North East Lincolnshire Council,http://statistics.data.gov.uk/id/local-authority/00FC),Children & Family Services,Ass Dir - Education,Sen/Inclusion,Other Local Authorities,Third Pp - Other Local Auth,PC101,20/07/2020,630305,4725,REVENUE,REDACTED PERSONAL INFORMATION,REDACTED PERSONAL INFORMATION
North East Lincolnshire Council,http://statistics.data.gov.uk/id/local-authority/00FC),Children & Family Services,Ass Dir - Education,Sen/Inclusion,Other Local Authorities,Third Pp - Other Local Auth,PC101,20/07/2020,630304,4725,REVENUE,REDACTED PERSONAL INFORMATION,REDACTED PERSONAL INFORMATION
North East Lincolnshire Council,http://statistics.data.gov.uk/id/local-authority/00FC),Children & Family Services,Ass Dir - Education,Sen/Inclusion,Other Local Authorities,Third Pp - Other Local Auth,PC101,20/07/2020,630302,4725,REVENUE,REDACTED PERSONAL INFORMATION,REDACTED PERSONAL INFORMATION
North East Lincolnshire Council,http://statistics.data.gov.uk/id/local-authority/00FC),Children & Family Services,Ass Dir - Education,Sen/Inclusion,Other Local Authorities,Third Pp - Other Local Auth,PC101,20/07/2020,630301,4725,REVENUE,REDACTED PERSONAL INFORMATION,REDACTED PERSONAL INFORMATION
North East Lincolnshire Council,http://statistics.data.gov.uk/id/local-authority/00FC),Children & Family Services,Ass Dir - Education,Sen/Inclusion,Other Local Authorities,Third Pp - Other Local Auth,PC101,20/07/2020,630300,4725,REVENUE,REDACTED PERSONAL INFORMATION,REDACTED PERSONAL INFORMATION
North East Lincolnshire Council,http://statistics.data.gov.uk/id/local-authority/00FC),Children & Family Services,Ass Dir - Education,Sen/Inclusion,Other Local Authorities,Third Pp - Other Local Auth,PC101,14/07/2020,629632,4840,REVENUE,REDACTED PERSONAL INFORMATION,REDACTED PERSONAL INFORMATION
North East Lincolnshire Council,http://statistics.data.gov.uk/id/local-authority/00FC),Children & Family Services,Ass Dir - Education,Sen/Inclusion,Other Local Authorities,Third Pp - Other Local Auth,PC101,15/07/2020,629630,4308,REVENUE,REDACTED PERSONAL INFORMATION,REDACTED PERSONAL INFORMATION
North East Lincolnshire Council,http://statistics.data.gov.uk/id/local-authority/00FC),Children & Family Services,Ass Dir - Education,Sen/Inclusion,Other Local Authorities,Third Pp - Other Local Auth,PC101,21/07/2020,630684,3330,REVENUE,REDACTED PERSONAL INFORMATION,REDACTED PERSONAL INFORMATION
North East Lincolnshire Council,http://statistics.data.gov.uk/id/local-authority/00FC),Children & Family Services,Ass Dir - Education,Sen/Inclusion,Other Local Authorities,Third Pp - Other Local Auth,PC101,21/07/2020,630683,3330,REVENUE,REDACTED PERSONAL INFORMATION,REDACTED PERSONAL INFORMATION
North East Lincolnshire Council,http://statistics.data.gov.uk/id/local-authority/00FC),Children & Family Services,Ass Dir - Education,Sen/Inclusion,Other Local Authorities,Third Pp - Other Local Auth,PC101,21/07/2020,630682,3330,REVENUE,REDACTED PERSONAL INFORMATION,REDACTED PERSONAL INFORMATION
North East Lincolnshire Council,http://statistics.data.gov.uk/id/local-authority/00FC),Children & Family Services,Ass Dir - Education,Sen/Inclusion,Other Local Authorities,Third Pp - Other Local Auth,PC101,21/07/2020,630705,3330,REVENUE,REDACTED PERSONAL INFORMATION,REDACTED PERSONAL INFORMATION
North East Lincolnshire Council,http://statistics.data.gov.uk/id/local-authority/00FC),Children & Family Services,Ass Dir - Education,Sen/Inclusion,Other Local Authorities,Third Pp - Other Local Auth,PC101,21/07/2020,630685,3330,REVENUE,REDACTED PERSONAL INFORMATION,REDACTED PERSONAL INFORMATION
North East Lincolnshire Council,http://statistics.data.gov.uk/id/local-authority/00FC),Children & Family Services,Ass Dir - Education,Sen/Inclusion,Other Local Authorities,Third Pp - Other Local Auth,PC101,21/07/2020,630688,3330,REVENUE,REDACTED PERSONAL INFORMATION,REDACTED PERSONAL INFORMATION
North East Lincolnshire Council,http://statistics.data.gov.uk/id/local-authority/00FC),Children & Family Services,Ass Dir - Education,Sen/Inclusion,Other Local Authorities,Third Pp - Other Local Auth,PC101,21/07/2020,630687,3330,REVENUE,REDACTED PERSONAL INFORMATION,REDACTED PERSONAL INFORMATION
North East Lincolnshire Council,http://statistics.data.gov.uk/id/local-authority/00FC),Children & Family Services,Ass Dir - Education,Sen/Inclusion,Other Local Authorities,Third Pp - Other Local Auth,PC101,21/07/2020,630686,3330,REVENUE,REDACTED PERSONAL INFORMATION,REDACTED PERSONAL INFORMATION
North East Lincolnshire Council,http://statistics.data.gov.uk/id/local-authority/00FC),Children & Family Services,Ass Dir - Education,Sen/Inclusion,Other Local Authorities,Third Pp - Other Local Auth,PC101,21/07/2020,630706,9050,REVENUE,REDACTED PERSONAL INFORMATION,REDACTED PERSONAL INFORMATION
North East Lincolnshire Council,http://statistics.data.gov.uk/id/local-authority/00FC),Children & Family Services,Ass Dir - Education,Sen/Inclusion,Other Local Authorities,Third Pp - Other Local Auth,PC101,21/07/2020,630676,8750.96,REVENUE,REDACTED PERSONAL INFORMATION,REDACTED PERSONAL INFORMATION
North East Lincolnshire Council,http://statistics.data.gov.uk/id/local-authority/00FC),Children & Family Services,Ass Dir - Education,Sen/Inclusion,Other Local Authorities,Third Pp - Other Local Auth,PC101,21/07/2020,630671,8750.96,REVENUE,REDACTED PERSONAL INFORMATION,REDACTED PERSONAL INFORMATION
North East Lincolnshire Council,http://statistics.data.gov.uk/id/local-authority/00FC),Children & Family Services,Ass Dir - Education,Sen/Inclusion,Other Local Authorities,Third Pp - Other Local Auth,PC101,21/07/2020,630677,9042.66,REVENUE,REDACTED PERSONAL INFORMATION,REDACTED PERSONAL INFORMATION
North East Lincolnshire Council,http://statistics.data.gov.uk/id/local-authority/00FC),Children & Family Services,Ass Dir - Education,Sen/Inclusion,Other Local Authorities,Third Pp - Other Local Auth,PC101,21/07/2020,630696,5216.92,REVENUE,REDACTED PERSONAL INFORMATION,REDACTED PERSONAL INFORMATION
North East Lincolnshire Council,http://statistics.data.gov.uk/id/local-authority/00FC),Children & Family Services,Ass Dir - Education,Sen/Inclusion,Other Local Authorities,Third Pp - Other Local Auth,PC101,27/07/2020,631415,142332.3,REVENUE,REDACTED PERSONAL INFORMATION,REDACTED PERSONAL INFORMATION
North East Lincolnshire Council,http://statistics.data.gov.uk/id/local-authority/00FC),Children & Family Services,Ass Dir - Education,Sen/Inclusion,Other Local Authorities,Third Pp - Other Local Auth,PC101,13/07/2020,629561,375,REVENUE,REDACTED PERSONAL INFORMATION,REDACTED PERSONAL INFORMATION
North East Lincolnshire Council,http://statistics.data.gov.uk/id/local-authority/00FC),Children & Family Services,Ass Dir - Education,Sen/Inclusion,Other Local Authorities,Third Pp - Other Local Auth,PC101,21/07/2020,630699,27473,REVENUE,REDACTED PERSONAL INFORMATION,REDACTED PERSONAL INFORMATION
North East Lincolnshire Council,http://statistics.data.gov.uk/id/local-authority/00FC),Children & Family Services,Ass Dir - Education,Sen/Inclusion,Other Local Authorities,Third Pp - Other Local Auth,PC101,21/07/2020,630707,13100,REVENUE,REDACTED PERSONAL INFORMATION,REDACTED PERSONAL INFORMATION
North East Lincolnshire Council,http://statistics.data.gov.uk/id/local-authority/00FC),Children & Family Services,Ass Dir - Education,School Improvement,Contributions To Provisions,Contributions - Other,LK103,09/07/2020,629012,615,REVENUE,EASTFIELD PRIMARY ACADEMY,121907
North East Lincolnshire Council,http://statistics.data.gov.uk/id/local-authority/00FC),Children & Family Services,Ass Dir - Education,School Improvement,Contributions To Provisions,Contributions - Other,LK103,09/07/2020,628996,615,REVENUE,HEALING VILLAGE NURSERY,101096
North East Lincolnshire Council,http://statistics.data.gov.uk/id/local-authority/00FC),Children & Family Services,Ass Dir - Education,School Improvement,Contributions To Provisions,Contributions - Other,LK103,09/07/2020,628999,1230,REVENUE,ST PETERS CHILDREN CENTRE,101322
North East Lincolnshire Council,http://statistics.data.gov.uk/id/local-authority/00FC),Children & Family Services,Ass Dir - Education,School Improvement,Private Contractors,Day Care Placements,PH111,09/07/2020,629014,542.64,REVENUE,HANNAH TOFTON - LITTLE LAMBS CHILDMINDER,123304
North East Lincolnshire Council,http://statistics.data.gov.uk/id/local-authority/00FC),Children & Family Services,Ass Dir - Education,School Improvement,Private Contractors,Day Care Placements,PH111,09/07/2020,629023,442.68,REVENUE,KATIE ROBBINS,143660
North East Lincolnshire Council,http://statistics.data.gov.uk/id/local-authority/00FC),Children & Family Services,Ass Dir - Education,School Improvement,Private Contractors,Day Care Placements,PH111,09/07/2020,629003,783.36,REVENUE,CLEETHORPES CHILDCARE,101591
North East Lincolnshire Council,http://statistics.data.gov.uk/id/local-authority/00FC),Children & Family Services,Ass Dir - Education,School Improvement,Private Contractors,Day Care Placements,PH111,09/07/2020,629017,1504.8,REVENUE,WOODLANDS ACADEMY,132649
North East Lincolnshire Council,http://statistics.data.gov.uk/id/local-authority/00FC),Children & Family Services,Ass Dir - Education,School Improvement,Other Agencies,Nursery Educ Fund - Standard,PJ139,09/07/2020,628912,771.12,REVENUE,ALISON'S CHILDMINDING SERVICES,119740
North East Lincolnshire Council,http://statistics.data.gov.uk/id/local-authority/00FC),Children & Family Services,Ass Dir - Education,School Improvement,Other Agencies,Nursery Educ Fund - Standard,PJ139,09/07/2020,628952,321.3,REVENUE,MRS ALISON PARKER,132521
North East Lincolnshire Council,http://statistics.data.gov.uk/id/local-authority/00FC),Children & Family Services,Ass Dir - Education,School Improvement,Other Agencies,Nursery Educ Fund - Standard,PJ139,09/07/2020,628928,257.04,REVENUE,ANGELA MAYER,125119
North East Lincolnshire Council,http://statistics.data.gov.uk/id/local-authority/00FC),Children & Family Services,Ass Dir - Education,School Improvement,Other Agencies,Nursery Educ Fund - Standard,PJ139,09/07/2020,628911,1300.95,REVENUE,MISS AMANDA YOUNG,119739
North East Lincolnshire Council,http://statistics.data.gov.uk/id/local-authority/00FC),Children & Family Services,Ass Dir - Education,School Improvement,Other Agencies,Nursery Educ Fund - Standard,PJ139,09/07/2020,628841,14310.45,REVENUE,FOR UNDER FIVES LTD,100647
North East Lincolnshire Council,http://statistics.data.gov.uk/id/local-authority/00FC),Children & Family Services,Ass Dir - Education,School Improvement,Other Agencies,Nursery Educ Fund - Standard,PJ139,09/07/2020,628895,26992.35,REVENUE,BURSAR PRIMARY ACADEMY,111550
North East Lincolnshire Council,http://statistics.data.gov.uk/id/local-authority/00FC),Children & Family Services,Ass Dir - Education,School Improvement,Other Agencies,Nursery Educ Fund - Standard,PJ139,09/07/2020,628873,26992.35,REVENUE,BUTTERFLIES DAY NURSERY,101694
North East Lincolnshire Council,http://statistics.data.gov.uk/id/local-authority/00FC),Children & Family Services,Ass Dir - Education,School Improvement,Other Agencies,Nursery Educ Fund - Standard,PJ139,09/07/2020,628957,13167,REVENUE,CAMPDEN KIDS LTD,132975
North East Lincolnshire Council,http://statistics.data.gov.uk/id/local-authority/00FC),Children & Family Services,Ass Dir - Education,School Improvement,Other Agencies,Nursery Educ Fund - Standard,PJ139,09/07/2020,628929,15142.05,REVENUE,CANON PETER HALL CE PRIMARY ACADEMY,126646
North East Lincolnshire Council,http://statistics.data.gov.uk/id/local-authority/00FC),Children & Family Services,Ass Dir - Education,School Improvement,Other Agencies,Nursery Educ Fund - Standard,PJ139,09/07/2020,628846,21067.2,REVENUE,FOR UNDER FIVES LTD,100647
North East Lincolnshire Council,http://statistics.data.gov.uk/id/local-authority/00FC),Children & Family Services,Ass Dir - Education,School Improvement,Other Agencies,Nursery Educ Fund - Standard,PJ139,09/07/2020,628858,31187.52,REVENUE,THE CHILDRENS HOUSE,101141
North East Lincolnshire Council,http://statistics.data.gov.uk/id/local-authority/00FC),Children & Family Services,Ass Dir - Education,School Improvement,Other Agencies,Nursery Educ Fund - Standard,PJ139,09/07/2020,628975,642.6,REVENUE,CHRISTIANNA HOCKNEY,143657
North East Lincolnshire Council,http://statistics.data.gov.uk/id/local-authority/00FC),Children & Family Services,Ass Dir - Education,School Improvement,Other Agencies,Nursery Educ Fund - Standard,PJ139,09/07/2020,628968,2570.4,REVENUE,CLARE HOLNESS,140793
North East Lincolnshire Council,http://statistics.data.gov.uk/id/local-authority/00FC),Children & Family Services,Ass Dir - Education,School Improvement,Other Agencies,Nursery Educ Fund - Standard,PJ139,09/07/2020,628960,771.12,REVENUE,DEBBIE SPACEY,133789
North East Lincolnshire Council,http://statistics.data.gov.uk/id/local-authority/00FC),Children & Family Services,Ass Dir - Education,School Improvement,Other Agencies,Nursery Educ Fund - Standard,PJ139,09/07/2020,628919,21420,REVENUE,EASTFIELD PRIMARY ACADEMY,121907
North East Lincolnshire Council,http://statistics.data.gov.uk/id/local-authority/00FC),Children & Family Services,Ass Dir - Education,School Improvement,Other Agencies,Nursery Educ Fund - Standard,PJ139,09/07/2020,628887,3984.12,REVENUE,EAST RAVENDALE C OF E PRIMARY SCHOOL ACADEMY,109167
North East Lincolnshire Council,http://statistics.data.gov.uk/id/local-authority/00FC),Children & Family Services,Ass Dir - Education,School Improvement,Other Agencies,Nursery Educ Fund - Standard,PJ139,09/07/2020,628896,9216.9,REVENUE,EDWARD HENEAGE PRIMARY (ACADEMY),111742
North East Lincolnshire Council,http://statistics.data.gov.uk/id/local-authority/00FC),Children & Family Services,Ass Dir - Education,School Improvement,Other Agencies,Nursery Educ Fund - Standard,PJ139,09/07/2020,628949,30284.1,REVENUE,ELLISTON PRIMARY ACADEMY,129629
North East Lincolnshire Council,http://statistics.data.gov.uk/id/local-authority/00FC),Children & Family Services,Ass Dir - Education,School Improvement,Other Agencies,Nursery Educ Fund - Standard,PJ139,09/07/2020,628959,1606.5,REVENUE,EMMA BRYAN,133307
North East Lincolnshire Council,http://statistics.data.gov.uk/id/local-authority/00FC),Children & Family Services,Ass Dir - Education,School Improvement,Other Agencies,Nursery Educ Fund - Standard,PJ139,09/07/2020,628988,13278.98,REVENUE,EXPLOROSITY EDUCATION LTD,145026
North East Lincolnshire Council,http://statistics.data.gov.uk/id/local-authority/00FC),Children & Family Services,Ass Dir - Education,School Improvement,Other Agencies,Nursery Educ Fund - Standard,PJ139,09/07/2020,628948,18121.32,REVENUE,FAIRFIELD PRIMARY ACADEMY,129030
North East Lincolnshire Council,http://statistics.data.gov.uk/id/local-authority/00FC),Children & Family Services,Ass Dir - Education,School Improvement,Other Agencies,Nursery Educ Fund - Standard,PJ139,09/07/2020,628970,1713.6,REVENUE,MRS FAY L RENSHAW,141559
North East Lincolnshire Council,http://statistics.data.gov.uk/id/local-authority/00FC),Children & Family Services,Ass Dir - Education,School Improvement,Other Agencies,Nursery Educ Fund - Standard,PJ139,09/07/2020,628946,6583.5,REVENUE,FREESTON TOTS PRESCHOOL,128592
North East Lincolnshire Council,http://statistics.data.gov.uk/id/local-authority/00FC),Children & Family Services,Ass Dir - Education,School Improvement,Other Agencies,Nursery Educ Fund - Standard,PJ139,09/07/2020,628864,22383.9,REVENUE,FIRST STEPS GRIMSBY LIMITED,101411
North East Lincolnshire Council,http://statistics.data.gov.uk/id/local-authority/00FC),Children & Family Services,Ass Dir - Education,School Improvement,Other Agencies,Nursery Educ Fund - Standard,PJ139,09/07/2020,628930,658.35,REVENUE,FIRST STEPS WITH SURE START,126658
North East Lincolnshire Council,http://statistics.data.gov.uk/id/local-authority/00FC),Children & Family Services,Ass Dir - Education,School Improvement,Other Agencies,Nursery Educ Fund - Standard,PJ139,09/07/2020,628908,22778.91,REVENUE,HUMBERSTON PRE SCHOOL,114491
North East Lincolnshire Council,http://statistics.data.gov.uk/id/local-authority/00FC),Children & Family Services,Ass Dir - Education,School Improvement,Other Agencies,Nursery Educ Fund - Standard,PJ139,09/07/2020,628964,11058.08,REVENUE,GREAT COATES PRIMARY ACADEMY,134467
North East Lincolnshire Council,http://statistics.data.gov.uk/id/local-authority/00FC),Children & Family Services,Ass Dir - Education,School Improvement,Other Agencies,Nursery Educ Fund - Standard,PJ139,09/07/2020,628927,1285.2,REVENUE,HANNAH TOFTON - LITTLE LAMBS CHILDMINDER,123304
North East Lincolnshire Council,http://statistics.data.gov.uk/id/local-authority/00FC),Children & Family Services,Ass Dir - Education,School Improvement,Other Agencies,Nursery Educ Fund - Standard,PJ139,09/07/2020,628838,17992.8,REVENUE,FOR UNDER FIVES LTD,100647
North East Lincolnshire Council,http://statistics.data.gov.uk/id/local-authority/00FC),Children & Family Services,Ass Dir - Education,School Improvement,Other Agencies,Nursery Educ Fund - Standard,PJ139,09/07/2020,628857,18078.48,REVENUE,HEALING VILLAGE NURSERY,101096
North East Lincolnshire Council,http://statistics.data.gov.uk/id/local-authority/00FC),Children & Family Services,Ass Dir - Education,School Improvement,Other Agencies,Nursery Educ Fund - Standard,PJ139,09/07/2020,628945,4498.2,REVENUE,ELLIE TOTS CHILDMINDING SERVICES,128251
North East Lincolnshire Council,http://statistics.data.gov.uk/id/local-authority/00FC),Children & Family Services,Ass Dir - Education,School Improvement,Other Agencies,Nursery Educ Fund - Standard,PJ139,09/07/2020,628872,7746.59,REVENUE,CLEETHORPES CHILDCARE,101591
North East Lincolnshire Council,http://statistics.data.gov.uk/id/local-authority/00FC),Children & Family Services,Ass Dir - Education,School Improvement,Other Agencies,Nursery Educ Fund - Standard,PJ139,09/07/2020,628985,428.4,REVENUE,HANNAH SMITH,144932
North East Lincolnshire Council,http://statistics.data.gov.uk/id/local-authority/00FC),Children & Family Services,Ass Dir - Education,School Improvement,Other Agencies,Nursery Educ Fund - Standard,PJ139,09/07/2020,628951,25704,REVENUE,HUMBERSTON CLOVERFIELDS ACADEMY NURSERY,132178
North East Lincolnshire Council,http://statistics.data.gov.uk/id/local-authority/00FC),Children & Family Services,Ass Dir - Education,School Improvement,Other Agencies,Nursery Educ Fund - Standard,PJ139,09/07/2020,628907,15368.85,REVENUE,HUMBERSTON PRE SCHOOL,114491
North East Lincolnshire Council,http://statistics.data.gov.uk/id/local-authority/00FC),Children & Family Services,Ass Dir - Education,School Improvement,Other Agencies,Nursery Educ Fund - Standard,PJ139,09/07/2020,628925,8353.8,REVENUE,IMMINGHAM DAY CARE,122312
North East Lincolnshire Council,http://statistics.data.gov.uk/id/local-authority/00FC),Children & Family Services,Ass Dir - Education,School Improvement,Other Agencies,Nursery Educ Fund - Standard,PJ139,09/07/2020,628855,10924.2,REVENUE,IMMINGHAM DAY NURSERY,100998
North East Lincolnshire Council,http://statistics.data.gov.uk/id/local-authority/00FC),Children & Family Services,Ass Dir - Education,School Improvement,Other Agencies,Nursery Educ Fund - Standard,PJ139,09/07/2020,628963,658.35,REVENUE,JULIE MOORE CHILDMINDING,134452
North East Lincolnshire Council,http://statistics.data.gov.uk/id/local-authority/00FC),Children & Family Services,Ass Dir - Education,School Improvement,Other Agencies,Nursery Educ Fund - Standard,PJ139,09/07/2020,628849,4608.45,REVENUE,JUDY CLARK CHILD CARE,100939
North East Lincolnshire Council,http://statistics.data.gov.uk/id/local-authority/00FC),Children & Family Services,Ass Dir - Education,School Improvement,Other Agencies,Nursery Educ Fund - Standard,PJ139,09/07/2020,628987,642.6,REVENUE,KELLY FLINN,144957
North East Lincolnshire Council,http://statistics.data.gov.uk/id/local-authority/00FC),Children & Family Services,Ass Dir - Education,School Improvement,Other Agencies,Nursery Educ Fund - Standard,PJ139,09/07/2020,628879,4455.36,REVENUE,MS KAREN HUDSON,102103
North East Lincolnshire Council,http://statistics.data.gov.uk/id/local-authority/00FC),Children & Family Services,Ass Dir - Education,School Improvement,Other Agencies,Nursery Educ Fund - Standard,PJ139,09/07/2020,628978,1927.8,REVENUE,KATIE ROBBINS,143660
North East Lincolnshire Council,http://statistics.data.gov.uk/id/local-authority/00FC),Children & Family Services,Ass Dir - Education,School Improvement,Other Agencies,Nursery Educ Fund - Standard,PJ139,09/07/2020,628936,9216.9,REVENUE,LEAP AHEAD NURSERY,128017
North East Lincolnshire Council,http://statistics.data.gov.uk/id/local-authority/00FC),Children & Family Services,Ass Dir - Education,School Improvement,Other Agencies,Nursery Educ Fund - Standard,PJ139,09/07/2020,628938,5266.8,REVENUE,LEAP AHEAD NURSERY,128017
North East Lincolnshire Council,http://statistics.data.gov.uk/id/local-authority/00FC),Children & Family Services,Ass Dir - Education,School Improvement,Other Agencies,Nursery Educ Fund - Standard,PJ139,09/07/2020,628939,3252.38,REVENUE,LEAP AHEAD NURSERY,128017
North East Lincolnshire Council,http://statistics.data.gov.uk/id/local-authority/00FC),Children & Family Services,Ass Dir - Education,School Improvement,Other Agencies,Nursery Educ Fund - Standard,PJ139,09/07/2020,628892,48195,REVENUE,LITTLE BLOSSOMS DAY NURSERY,111058
North East Lincolnshire Council,http://statistics.data.gov.uk/id/local-authority/00FC),Children & Family Services,Ass Dir - Education,School Improvement,Other Agencies,Nursery Educ Fund - Standard,PJ139,09/07/2020,628983,6504.75,REVENUE,LITTLE OAKS DAY NURSERY,144718
North East Lincolnshire Council,http://statistics.data.gov.uk/id/local-authority/00FC),Children & Family Services,Ass Dir - Education,School Improvement,Other Agencies,Nursery Educ Fund - Standard,PJ139,09/07/2020,628905,34057.8,REVENUE,GRIMSBY INSTITUTE - LITTLE STARS DAY NURSERY,114230
North East Lincolnshire Council,http://statistics.data.gov.uk/id/local-authority/00FC),Children & Family Services,Ass Dir - Education,School Improvement,Other Agencies,Nursery Educ Fund - Standard,PJ139,09/07/2020,628922,5783.4,REVENUE,LITTLE TWINKLES CHILDCARE LTD,122217
North East Lincolnshire Council,http://statistics.data.gov.uk/id/local-authority/00FC),Children & Family Services,Ass Dir - Education,School Improvement,Other Agencies,Nursery Educ Fund - Standard,PJ139,09/07/2020,628889,45489.89,REVENUE,LISLE MARSDEN CHILDCARE LIMITED,110493
North East Lincolnshire Council,http://statistics.data.gov.uk/id/local-authority/00FC),Children & Family Services,Ass Dir - Education,School Improvement,Other Agencies,Nursery Educ Fund - Standard,PJ139,09/07/2020,628961,12508.65,REVENUE,LITTLECOATES PRIMARY ACADEMY,134261
North East Lincolnshire Council,http://statistics.data.gov.uk/id/local-authority/00FC),Children & Family Services,Ass Dir - Education,School Improvement,Other Agencies,Nursery Educ Fund - Standard,PJ139,09/07/2020,628902,23042.25,REVENUE,MACAULAY PRIMARY ACADEMY,112680
North East Lincolnshire Council,http://statistics.data.gov.uk/id/local-authority/00FC),Children & Family Services,Ass Dir - Education,School Improvement,Other Agencies,Nursery Educ Fund - Standard,PJ139,09/07/2020,628976,20815.2,REVENUE,MIDDLETHORPE NURSERY,143658
North East Lincolnshire Council,http://statistics.data.gov.uk/id/local-authority/00FC),Children & Family Services,Ass Dir - Education,School Improvement,Other Agencies,Nursery Educ Fund - Standard,PJ139,09/07/2020,628973,2601.9,REVENUE,MS NATASHA DYKE,141560
North East Lincolnshire Council,http://statistics.data.gov.uk/id/local-authority/00FC),Children & Family Services,Ass Dir - Education,School Improvement,Other Agencies,Nursery Educ Fund - Standard,PJ139,09/07/2020,628886,21420,REVENUE,NEW WALTHAM ACADEMY,108556
North East Lincolnshire Council,http://statistics.data.gov.uk/id/local-authority/00FC),Children & Family Services,Ass Dir - Education,School Improvement,Other Agencies,Nursery Educ Fund - Standard,PJ139,09/07/2020,628956,642.6,REVENUE,NATALIE MUNDAY,132728
North East Lincolnshire Council,http://statistics.data.gov.uk/id/local-authority/00FC),Children & Family Services,Ass Dir - Education,School Improvement,Other Agencies,Nursery Educ Fund - Standard,PJ139,09/07/2020,628943,14137.2,REVENUE,ONLY ABOUT KIDS,128121
North East Lincolnshire Council,http://statistics.data.gov.uk/id/local-authority/00FC),Children & Family Services,Ass Dir - Education,School Improvement,Other Agencies,Nursery Educ Fund - Standard,PJ139,09/07/2020,628926,13825.35,REVENUE,OASIS ACADEMY SCHOOL (NUNSTHORPE SCHOOL),122861
North East Lincolnshire Council,http://statistics.data.gov.uk/id/local-authority/00FC),Children & Family Services,Ass Dir - Education,School Improvement,Other Agencies,Nursery Educ Fund - Standard,PJ139,09/07/2020,628913,38842.65,REVENUE,OLD CLEE PRIMARY ACADEMY,119822
North East Lincolnshire Council,http://statistics.data.gov.uk/id/local-authority/00FC),Children & Family Services,Ass Dir - Education,School Improvement,Other Agencies,Nursery Educ Fund - Standard,PJ139,09/07/2020,628984,642.6,REVENUE,LAURA SAVAGE,144810
North East Lincolnshire Council,http://statistics.data.gov.uk/id/local-authority/00FC),Children & Family Services,Ass Dir - Education,School Improvement,Other Agencies,Nursery Educ Fund - Standard,PJ139,09/07/2020,628897,44767.8,REVENUE,ORMISTON SOUTH PARADE ACADEMY,111750
North East Lincolnshire Council,http://statistics.data.gov.uk/id/local-authority/00FC),Children & Family Services,Ass Dir - Education,School Improvement,Other Agencies,Nursery Educ Fund - Standard,PJ139,09/07/2020,628965,17992.8,REVENUE,PILGRIM ACADEMY,136366
North East Lincolnshire Council,http://statistics.data.gov.uk/id/local-authority/00FC),Children & Family Services,Ass Dir - Education,School Improvement,Other Agencies,Nursery Educ Fund - Standard,PJ139,09/07/2020,628866,16707.6,REVENUE,PRECIOUS TIMES CHILDCARE SERVICES,101420
North East Lincolnshire Council,http://statistics.data.gov.uk/id/local-authority/00FC),Children & Family Services,Ass Dir - Education,School Improvement,Other Agencies,Nursery Educ Fund - Standard,PJ139,09/07/2020,628868,34700.4,REVENUE,PRECIOUS TIMES CHILDCARE SERVICES,101420
North East Lincolnshire Council,http://statistics.data.gov.uk/id/local-authority/00FC),Children & Family Services,Ass Dir - Education,School Improvement,Other Agencies,Nursery Educ Fund - Standard,PJ139,09/07/2020,628843,9875.25,REVENUE,FOR UNDER FIVES LTD,100647
North East Lincolnshire Council,http://statistics.data.gov.uk/id/local-authority/00FC),Children & Family Services,Ass Dir - Education,School Improvement,Other Agencies,Nursery Educ Fund - Standard,PJ139,09/07/2020,628920,32917.5,REVENUE,REYNOLDS PRIMARY ACADEMY,122175
North East Lincolnshire Council,http://statistics.data.gov.uk/id/local-authority/00FC),Children & Family Services,Ass Dir - Education,School Improvement,Other Agencies,Nursery Educ Fund - Standard,PJ139,09/07/2020,628852,20263.32,REVENUE,READY TEDDY GO,100973
North East Lincolnshire Council,http://statistics.data.gov.uk/id/local-authority/00FC),Children & Family Services,Ass Dir - Education,School Improvement,Other Agencies,Nursery Educ Fund - Standard,PJ139,09/07/2020,628934,1927.8,REVENUE,SARAH FARROW-BROWNE,127842
North East Lincolnshire Council,http://statistics.data.gov.uk/id/local-authority/00FC),Children & Family Services,Ass Dir - Education,School Improvement,Other Agencies,Nursery Educ Fund - Standard,PJ139,09/07/2020,628901,1670.76,REVENUE,SARA HARRISON,112491
North East Lincolnshire Council,http://statistics.data.gov.uk/id/local-authority/00FC),Children & Family Services,Ass Dir - Education,School Improvement,Other Agencies,Nursery Educ Fund - Standard,PJ139,09/07/2020,628891,1975.05,REVENUE,SHARON SPRINGALL,111029
North East Lincolnshire Council,http://statistics.data.gov.uk/id/local-authority/00FC),Children & Family Services,Ass Dir - Education,School Improvement,Other Agencies,Nursery Educ Fund - Standard,PJ139,09/07/2020,628870,15893.64,REVENUE,CLEETHORPES CHILDCARE,101591
North East Lincolnshire Council,http://statistics.data.gov.uk/id/local-authority/00FC),Children & Family Services,Ass Dir - Education,School Improvement,Other Agencies,Nursery Educ Fund - Standard,PJ139,09/07/2020,628840,33715.08,REVENUE,FOR UNDER FIVES LTD,100647
North East Lincolnshire Council,http://statistics.data.gov.uk/id/local-authority/00FC),Children & Family Services,Ass Dir - Education,School Improvement,Other Agencies,Nursery Educ Fund - Standard,PJ139,09/07/2020,628950,11952.36,REVENUE,SPRINGFIELD PRIMARY ACADEMY,131306
North East Lincolnshire Council,http://statistics.data.gov.uk/id/local-authority/00FC),Children & Family Services,Ass Dir - Education,School Improvement,Other Agencies,Nursery Educ Fund - Standard,PJ139,09/07/2020,628878,8353.8,REVENUE,SARAH SHOTBOLT,101742
North East Lincolnshire Council,http://statistics.data.gov.uk/id/local-authority/00FC),Children & Family Services,Ass Dir - Education,School Improvement,Other Agencies,Nursery Educ Fund - Standard,PJ139,09/07/2020,628917,9216.9,REVENUE,ST CHRISTOPHERS PRE SCHOOL,121589
North East Lincolnshire Council,http://statistics.data.gov.uk/id/local-authority/00FC),Children & Family Services,Ass Dir - Education,School Improvement,Other Agencies,Nursery Educ Fund - Standard,PJ139,09/07/2020,628916,642.6,REVENUE,STEPHANIE DURRANT,120541
North East Lincolnshire Council,http://statistics.data.gov.uk/id/local-authority/00FC),Children & Family Services,Ass Dir - Education,School Improvement,Other Agencies,Nursery Educ Fund - Standard,PJ139,09/07/2020,628850,10281.6,REVENUE,ST JAMES SCHOOL,100940
North East Lincolnshire Council,http://statistics.data.gov.uk/id/local-authority/00FC),Children & Family Services,Ass Dir - Education,School Improvement,Other Agencies,Nursery Educ Fund - Standard,PJ139,09/07/2020,628888,7900.2,REVENUE,ST JOSEPH'S RC PRIMARY ACADEMY,110066
North East Lincolnshire Council,http://statistics.data.gov.uk/id/local-authority/00FC),Children & Family Services,Ass Dir - Education,School Improvement,Other Agencies,Nursery Educ Fund - Standard,PJ139,09/07/2020,628876,19792.08,REVENUE,ST MARGARETS PRE-SCHOOL,101724
North East Lincolnshire Council,http://statistics.data.gov.uk/id/local-authority/00FC),Children & Family Services,Ass Dir - Education,School Improvement,Other Agencies,Nursery Educ Fund - Standard,PJ139,09/07/2020,628909,9875.25,REVENUE,ST MARYS CATHOLIC PRIMARY VOLUNTARY ACADEMY,115108
North East Lincolnshire Council,http://statistics.data.gov.uk/id/local-authority/00FC),Children & Family Services,Ass Dir - Education,School Improvement,Other Agencies,Nursery Educ Fund - Standard,PJ139,09/07/2020,628860,21725.55,REVENUE,ST PETERS CHILDREN CENTRE,101322
North East Lincolnshire Council,http://statistics.data.gov.uk/id/local-authority/00FC),Children & Family Services,Ass Dir - Education,School Improvement,Other Agencies,Nursery Educ Fund - Standard,PJ139,09/07/2020,628899,3950.1,REVENUE,STRAND PRIMARY ACADEMY,111862
North East Lincolnshire Council,http://statistics.data.gov.uk/id/local-authority/00FC),Children & Family Services,Ass Dir - Education,School Improvement,Other Agencies,Nursery Educ Fund - Standard,PJ139,09/07/2020,628883,7900.2,REVENUE,THE AVENUE PLAYGROUP,103168
North East Lincolnshire Council,http://statistics.data.gov.uk/id/local-authority/00FC),Children & Family Services,Ass Dir - Education,School Improvement,Other Agencies,Nursery Educ Fund - Standard,PJ139,09/07/2020,628910,20277.18,REVENUE,THRUNSCOE PRIMARY AND NURSERY ACADEMY,118749
North East Lincolnshire Council,http://statistics.data.gov.uk/id/local-authority/00FC),Children & Family Services,Ass Dir - Education,School Improvement,Other Agencies,Nursery Educ Fund - Standard,PJ139,09/07/2020,628884,57191.4,REVENUE,WALTHAM LEAS PRE-SCHOOL,108236
North East Lincolnshire Council,http://statistics.data.gov.uk/id/local-authority/00FC),Children & Family Services,Ass Dir - Education,School Improvement,Other Agencies,Nursery Educ Fund - Standard,PJ139,09/07/2020,628894,10533.6,REVENUE,WEELSBY ACADEMY,111161
North East Lincolnshire Council,http://statistics.data.gov.uk/id/local-authority/00FC),Children & Family Services,Ass Dir - Education,School Improvement,Other Agencies,Nursery Educ Fund - Standard,PJ139,09/07/2020,628932,19092.15,REVENUE,WELHOLME ACADEMY,127227
North East Lincolnshire Council,http://statistics.data.gov.uk/id/local-authority/00FC),Children & Family Services,Ass Dir - Education,School Improvement,Other Agencies,Nursery Educ Fund - Standard,PJ139,09/07/2020,628862,5984.37,REVENUE,WENDOVER PRE-SCHOOL,101350
North East Lincolnshire Council,http://statistics.data.gov.uk/id/local-authority/00FC),Children & Family Services,Ass Dir - Education,School Improvement,Other Agencies,Nursery Educ Fund - Standard,PJ139,09/07/2020,628914,6583.5,REVENUE,WILLOWS PRIMARY ACADEMY,120478
North East Lincolnshire Council,http://statistics.data.gov.uk/id/local-authority/00FC),Children & Family Services,Ass Dir - Education,School Improvement,Other Agencies,Nursery Educ Fund - Standard,PJ139,09/07/2020,628881,15142.05,REVENUE,WIZ KIDZ,102424
North East Lincolnshire Council,http://statistics.data.gov.uk/id/local-authority/00FC),Children & Family Services,Ass Dir - Education,School Improvement,Other Agencies,Nursery Educ Fund - Standard,PJ139,09/07/2020,628954,11850.3,REVENUE,WOODLANDS ACADEMY,132649
North East Lincolnshire Council,http://statistics.data.gov.uk/id/local-authority/00FC),Children & Family Services,Ass Dir - Education,School Improvement,Other Agencies,Nursery Educ Fund - Standard,PJ139,09/07/2020,628903,21848.4,REVENUE,YARBOROUGH ACADEMY,112852
North East Lincolnshire Council,http://statistics.data.gov.uk/id/local-authority/00FC),Children & Family Services,Ass Dir - Education,School Improvement,Other Agencies,Nursery Educ Fund - Standard,PJ139,09/07/2020,629016,416.16,REVENUE,MRS ALISON PARKER,132521
North East Lincolnshire Council,http://statistics.data.gov.uk/id/local-authority/00FC),Children & Family Services,Ass Dir - Education,School Improvement,Other Agencies,Nursery Educ Fund - Standard,PJ139,09/07/2020,629020,1077.12,REVENUE,DEBBIE SPACEY,133789
North East Lincolnshire Council,http://statistics.data.gov.uk/id/local-authority/00FC),Children & Family Services,Ass Dir - Education,School Improvement,Other Agencies,Nursery Educ Fund - Standard,PJ139,09/07/2020,629015,438.9,REVENUE,FREESTON TOTS PRESCHOOL,128592
North East Lincolnshire Council,http://statistics.data.gov.uk/id/local-authority/00FC),Children & Family Services,Ass Dir - Education,School Improvement,Other Agencies,Nursery Educ Fund - Standard,PJ139,09/07/2020,629026,1468.8,REVENUE,KEIRA GILBERT,146127
North East Lincolnshire Council,http://statistics.data.gov.uk/id/local-authority/00FC),Children & Family Services,Ass Dir - Education,School Improvement,Other Agencies,Nursery Educ Fund - Standard,PJ139,09/07/2020,629021,349.5,REVENUE,GREAT COATES PRIMARY ACADEMY,134467
North East Lincolnshire Council,http://statistics.data.gov.uk/id/local-authority/00FC),Children & Family Services,Ass Dir - Education,School Improvement,Other Agencies,Nursery Educ Fund - Standard,PJ139,09/07/2020,628993,612,REVENUE,FOR UNDER FIVES LTD,100647
North East Lincolnshire Council,http://statistics.data.gov.uk/id/local-authority/00FC),Children & Family Services,Ass Dir - Education,School Improvement,Other Agencies,Nursery Educ Fund - Standard,PJ139,09/07/2020,629002,279,REVENUE,HELEN CROOKS,101529
North East Lincolnshire Council,http://statistics.data.gov.uk/id/local-authority/00FC),Children & Family Services,Ass Dir - Education,School Improvement,Other Agencies,Nursery Educ Fund - Standard,PJ139,09/07/2020,629005,2084.88,REVENUE,MS KAREN HUDSON,102103
North East Lincolnshire Council,http://statistics.data.gov.uk/id/local-authority/00FC),Children & Family Services,Ass Dir - Education,School Improvement,Other Agencies,Nursery Educ Fund - Standard,PJ139,09/07/2020,629025,309.75,REVENUE,LITTLE OAKS DAY NURSERY,144718
North East Lincolnshire Council,http://statistics.data.gov.uk/id/local-authority/00FC),Children & Family Services,Ass Dir - Education,School Improvement,Other Agencies,Nursery Educ Fund - Standard,PJ139,09/07/2020,629010,438.9,REVENUE,ORMISTON SOUTH PARADE ACADEMY,111750
North East Lincolnshire Council,http://statistics.data.gov.uk/id/local-authority/00FC),Children & Family Services,Ass Dir - Education,School Improvement,Other Agencies,Nursery Educ Fund - Standard,PJ139,09/07/2020,629024,385.56,REVENUE,KATIE ROBBINS,143660
North East Lincolnshire Council,http://statistics.data.gov.uk/id/local-authority/00FC),Children & Family Services,Ass Dir - Education,School Improvement,Other Agencies,Nursery Educ Fund - Standard,PJ139,09/07/2020,628995,428.4,REVENUE,ST MARTINS PREPARATORY SCHOOL,100889
North East Lincolnshire Council,http://statistics.data.gov.uk/id/local-authority/00FC),Children & Family Services,Ass Dir - Education,School Improvement,Other Agencies,Nursery Educ Fund - Standard,PJ139,09/07/2020,628998,494.55,REVENUE,ST PETERS CHILDREN CENTRE,101322
North East Lincolnshire Council,http://statistics.data.gov.uk/id/local-authority/00FC),Children & Family Services,Ass Dir - Education,School Improvement,Other Agencies,Nursery Educ Fund - Standard,PJ139,16/07/2020,630003,376.2,REVENUE,FIRST STEPS GRIMSBY LIMITED,101411
North East Lincolnshire Council,http://statistics.data.gov.uk/id/local-authority/00FC),Children & Family Services,Ass Dir - Education,School Improvement,Other Agencies,Nursery Educ Fund - Standard,PJ139,09/07/2020,629022,856.8,REVENUE,MS AMY VERNON,141558
North East Lincolnshire Council,http://statistics.data.gov.uk/id/local-authority/00FC),Children & Family Services,Ass Dir - Education,School Improvement,Other Agencies,Nursery Educ Fund - Standard,PJ139,09/07/2020,629006,844.56,REVENUE,WALTHAM LEAS PRE-SCHOOL,108236
North East Lincolnshire Council,http://statistics.data.gov.uk/id/local-authority/00FC),Children & Family Services,Ass Dir - Education,School Improvement,Other Agencies,Nursery Educ Fund - Standard,PJ139,09/07/2020,629000,433.65,REVENUE,WENDOVER PRE-SCHOOL,101350
North East Lincolnshire Council,http://statistics.data.gov.uk/id/local-authority/00FC),Children & Family Services,Ass Dir - Education,School Improvement,Other Agencies,Nursery Educ Fund - Standard,PJ139,09/07/2020,629018,752.4,REVENUE,WOODLANDS ACADEMY,132649
North East Lincolnshire Council,http://statistics.data.gov.uk/id/local-authority/00FC),Children & Family Services,Ass Dir - Education,School Improvement,Other Agencies,Nursery Educ Fund - Standard,PJ139,16/07/2020,629959,642.6,REVENUE,MS AMY VERNON,141558
North East Lincolnshire Council,http://statistics.data.gov.uk/id/local-authority/00FC),Children & Family Services,Ass Dir - Education,School Improvement,Other Agencies,Nursery Educ Fund - Standard,PJ139,20/07/2020,815679,856.8,REVENUE,REDACTED PERSONAL INFORMATION,REDACTED PERSONAL INFORMATION
North East Lincolnshire Council,http://statistics.data.gov.uk/id/local-authority/00FC),Children & Family Services,Ass Dir - Education,School Improvement,Other Agencies,Nursery Educ Fund - Standard,PJ139,16/07/2020,629960,658.35,REVENUE,JULIE MOORE CHILDMINDING,134452
North East Lincolnshire Council,http://statistics.data.gov.uk/id/local-authority/00FC),Children & Family Services,Ass Dir - Education,School Improvement,Other Agencies,Other,PJ121,09/07/2020,628953,800.1,REVENUE,MRS ALISON PARKER,132521
North East Lincolnshire Council,http://statistics.data.gov.uk/id/local-authority/00FC),Children & Family Services,Ass Dir - Education,School Improvement,Other Agencies,Other,PJ121,09/07/2020,628980,1600.2,REVENUE,RAYCH'S RUGRATS CHILDMINDER,143723
North East Lincolnshire Council,http://statistics.data.gov.uk/id/local-authority/00FC),Children & Family Services,Ass Dir - Education,School Improvement,Other Agencies,Other,PJ121,09/07/2020,628847,14401.8,REVENUE,FOR UNDER FIVES LTD,100647
North East Lincolnshire Council,http://statistics.data.gov.uk/id/local-authority/00FC),Children & Family Services,Ass Dir - Education,School Improvement,Other Agencies,Other,PJ121,09/07/2020,628874,23202.9,REVENUE,BUTTERFLIES DAY NURSERY,101694
North East Lincolnshire Council,http://statistics.data.gov.uk/id/local-authority/00FC),Children & Family Services,Ass Dir - Education,School Improvement,Other Agencies,Other,PJ121,09/07/2020,628958,7200.9,REVENUE,CAMPDEN KIDS LTD,132975
North East Lincolnshire Council,http://statistics.data.gov.uk/id/local-authority/00FC),Children & Family Services,Ass Dir - Education,School Improvement,Other Agencies,Other,PJ121,09/07/2020,628845,9601.2,REVENUE,FOR UNDER FIVES LTD,100647
North East Lincolnshire Council,http://statistics.data.gov.uk/id/local-authority/00FC),Children & Family Services,Ass Dir - Education,School Improvement,Other Agencies,Other,PJ121,09/07/2020,628859,800.1,REVENUE,THE CHILDRENS HOUSE,101141
North East Lincolnshire Council,http://statistics.data.gov.uk/id/local-authority/00FC),Children & Family Services,Ass Dir - Education,School Improvement,Other Agencies,Other,PJ121,09/07/2020,628969,2400.3,REVENUE,CLARE HOLNESS,140793
North East Lincolnshire Council,http://statistics.data.gov.uk/id/local-authority/00FC),Children & Family Services,Ass Dir - Education,School Improvement,Other Agencies,Other,PJ121,09/07/2020,628921,800.1,REVENUE,ELAINE JOHNSON,122216
North East Lincolnshire Council,http://statistics.data.gov.uk/id/local-authority/00FC),Children & Family Services,Ass Dir - Education,School Improvement,Other Agencies,Other,PJ121,09/07/2020,628989,5600.7,REVENUE,EXPLOROSITY EDUCATION LTD,145026
North East Lincolnshire Council,http://statistics.data.gov.uk/id/local-authority/00FC),Children & Family Services,Ass Dir - Education,School Improvement,Other Agencies,Other,PJ121,09/07/2020,628971,800.1,REVENUE,MRS FAY L RENSHAW,141559
North East Lincolnshire Council,http://statistics.data.gov.uk/id/local-authority/00FC),Children & Family Services,Ass Dir - Education,School Improvement,Other Agencies,Other,PJ121,09/07/2020,628947,12001.5,REVENUE,FREESTON TOTS PRESCHOOL,128592
North East Lincolnshire Council,http://statistics.data.gov.uk/id/local-authority/00FC),Children & Family Services,Ass Dir - Education,School Improvement,Other Agencies,Other,PJ121,09/07/2020,628863,20002.5,REVENUE,FIRST STEPS GRIMSBY LIMITED,101411
North East Lincolnshire Council,http://statistics.data.gov.uk/id/local-authority/00FC),Children & Family Services,Ass Dir - Education,School Improvement,Other Agencies,Other,PJ121,09/07/2020,628931,800.1,REVENUE,FIRST STEPS WITH SURE START,126658
North East Lincolnshire Council,http://statistics.data.gov.uk/id/local-authority/00FC),Children & Family Services,Ass Dir - Education,School Improvement,Other Agencies,Other,PJ121,09/07/2020,628990,1600.2,REVENUE,KEIRA GILBERT,146127
North East Lincolnshire Council,http://statistics.data.gov.uk/id/local-authority/00FC),Children & Family Services,Ass Dir - Education,School Improvement,Other Agencies,Other,PJ121,09/07/2020,628906,19682.46,REVENUE,HUMBERSTON PRE SCHOOL,114491
North East Lincolnshire Council,http://statistics.data.gov.uk/id/local-authority/00FC),Children & Family Services,Ass Dir - Education,School Improvement,Other Agencies,Other,PJ121,09/07/2020,628842,4800.6,REVENUE,FOR UNDER FIVES LTD,100647
North East Lincolnshire Council,http://statistics.data.gov.uk/id/local-authority/00FC),Children & Family Services,Ass Dir - Education,School Improvement,Other Agencies,Other,PJ121,09/07/2020,628856,1120.14,REVENUE,HEALING VILLAGE NURSERY,101096
North East Lincolnshire Council,http://statistics.data.gov.uk/id/local-authority/00FC),Children & Family Services,Ass Dir - Education,School Improvement,Other Agencies,Other,PJ121,09/07/2020,628944,1600.2,REVENUE,ELLIE TOTS CHILDMINDING SERVICES,128251
North East Lincolnshire Council,http://statistics.data.gov.uk/id/local-authority/00FC),Children & Family Services,Ass Dir - Education,School Improvement,Other Agencies,Other,PJ121,09/07/2020,628871,5280.66,REVENUE,CLEETHORPES CHILDCARE,101591
North East Lincolnshire Council,http://statistics.data.gov.uk/id/local-authority/00FC),Children & Family Services,Ass Dir - Education,School Improvement,Other Agencies,Other,PJ121,09/07/2020,628924,2400.3,REVENUE,IMMINGHAM DAY CARE,122312
North East Lincolnshire Council,http://statistics.data.gov.uk/id/local-authority/00FC),Children & Family Services,Ass Dir - Education,School Improvement,Other Agencies,Other,PJ121,09/07/2020,628854,3200.4,REVENUE,IMMINGHAM DAY NURSERY,100998
North East Lincolnshire Council,http://statistics.data.gov.uk/id/local-authority/00FC),Children & Family Services,Ass Dir - Education,School Improvement,Other Agencies,Other,PJ121,09/07/2020,628848,12001.5,REVENUE,JUDY CLARK CHILD CARE,100939
North East Lincolnshire Council,http://statistics.data.gov.uk/id/local-authority/00FC),Children & Family Services,Ass Dir - Education,School Improvement,Other Agencies,Other,PJ121,09/07/2020,628986,746.76,REVENUE,KELLY FLINN,144957
North East Lincolnshire Council,http://statistics.data.gov.uk/id/local-authority/00FC),Children & Family Services,Ass Dir - Education,School Improvement,Other Agencies,Other,PJ121,09/07/2020,628979,800.1,REVENUE,KATIE ROBBINS,143660
North East Lincolnshire Council,http://statistics.data.gov.uk/id/local-authority/00FC),Children & Family Services,Ass Dir - Education,School Improvement,Other Agencies,Other,PJ121,09/07/2020,628937,8001,REVENUE,LEAP AHEAD NURSERY,128017
North East Lincolnshire Council,http://statistics.data.gov.uk/id/local-authority/00FC),Children & Family Services,Ass Dir - Education,School Improvement,Other Agencies,Other,PJ121,09/07/2020,628940,6400.8,REVENUE,LEAP AHEAD NURSERY,128017
North East Lincolnshire Council,http://statistics.data.gov.uk/id/local-authority/00FC),Children & Family Services,Ass Dir - Education,School Improvement,Other Agencies,Other,PJ121,09/07/2020,628941,2400.3,REVENUE,LEAP AHEAD NURSERY,128017
North East Lincolnshire Council,http://statistics.data.gov.uk/id/local-authority/00FC),Children & Family Services,Ass Dir - Education,School Improvement,Other Agencies,Other,PJ121,09/07/2020,628967,800.1,REVENUE,MRS LYNSEY CONNOLLY,140212
North East Lincolnshire Council,http://statistics.data.gov.uk/id/local-authority/00FC),Children & Family Services,Ass Dir - Education,School Improvement,Other Agencies,Other,PJ121,09/07/2020,628893,1600.2,REVENUE,LITTLE BLOSSOMS DAY NURSERY,111058
North East Lincolnshire Council,http://statistics.data.gov.uk/id/local-authority/00FC),Children & Family Services,Ass Dir - Education,School Improvement,Other Agencies,Other,PJ121,09/07/2020,628982,6400.8,REVENUE,LITTLE OAKS DAY NURSERY,144718
North East Lincolnshire Council,http://statistics.data.gov.uk/id/local-authority/00FC),Children & Family Services,Ass Dir - Education,School Improvement,Other Agencies,Other,PJ121,09/07/2020,628904,12801.6,REVENUE,GRIMSBY INSTITUTE - LITTLE STARS DAY NURSERY,114230
North East Lincolnshire Council,http://statistics.data.gov.uk/id/local-authority/00FC),Children & Family Services,Ass Dir - Education,School Improvement,Other Agencies,Other,PJ121,09/07/2020,628923,2400.3,REVENUE,LITTLE TWINKLES CHILDCARE LTD,122217
North East Lincolnshire Council,http://statistics.data.gov.uk/id/local-authority/00FC),Children & Family Services,Ass Dir - Education,School Improvement,Other Agencies,Other,PJ121,09/07/2020,628890,8374.38,REVENUE,LISLE MARSDEN CHILDCARE LIMITED,110493
North East Lincolnshire Council,http://statistics.data.gov.uk/id/local-authority/00FC),Children & Family Services,Ass Dir - Education,School Improvement,Other Agencies,Other,PJ121,09/07/2020,628962,7200.9,REVENUE,LITTLECOATES PRIMARY ACADEMY,134261
North East Lincolnshire Council,http://statistics.data.gov.uk/id/local-authority/00FC),Children & Family Services,Ass Dir - Education,School Improvement,Other Agencies,Other,PJ121,09/07/2020,628977,4000.5,REVENUE,MIDDLETHORPE NURSERY,143658
North East Lincolnshire Council,http://statistics.data.gov.uk/id/local-authority/00FC),Children & Family Services,Ass Dir - Education,School Improvement,Other Agencies,Other,PJ121,09/07/2020,628972,1600.2,REVENUE,MS NATASHA DYKE,141560
North East Lincolnshire Council,http://statistics.data.gov.uk/id/local-authority/00FC),Children & Family Services,Ass Dir - Education,School Improvement,Other Agencies,Other,PJ121,09/07/2020,628955,1600.2,REVENUE,NATALIE MUNDAY,132728
North East Lincolnshire Council,http://statistics.data.gov.uk/id/local-authority/00FC),Children & Family Services,Ass Dir - Education,School Improvement,Other Agencies,Other,PJ121,09/07/2020,628942,320.04,REVENUE,ONLY ABOUT KIDS,128121
North East Lincolnshire Council,http://statistics.data.gov.uk/id/local-authority/00FC),Children & Family Services,Ass Dir - Education,School Improvement,Other Agencies,Other,PJ121,09/07/2020,628898,12801.6,REVENUE,ORMISTON SOUTH PARADE ACADEMY,111750
North East Lincolnshire Council,http://statistics.data.gov.uk/id/local-authority/00FC),Children & Family Services,Ass Dir - Education,School Improvement,Other Agencies,Other,PJ121,09/07/2020,628867,2400.3,REVENUE,PRECIOUS TIMES CHILDCARE SERVICES,101420
North East Lincolnshire Council,http://statistics.data.gov.uk/id/local-authority/00FC),Children & Family Services,Ass Dir - Education,School Improvement,Other Agencies,Other,PJ121,09/07/2020,628865,12481.56,REVENUE,PRECIOUS TIMES CHILDCARE SERVICES,101420
North East Lincolnshire Council,http://statistics.data.gov.uk/id/local-authority/00FC),Children & Family Services,Ass Dir - Education,School Improvement,Other Agencies,Other,PJ121,09/07/2020,628839,18402.3,REVENUE,FOR UNDER FIVES LTD,100647
North East Lincolnshire Council,http://statistics.data.gov.uk/id/local-authority/00FC),Children & Family Services,Ass Dir - Education,School Improvement,Other Agencies,Other,PJ121,09/07/2020,628853,800.1,REVENUE,READY TEDDY GO,100973
North East Lincolnshire Council,http://statistics.data.gov.uk/id/local-authority/00FC),Children & Family Services,Ass Dir - Education,School Improvement,Other Agencies,Other,PJ121,09/07/2020,628974,2400.3,REVENUE,SARA BUNCE,142138
North East Lincolnshire Council,http://statistics.data.gov.uk/id/local-authority/00FC),Children & Family Services,Ass Dir - Education,School Improvement,Other Agencies,Other,PJ121,09/07/2020,628935,800.1,REVENUE,SARAH FARROW-BROWNE,127842
North East Lincolnshire Council,http://statistics.data.gov.uk/id/local-authority/00FC),Children & Family Services,Ass Dir - Education,School Improvement,Other Agencies,Other,PJ121,09/07/2020,628900,800.1,REVENUE,SARA HARRISON,112491
North East Lincolnshire Council,http://statistics.data.gov.uk/id/local-authority/00FC),Children & Family Services,Ass Dir - Education,School Improvement,Other Agencies,Other,PJ121,09/07/2020,628869,800.01,REVENUE,CLEETHORPES CHILDCARE,101591
North East Lincolnshire Council,http://statistics.data.gov.uk/id/local-authority/00FC),Children & Family Services,Ass Dir - Education,School Improvement,Other Agencies,Other,PJ121,09/07/2020,628981,800.1,REVENUE,SARAH NIGHTINGDALE,144424
North East Lincolnshire Council,http://statistics.data.gov.uk/id/local-authority/00FC),Children & Family Services,Ass Dir - Education,School Improvement,Other Agencies,Other,PJ121,09/07/2020,628844,1600.2,REVENUE,FOR UNDER FIVES LTD,100647
North East Lincolnshire Council,http://statistics.data.gov.uk/id/local-authority/00FC),Children & Family Services,Ass Dir - Education,School Improvement,Other Agencies,Other,PJ121,09/07/2020,628877,1600.2,REVENUE,SARAH SHOTBOLT,101742
North East Lincolnshire Council,http://statistics.data.gov.uk/id/local-authority/00FC),Children & Family Services,Ass Dir - Education,School Improvement,Other Agencies,Other,PJ121,09/07/2020,628918,6080.76,REVENUE,ST CHRISTOPHERS PRE SCHOOL,121589
North East Lincolnshire Council,http://statistics.data.gov.uk/id/local-authority/00FC),Children & Family Services,Ass Dir - Education,School Improvement,Other Agencies,Other,PJ121,09/07/2020,628915,800.1,REVENUE,STEPHANIE DURRANT,120541
North East Lincolnshire Council,http://statistics.data.gov.uk/id/local-authority/00FC),Children & Family Services,Ass Dir - Education,School Improvement,Other Agencies,Other,PJ121,09/07/2020,628851,1600.2,REVENUE,ST JAMES SCHOOL,100940
North East Lincolnshire Council,http://statistics.data.gov.uk/id/local-authority/00FC),Children & Family Services,Ass Dir - Education,School Improvement,Other Agencies,Other,PJ121,09/07/2020,628875,800.1,REVENUE,ST MARGARETS PRE-SCHOOL,101724
North East Lincolnshire Council,http://statistics.data.gov.uk/id/local-authority/00FC),Children & Family Services,Ass Dir - Education,School Improvement,Other Agencies,Other,PJ121,09/07/2020,628861,13601.7,REVENUE,ST PETERS CHILDREN CENTRE,101322
North East Lincolnshire Council,http://statistics.data.gov.uk/id/local-authority/00FC),Children & Family Services,Ass Dir - Education,School Improvement,Other Agencies,Other,PJ121,09/07/2020,628882,1600.2,REVENUE,THE AVENUE PLAYGROUP,103168
North East Lincolnshire Council,http://statistics.data.gov.uk/id/local-authority/00FC),Children & Family Services,Ass Dir - Education,School Improvement,Other Agencies,Other,PJ121,09/07/2020,628966,800.1,REVENUE,MRS VERITY TAYLOR-GREEN,138243
North East Lincolnshire Council,http://statistics.data.gov.uk/id/local-authority/00FC),Children & Family Services,Ass Dir - Education,School Improvement,Other Agencies,Other,PJ121,09/07/2020,628885,3200.4,REVENUE,WALTHAM LEAS PRE-SCHOOL,108236
North East Lincolnshire Council,http://statistics.data.gov.uk/id/local-authority/00FC),Children & Family Services,Ass Dir - Education,School Improvement,Other Agencies,Other,PJ121,09/07/2020,628933,6400.8,REVENUE,WELHOLME ACADEMY,127227
North East Lincolnshire Council,http://statistics.data.gov.uk/id/local-authority/00FC),Children & Family Services,Ass Dir - Education,School Improvement,Other Agencies,Other,PJ121,09/07/2020,628880,11201.4,REVENUE,WIZ KIDZ,102424
North East Lincolnshire Council,http://statistics.data.gov.uk/id/local-authority/00FC),Children & Family Services,Ass Dir - Education,School Improvement,Other Agencies,Other,PJ121,09/07/2020,628991,533.4,REVENUE,FOR UNDER FIVES LTD,100647
North East Lincolnshire Council,http://statistics.data.gov.uk/id/local-authority/00FC),Children & Family Services,Ass Dir - Education,School Improvement,Other Agencies,Other,PJ121,09/07/2020,629004,381,REVENUE,BUTTERFLIES DAY NURSERY,101694
North East Lincolnshire Council,http://statistics.data.gov.uk/id/local-authority/00FC),Children & Family Services,Ass Dir - Education,School Improvement,Other Agencies,Other,PJ121,09/07/2020,629019,1143,REVENUE,CAMPDEN KIDS LTD,132975
North East Lincolnshire Council,http://statistics.data.gov.uk/id/local-authority/00FC),Children & Family Services,Ass Dir - Education,School Improvement,Other Agencies,Other,PJ121,09/07/2020,628994,304.8,REVENUE,FOR UNDER FIVES LTD,100647
North East Lincolnshire Council,http://statistics.data.gov.uk/id/local-authority/00FC),Children & Family Services,Ass Dir - Education,School Improvement,Other Agencies,Other,PJ121,09/07/2020,629011,381,REVENUE,ORMISTON SOUTH PARADE ACADEMY,111750
North East Lincolnshire Council,http://statistics.data.gov.uk/id/local-authority/00FC),Children & Family Services,Ass Dir - Education,School Improvement,Other Agencies,Other,PJ121,09/07/2020,629001,304.8,REVENUE,PRECIOUS TIMES CHILDCARE SERVICES,101420
North East Lincolnshire Council,http://statistics.data.gov.uk/id/local-authority/00FC),Children & Family Services,Ass Dir - Education,School Improvement,Other Agencies,Other,PJ121,09/07/2020,628992,914.4,REVENUE,FOR UNDER FIVES LTD,100647
North East Lincolnshire Council,http://statistics.data.gov.uk/id/local-authority/00FC),Children & Family Services,Ass Dir - Education,School Improvement,Other Agencies,Other,PJ121,09/07/2020,629007,304.8,REVENUE,WALTHAM LEAS PRE-SCHOOL,108236
North East Lincolnshire Council,http://statistics.data.gov.uk/id/local-authority/00FC),Children & Family Services,Ass Dir - Education,School Improvement,Grants And Subscriptions,Subscriptions,LJ101,21/07/2020,630242,250,REVENUE,YORKSHIRE & HUMBER GOVERNOR SUPPORT GROUP,134120
North East Lincolnshire Council,http://statistics.data.gov.uk/id/local-authority/00FC),Children & Family Services,Ass Dir - Education,School Improvement,Contributions To Provisions,Contributions - Other,LK103,16/07/2020,629956,1220.8,REVENUE,CLEETHORPES CHILDCARE,101591
North East Lincolnshire Council,http://statistics.data.gov.uk/id/local-authority/00FC),Children & Family Services,Ass Dir - Education,School Improvement,Contributions To Provisions,Contributions - Other,LK103,28/07/2020,631356,1831.2,REVENUE,WALTHAM LEAS PRE-SCHOOL,108236
North East Lincolnshire Council,http://statistics.data.gov.uk/id/local-authority/00FC),Children & Family Services,Ass Dir - Education,School Improvement,Contributions To Provisions,Contributions - Other,LK103,23/07/2020,631085,1831.2,REVENUE,CANON PETER HALL CE PRIMARY ACADEMY,126646
North East Lincolnshire Council,http://statistics.data.gov.uk/id/local-authority/00FC),Children & Family Services,Ass Dir - Education,School Improvement,Contributions To Provisions,Contributions - Other,LK103,16/07/2020,629957,3662.4,REVENUE,LISLE MARSDEN CHILDCARE LIMITED,110493
North East Lincolnshire Council,http://statistics.data.gov.uk/id/local-authority/00FC),Children & Family Services,Ass Dir - Education,School Improvement,Contributions To Provisions,Contributions - Other,LK103,16/07/2020,629958,872,REVENUE,LITTLE BLOSSOMS DAY NURSERY,111058
North East Lincolnshire Council,http://statistics.data.gov.uk/id/local-authority/00FC),Children & Family Services,Ass Dir - Education,School Improvement,Contributions To Provisions,Contributions - Other,LK103,16/07/2020,629952,1831.2,REVENUE,ORMISTON SOUTH PARADE ACADEMY,111750
North East Lincolnshire Council,http://statistics.data.gov.uk/id/local-authority/00FC),Children & Family Services,Ass Dir - Education,School Improvement,Contributions To Provisions,Contributions - Other,LK103,16/07/2020,629952,1831.2,REVENUE,ORMISTON SOUTH PARADE ACADEMY,111750
North East Lincolnshire Council,http://statistics.data.gov.uk/id/local-authority/00FC),Children & Family Services,Ass Dir - Education,School Improvement,Contributions To Provisions,Contributions - Other,LK103,16/07/2020,629952,2441.6,REVENUE,ORMISTON SOUTH PARADE ACADEMY,111750
North East Lincolnshire Council,http://statistics.data.gov.uk/id/local-authority/00FC),Children & Family Services,Ass Dir - Education,School Improvement,Contributions To Provisions,Contributions - Other,LK103,16/07/2020,629954,1220.8,REVENUE,STRAND PRIMARY ACADEMY,111862
North East Lincolnshire Council,http://statistics.data.gov.uk/id/local-authority/00FC),Children & Family Services,Ass Dir - Education,School Improvement,Contributions To Provisions,Contributions - Other,LK103,16/07/2020,629953,1831.2,REVENUE,WIZ KIDZ,102424
North East Lincolnshire Council,http://statistics.data.gov.uk/id/local-authority/00FC),Children & Family Services,Ass Dir - Education,School Improvement,Contributions To Provisions,Contributions - Other,LK103,22/07/2020,630460,2447,REVENUE,R82 UK LTD,101710
North East Lincolnshire Council,http://statistics.data.gov.uk/id/local-authority/00FC),Children & Family Services,Ass Dir - Education,School Improvement,Contributions To Provisions,Contributions - Other,LK103,29/07/2020,630536,2345,REVENUE,R82 UK LTD,101710
North East Lincolnshire Council,http://statistics.data.gov.uk/id/local-authority/00FC),Children & Family Services,Ass Dir - Children & Families,Head Of Child Resource & Reg,Private Contractors,Third Party Prov - Private,PH101,01/07/2020,627754,26430,REVENUE,KIBBLE EDUCATION & CARE CENTRE,142566
North East Lincolnshire Council,http://statistics.data.gov.uk/id/local-authority/00FC),Children & Family Services,Ass Dir - Children & Families,Head Of Child Resource & Reg,Private Contractors,Third Party Prov - Private,PH101,07/07/2020,628537,2578,REVENUE,OFSTED,101836
North East Lincolnshire Council,http://statistics.data.gov.uk/id/local-authority/00FC),Children & Family Services,Ass Dir - Children & Families,Head Of Child Resource & Reg,Other Agencies,Pocket Money,PJ105,09/07/2020,629152,501.8,REVENUE,VULNERABLE YOUNG PEOPLE PROJECT HENEAGE,110637
North East Lincolnshire Council,http://statistics.data.gov.uk/id/local-authority/00FC),Children & Family Services,Ass Dir - Children & Families,Head Of Child Resource & Reg,Other Agencies,Additional Cost,PJ114,21/07/2020,816378,350,REVENUE,REDACTED PERSONAL INFORMATION,REDACTED PERSONAL INFORMATION
North East Lincolnshire Council,http://statistics.data.gov.uk/id/local-authority/00FC),Children & Family Services,Ass Dir - Children & Families,Head Of Child Resource & Reg,Other Agencies,Additional Cost,PJ114,01/07/2020,811463,719.44,REVENUE,REDACTED PERSONAL INFORMATION,REDACTED PERSONAL INFORMATION
North East Lincolnshire Council,http://statistics.data.gov.uk/id/local-authority/00FC),Children & Family Services,Ass Dir - Children & Families,Head Of Child Resource & Reg,Other Agencies,Additional Cost,PJ114,29/07/2020,630643,350,REVENUE,READY RENT A CAR,100557
North East Lincolnshire Council,http://statistics.data.gov.uk/id/local-authority/00FC),Children & Family Services,Ass Dir - Children & Families,Head Of Child Resource & Reg,Other Agencies,Child Care Payments,PJ104,21/07/2020,816236,352,REVENUE,REDACTED PERSONAL INFORMATION,REDACTED PERSONAL INFORMATION
North East Lincolnshire Council,http://statistics.data.gov.uk/id/local-authority/00FC),Children & Family Services,Ass Dir - Children & Families,Head Of Child Resource & Reg,Other Agencies,Child Care Payments,PJ104,21/07/2020,816317,331,REVENUE,REDACTED PERSONAL INFORMATION,REDACTED PERSONAL INFORMATION
North East Lincolnshire Council,http://statistics.data.gov.uk/id/local-authority/00FC),Children & Family Services,Ass Dir - Children & Families,Head Of Child Resource & Reg,Other Agencies,Child Care Payments,PJ104,07/07/2020,812021,364,REVENUE,REDACTED PERSONAL INFORMATION,REDACTED PERSONAL INFORMATION
North East Lincolnshire Council,http://statistics.data.gov.uk/id/local-authority/00FC),Children & Family Services,Ass Dir - Children & Families,Head Of Child Resource & Reg,Other Agencies,Child Care Payments,PJ104,07/07/2020,812083,364,REVENUE,REDACTED PERSONAL INFORMATION,REDACTED PERSONAL INFORMATION
North East Lincolnshire Council,http://statistics.data.gov.uk/id/local-authority/00FC),Children & Family Services,Ass Dir - Children & Families,Head Of Child Resource & Reg,Other Agencies,Child Care Payments,PJ104,07/07/2020,812097,364,REVENUE,REDACTED PERSONAL INFORMATION,REDACTED PERSONAL INFORMATION
North East Lincolnshire Council,http://statistics.data.gov.uk/id/local-authority/00FC),Children & Family Services,Ass Dir - Children & Families,Head Of Child Resource & Reg,Other Agencies,Child Care Payments,PJ104,07/07/2020,811864,364,REVENUE,REDACTED PERSONAL INFORMATION,REDACTED PERSONAL INFORMATION
North East Lincolnshire Council,http://statistics.data.gov.uk/id/local-authority/00FC),Children & Family Services,Ass Dir - Children & Families,Head Of Child Resource & Reg,Other Agencies,Child Care Payments,PJ104,07/07/2020,811895,364,REVENUE,REDACTED PERSONAL INFORMATION,REDACTED PERSONAL INFORMATION
North East Lincolnshire Council,http://statistics.data.gov.uk/id/local-authority/00FC),Children & Family Services,Ass Dir - Children & Families,Head Of Child Resource & Reg,Other Agencies,Child Care Payments,PJ104,21/07/2020,816234,364,REVENUE,REDACTED PERSONAL INFORMATION,REDACTED PERSONAL INFORMATION
North East Lincolnshire Council,http://statistics.data.gov.uk/id/local-authority/00FC),Children & Family Services,Ass Dir - Children & Families,Head Of Child Resource & Reg,Other Agencies,Child Care Payments,PJ104,21/07/2020,816248,364,REVENUE,REDACTED PERSONAL INFORMATION,REDACTED PERSONAL INFORMATION
North East Lincolnshire Council,http://statistics.data.gov.uk/id/local-authority/00FC),Children & Family Services,Ass Dir - Children & Families,Head Of Child Resource & Reg,Other Agencies,Child Care Payments,PJ104,21/07/2020,816019,364,REVENUE,REDACTED PERSONAL INFORMATION,REDACTED PERSONAL INFORMATION
North East Lincolnshire Council,http://statistics.data.gov.uk/id/local-authority/00FC),Children & Family Services,Ass Dir - Children & Families,Head Of Child Resource & Reg,Other Agencies,Child Care Payments,PJ104,21/07/2020,816049,364,REVENUE,REDACTED PERSONAL INFORMATION,REDACTED PERSONAL INFORMATION
North East Lincolnshire Council,http://statistics.data.gov.uk/id/local-authority/00FC),Children & Family Services,Ass Dir - Children & Families,Head Of Child Resource & Reg,Other Agencies,Child Care Payments,PJ104,21/07/2020,816172,364,REVENUE,REDACTED PERSONAL INFORMATION,REDACTED PERSONAL INFORMATION
North East Lincolnshire Council,http://statistics.data.gov.uk/id/local-authority/00FC),Children & Family Services,Ass Dir - Children & Families,Head Of Child Resource & Reg,Other Agencies,Child Care Payments,PJ104,14/07/2020,814428,364,REVENUE,REDACTED PERSONAL INFORMATION,REDACTED PERSONAL INFORMATION
North East Lincolnshire Council,http://statistics.data.gov.uk/id/local-authority/00FC),Children & Family Services,Ass Dir - Children & Families,Head Of Child Resource & Reg,Other Agencies,Child Care Payments,PJ104,14/07/2020,814489,364,REVENUE,REDACTED PERSONAL INFORMATION,REDACTED PERSONAL INFORMATION
North East Lincolnshire Council,http://statistics.data.gov.uk/id/local-authority/00FC),Children & Family Services,Ass Dir - Children & Families,Head Of Child Resource & Reg,Other Agencies,Child Care Payments,PJ104,14/07/2020,814503,364,REVENUE,REDACTED PERSONAL INFORMATION,REDACTED PERSONAL INFORMATION
North East Lincolnshire Council,http://statistics.data.gov.uk/id/local-authority/00FC),Children & Family Services,Ass Dir - Children & Families,Head Of Child Resource & Reg,Other Agencies,Child Care Payments,PJ104,14/07/2020,814277,364,REVENUE,REDACTED PERSONAL INFORMATION,REDACTED PERSONAL INFORMATION
North East Lincolnshire Council,http://statistics.data.gov.uk/id/local-authority/00FC),Children & Family Services,Ass Dir - Children & Families,Head Of Child Resource & Reg,Other Agencies,Child Care Payments,PJ104,14/07/2020,814306,364,REVENUE,REDACTED PERSONAL INFORMATION,REDACTED PERSONAL INFORMATION
North East Lincolnshire Council,http://statistics.data.gov.uk/id/local-authority/00FC),Children & Family Services,Ass Dir - Children & Families,Head Of Child Resource & Reg,Other Agencies,Child Care Payments,PJ104,28/07/2020,818710,364,REVENUE,REDACTED PERSONAL INFORMATION,REDACTED PERSONAL INFORMATION
North East Lincolnshire Council,http://statistics.data.gov.uk/id/local-authority/00FC),Children & Family Services,Ass Dir - Children & Families,Head Of Child Resource & Reg,Other Agencies,Child Care Payments,PJ104,28/07/2020,818740,364,REVENUE,REDACTED PERSONAL INFORMATION,REDACTED PERSONAL INFORMATION
North East Lincolnshire Council,http://statistics.data.gov.uk/id/local-authority/00FC),Children & Family Services,Ass Dir - Children & Families,Head Of Child Resource & Reg,Other Agencies,Child Care Payments,PJ104,28/07/2020,818863,364,REVENUE,REDACTED PERSONAL INFORMATION,REDACTED PERSONAL INFORMATION
North East Lincolnshire Council,http://statistics.data.gov.uk/id/local-authority/00FC),Children & Family Services,Ass Dir - Children & Families,Head Of Child Resource & Reg,Other Agencies,Child Care Payments,PJ104,28/07/2020,818924,364,REVENUE,REDACTED PERSONAL INFORMATION,REDACTED PERSONAL INFORMATION
North East Lincolnshire Council,http://statistics.data.gov.uk/id/local-authority/00FC),Children & Family Services,Ass Dir - Children & Families,Head Of Child Resource & Reg,Other Agencies,Child Care Payments,PJ104,28/07/2020,818938,364,REVENUE,REDACTED PERSONAL INFORMATION,REDACTED PERSONAL INFORMATION
North East Lincolnshire Council,http://statistics.data.gov.uk/id/local-authority/00FC),Children & Family Services,Ass Dir - Children & Families,Head Of Child Resource & Reg,Other Agencies,Child Care Payments,PJ104,07/07/2020,812196,298,REVENUE,REDACTED PERSONAL INFORMATION,REDACTED PERSONAL INFORMATION
North East Lincolnshire Council,http://statistics.data.gov.uk/id/local-authority/00FC),Children & Family Services,Ass Dir - Children & Families,Head Of Child Resource & Reg,Other Agencies,Child Care Payments,PJ104,07/07/2020,812221,284,REVENUE,REDACTED PERSONAL INFORMATION,REDACTED PERSONAL INFORMATION
North East Lincolnshire Council,http://statistics.data.gov.uk/id/local-authority/00FC),Children & Family Services,Ass Dir - Children & Families,Head Of Child Resource & Reg,Other Agencies,Child Care Payments,PJ104,07/07/2020,812242,284,REVENUE,REDACTED PERSONAL INFORMATION,REDACTED PERSONAL INFORMATION
North East Lincolnshire Council,http://statistics.data.gov.uk/id/local-authority/00FC),Children & Family Services,Ass Dir - Children & Families,Head Of Child Resource & Reg,Other Agencies,Child Care Payments,PJ104,14/07/2020,814604,298,REVENUE,REDACTED PERSONAL INFORMATION,REDACTED PERSONAL INFORMATION
North East Lincolnshire Council,http://statistics.data.gov.uk/id/local-authority/00FC),Children & Family Services,Ass Dir - Children & Families,Head Of Child Resource & Reg,Other Agencies,Child Care Payments,PJ104,14/07/2020,814628,284,REVENUE,REDACTED PERSONAL INFORMATION,REDACTED PERSONAL INFORMATION
North East Lincolnshire Council,http://statistics.data.gov.uk/id/local-authority/00FC),Children & Family Services,Ass Dir - Children & Families,Head Of Child Resource & Reg,Other Agencies,Child Care Payments,PJ104,14/07/2020,814649,284,REVENUE,REDACTED PERSONAL INFORMATION,REDACTED PERSONAL INFORMATION
North East Lincolnshire Council,http://statistics.data.gov.uk/id/local-authority/00FC),Children & Family Services,Ass Dir - Children & Families,Head Of Child Resource & Reg,Other Agencies,Child Care Payments,PJ104,21/07/2020,816348,298,REVENUE,REDACTED PERSONAL INFORMATION,REDACTED PERSONAL INFORMATION
North East Lincolnshire Council,http://statistics.data.gov.uk/id/local-authority/00FC),Children & Family Services,Ass Dir - Children & Families,Head Of Child Resource & Reg,Other Agencies,Child Care Payments,PJ104,21/07/2020,816372,284,REVENUE,REDACTED PERSONAL INFORMATION,REDACTED PERSONAL INFORMATION
North East Lincolnshire Council,http://statistics.data.gov.uk/id/local-authority/00FC),Children & Family Services,Ass Dir - Children & Families,Head Of Child Resource & Reg,Other Agencies,Child Care Payments,PJ104,28/07/2020,819037,298,REVENUE,REDACTED PERSONAL INFORMATION,REDACTED PERSONAL INFORMATION
North East Lincolnshire Council,http://statistics.data.gov.uk/id/local-authority/00FC),Children & Family Services,Ass Dir - Children & Families,Head Of Child Resource & Reg,Other Agencies,Child Care Payments,PJ104,28/07/2020,819062,284,REVENUE,REDACTED PERSONAL INFORMATION,REDACTED PERSONAL INFORMATION
North East Lincolnshire Council,http://statistics.data.gov.uk/id/local-authority/00FC),Children & Family Services,Ass Dir - Children & Families,Head Of Child Resource & Reg,Other Agencies,Child Care Payments,PJ104,07/07/2020,812021,298,REVENUE,REDACTED PERSONAL INFORMATION,REDACTED PERSONAL INFORMATION
North East Lincolnshire Council,http://statistics.data.gov.uk/id/local-authority/00FC),Children & Family Services,Ass Dir - Children & Families,Head Of Child Resource & Reg,Other Agencies,Child Care Payments,PJ104,07/07/2020,812083,298,REVENUE,REDACTED PERSONAL INFORMATION,REDACTED PERSONAL INFORMATION
North East Lincolnshire Council,http://statistics.data.gov.uk/id/local-authority/00FC),Children & Family Services,Ass Dir - Children & Families,Head Of Child Resource & Reg,Other Agencies,Child Care Payments,PJ104,07/07/2020,812097,270,REVENUE,REDACTED PERSONAL INFORMATION,REDACTED PERSONAL INFORMATION
North East Lincolnshire Council,http://statistics.data.gov.uk/id/local-authority/00FC),Children & Family Services,Ass Dir - Children & Families,Head Of Child Resource & Reg,Other Agencies,Child Care Payments,PJ104,07/07/2020,811864,270,REVENUE,REDACTED PERSONAL INFORMATION,REDACTED PERSONAL INFORMATION
North East Lincolnshire Council,http://statistics.data.gov.uk/id/local-authority/00FC),Children & Family Services,Ass Dir - Children & Families,Head Of Child Resource & Reg,Other Agencies,Child Care Payments,PJ104,07/07/2020,811895,340,REVENUE,REDACTED PERSONAL INFORMATION,REDACTED PERSONAL INFORMATION
North East Lincolnshire Council,http://statistics.data.gov.uk/id/local-authority/00FC),Children & Family Services,Ass Dir - Children & Families,Head Of Child Resource & Reg,Other Agencies,Child Care Payments,PJ104,14/07/2020,814428,298,REVENUE,REDACTED PERSONAL INFORMATION,REDACTED PERSONAL INFORMATION
North East Lincolnshire Council,http://statistics.data.gov.uk/id/local-authority/00FC),Children & Family Services,Ass Dir - Children & Families,Head Of Child Resource & Reg,Other Agencies,Child Care Payments,PJ104,14/07/2020,814489,298,REVENUE,REDACTED PERSONAL INFORMATION,REDACTED PERSONAL INFORMATION
North East Lincolnshire Council,http://statistics.data.gov.uk/id/local-authority/00FC),Children & Family Services,Ass Dir - Children & Families,Head Of Child Resource & Reg,Other Agencies,Child Care Payments,PJ104,14/07/2020,814503,270,REVENUE,REDACTED PERSONAL INFORMATION,REDACTED PERSONAL INFORMATION
North East Lincolnshire Council,http://statistics.data.gov.uk/id/local-authority/00FC),Children & Family Services,Ass Dir - Children & Families,Head Of Child Resource & Reg,Other Agencies,Child Care Payments,PJ104,14/07/2020,814277,270,REVENUE,REDACTED PERSONAL INFORMATION,REDACTED PERSONAL INFORMATION
North East Lincolnshire Council,http://statistics.data.gov.uk/id/local-authority/00FC),Children & Family Services,Ass Dir - Children & Families,Head Of Child Resource & Reg,Other Agencies,Child Care Payments,PJ104,14/07/2020,814306,340,REVENUE,REDACTED PERSONAL INFORMATION,REDACTED PERSONAL INFORMATION
North East Lincolnshire Council,http://statistics.data.gov.uk/id/local-authority/00FC),Children & Family Services,Ass Dir - Children & Families,Head Of Child Resource & Reg,Other Agencies,Child Care Payments,PJ104,21/07/2020,816234,298,REVENUE,REDACTED PERSONAL INFORMATION,REDACTED PERSONAL INFORMATION
North East Lincolnshire Council,http://statistics.data.gov.uk/id/local-authority/00FC),Children & Family Services,Ass Dir - Children & Families,Head Of Child Resource & Reg,Other Agencies,Child Care Payments,PJ104,21/07/2020,816244,-501.43,REVENUE,REDACTED PERSONAL INFORMATION,REDACTED PERSONAL INFORMATION
North East Lincolnshire Council,http://statistics.data.gov.uk/id/local-authority/00FC),Children & Family Services,Ass Dir - Children & Families,Head Of Child Resource & Reg,Other Agencies,Child Care Payments,PJ104,21/07/2020,816248,270,REVENUE,REDACTED PERSONAL INFORMATION,REDACTED PERSONAL INFORMATION
North East Lincolnshire Council,http://statistics.data.gov.uk/id/local-authority/00FC),Children & Family Services,Ass Dir - Children & Families,Head Of Child Resource & Reg,Other Agencies,Child Care Payments,PJ104,21/07/2020,816019,270,REVENUE,REDACTED PERSONAL INFORMATION,REDACTED PERSONAL INFORMATION
North East Lincolnshire Council,http://statistics.data.gov.uk/id/local-authority/00FC),Children & Family Services,Ass Dir - Children & Families,Head Of Child Resource & Reg,Other Agencies,Child Care Payments,PJ104,21/07/2020,816049,340,REVENUE,REDACTED PERSONAL INFORMATION,REDACTED PERSONAL INFORMATION
North East Lincolnshire Council,http://statistics.data.gov.uk/id/local-authority/00FC),Children & Family Services,Ass Dir - Children & Families,Head Of Child Resource & Reg,Other Agencies,Child Care Payments,PJ104,21/07/2020,816172,298,REVENUE,REDACTED PERSONAL INFORMATION,REDACTED PERSONAL INFORMATION
North East Lincolnshire Council,http://statistics.data.gov.uk/id/local-authority/00FC),Children & Family Services,Ass Dir - Children & Families,Head Of Child Resource & Reg,Other Agencies,Child Care Payments,PJ104,28/07/2020,818710,270,REVENUE,REDACTED PERSONAL INFORMATION,REDACTED PERSONAL INFORMATION
North East Lincolnshire Council,http://statistics.data.gov.uk/id/local-authority/00FC),Children & Family Services,Ass Dir - Children & Families,Head Of Child Resource & Reg,Other Agencies,Child Care Payments,PJ104,28/07/2020,818740,340,REVENUE,REDACTED PERSONAL INFORMATION,REDACTED PERSONAL INFORMATION
North East Lincolnshire Council,http://statistics.data.gov.uk/id/local-authority/00FC),Children & Family Services,Ass Dir - Children & Families,Head Of Child Resource & Reg,Other Agencies,Child Care Payments,PJ104,28/07/2020,818863,298,REVENUE,REDACTED PERSONAL INFORMATION,REDACTED PERSONAL INFORMATION
North East Lincolnshire Council,http://statistics.data.gov.uk/id/local-authority/00FC),Children & Family Services,Ass Dir - Children & Families,Head Of Child Resource & Reg,Other Agencies,Child Care Payments,PJ104,28/07/2020,818924,298,REVENUE,REDACTED PERSONAL INFORMATION,REDACTED PERSONAL INFORMATION
North East Lincolnshire Council,http://statistics.data.gov.uk/id/local-authority/00FC),Children & Family Services,Ass Dir - Children & Families,Head Of Child Resource & Reg,Other Agencies,Child Care Payments,PJ104,28/07/2020,818938,270,REVENUE,REDACTED PERSONAL INFORMATION,REDACTED PERSONAL INFORMATION
North East Lincolnshire Council,http://statistics.data.gov.uk/id/local-authority/00FC),Children & Family Services,Ass Dir - Children & Families,Head Of Child Resource & Reg,Other Agencies,Child Care Payments,PJ104,07/07/2020,812350,284,REVENUE,REDACTED PERSONAL INFORMATION,REDACTED PERSONAL INFORMATION
North East Lincolnshire Council,http://statistics.data.gov.uk/id/local-authority/00FC),Children & Family Services,Ass Dir - Children & Families,Head Of Child Resource & Reg,Other Agencies,Child Care Payments,PJ104,14/07/2020,814751,284,REVENUE,REDACTED PERSONAL INFORMATION,REDACTED PERSONAL INFORMATION
North East Lincolnshire Council,http://statistics.data.gov.uk/id/local-authority/00FC),Children & Family Services,Ass Dir - Children & Families,Head Of Child Resource & Reg,Other Agencies,Child Care Payments,PJ104,21/07/2020,816498,284,REVENUE,REDACTED PERSONAL INFORMATION,REDACTED PERSONAL INFORMATION
North East Lincolnshire Council,http://statistics.data.gov.uk/id/local-authority/00FC),Children & Family Services,Ass Dir - Children & Families,Head Of Child Resource & Reg,Other Agencies,Child Care Payments,PJ104,28/07/2020,819186,284,REVENUE,REDACTED PERSONAL INFORMATION,REDACTED PERSONAL INFORMATION
North East Lincolnshire Council,http://statistics.data.gov.uk/id/local-authority/00FC),Children & Family Services,Ass Dir - Children & Families,Head Of Child Resource & Reg,Other Agencies,Child Care Payments,PJ104,07/07/2020,812404,454,REVENUE,REDACTED PERSONAL INFORMATION,REDACTED PERSONAL INFORMATION
North East Lincolnshire Council,http://statistics.data.gov.uk/id/local-authority/00FC),Children & Family Services,Ass Dir - Children & Families,Head Of Child Resource & Reg,Other Agencies,Child Care Payments,PJ104,14/07/2020,814806,454,REVENUE,REDACTED PERSONAL INFORMATION,REDACTED PERSONAL INFORMATION
North East Lincolnshire Council,http://statistics.data.gov.uk/id/local-authority/00FC),Children & Family Services,Ass Dir - Children & Families,Head Of Child Resource & Reg,Other Agencies,Child Care Payments,PJ104,21/07/2020,816552,454,REVENUE,REDACTED PERSONAL INFORMATION,REDACTED PERSONAL INFORMATION
North East Lincolnshire Council,http://statistics.data.gov.uk/id/local-authority/00FC),Children & Family Services,Ass Dir - Children & Families,Head Of Child Resource & Reg,Other Agencies,Child Care Payments,PJ104,28/07/2020,819240,454,REVENUE,REDACTED PERSONAL INFORMATION,REDACTED PERSONAL INFORMATION
North East Lincolnshire Council,http://statistics.data.gov.uk/id/local-authority/00FC),Children & Family Services,Ass Dir - Children & Families,Head Of Child Resource & Reg,Other Agencies,Child Care Payments,PJ104,03/07/2020,811748,8500,REVENUE,REDACTED PERSONAL INFORMATION,REDACTED PERSONAL INFORMATION
North East Lincolnshire Council,http://statistics.data.gov.uk/id/local-authority/00FC),Children & Family Services,Ass Dir - Children & Families,Head Of Child Resource & Reg,Other Agencies,Child Care Payments,PJ104,21/07/2020,816212,396,REVENUE,REDACTED PERSONAL INFORMATION,REDACTED PERSONAL INFORMATION
North East Lincolnshire Council,http://statistics.data.gov.uk/id/local-authority/00FC),Children & Family Services,Ass Dir - Children & Families,Head Of Child Resource & Reg,Other Agencies,Child Care Payments,PJ104,07/07/2020,812128,364,REVENUE,REDACTED PERSONAL INFORMATION,REDACTED PERSONAL INFORMATION
North East Lincolnshire Council,http://statistics.data.gov.uk/id/local-authority/00FC),Children & Family Services,Ass Dir - Children & Families,Head Of Child Resource & Reg,Other Agencies,Child Care Payments,PJ104,21/07/2020,816279,364,REVENUE,REDACTED PERSONAL INFORMATION,REDACTED PERSONAL INFORMATION
North East Lincolnshire Council,http://statistics.data.gov.uk/id/local-authority/00FC),Children & Family Services,Ass Dir - Children & Families,Head Of Child Resource & Reg,Other Agencies,Child Care Payments,PJ104,28/07/2020,818968,364,REVENUE,REDACTED PERSONAL INFORMATION,REDACTED PERSONAL INFORMATION
North East Lincolnshire Council,http://statistics.data.gov.uk/id/local-authority/00FC),Children & Family Services,Ass Dir - Children & Families,Head Of Child Resource & Reg,Other Agencies,Child Care Payments,PJ104,07/07/2020,812128,319,REVENUE,REDACTED PERSONAL INFORMATION,REDACTED PERSONAL INFORMATION
North East Lincolnshire Council,http://statistics.data.gov.uk/id/local-authority/00FC),Children & Family Services,Ass Dir - Children & Families,Head Of Child Resource & Reg,Other Agencies,Child Care Payments,PJ104,21/07/2020,816279,319,REVENUE,REDACTED PERSONAL INFORMATION,REDACTED PERSONAL INFORMATION
North East Lincolnshire Council,http://statistics.data.gov.uk/id/local-authority/00FC),Children & Family Services,Ass Dir - Children & Families,Head Of Child Resource & Reg,Other Agencies,Child Care Payments,PJ104,28/07/2020,818968,319,REVENUE,REDACTED PERSONAL INFORMATION,REDACTED PERSONAL INFORMATION
North East Lincolnshire Council,http://statistics.data.gov.uk/id/local-authority/00FC),Children & Family Services,Ass Dir - Children & Families,Head Of Child Resource & Reg,Other Agencies,Child Care Payments,PJ104,31/07/2020,820062,9000,REVENUE,REDACTED PERSONAL INFORMATION,REDACTED PERSONAL INFORMATION
North East Lincolnshire Council,http://statistics.data.gov.uk/id/local-authority/00FC),Children & Family Services,Ass Dir - Children & Families,Head Of Child Resource & Reg,Other Agencies,Child Care Payments,PJ104,31/07/2020,820061,9000,REVENUE,REDACTED PERSONAL INFORMATION,REDACTED PERSONAL INFORMATION
North East Lincolnshire Council,http://statistics.data.gov.uk/id/local-authority/00FC),Children & Family Services,Ass Dir - Children & Families,Head Of Child Resource & Reg,Other Agencies,Child Care Payments,PJ104,31/07/2020,820060,6285,REVENUE,REDACTED PERSONAL INFORMATION,REDACTED PERSONAL INFORMATION
North East Lincolnshire Council,http://statistics.data.gov.uk/id/local-authority/00FC),Children & Family Services,Ass Dir - Children & Families,Head Of Child Resource & Reg,Other Agencies,Child Care Payments,PJ104,21/07/2020,816150,380,REVENUE,REDACTED PERSONAL INFORMATION,REDACTED PERSONAL INFORMATION
North East Lincolnshire Council,http://statistics.data.gov.uk/id/local-authority/00FC),Children & Family Services,Ass Dir - Children & Families,Head Of Child Resource & Reg,Other Agencies,Child Care Payments,PJ104,28/07/2020,819281,1651.43,REVENUE,REDACTED PERSONAL INFORMATION,REDACTED PERSONAL INFORMATION
North East Lincolnshire Council,http://statistics.data.gov.uk/id/local-authority/00FC),Children & Family Services,Ass Dir - Children & Families,Head Of Child Resource & Reg,Other Agencies,Child Care Payments,PJ104,21/07/2020,816068,352,REVENUE,REDACTED PERSONAL INFORMATION,REDACTED PERSONAL INFORMATION
North East Lincolnshire Council,http://statistics.data.gov.uk/id/local-authority/00FC),Children & Family Services,Ass Dir - Children & Families,Head Of Child Resource & Reg,Other Agencies,Child Care Payments,PJ104,07/07/2020,812206,437.87,REVENUE,REDACTED PERSONAL INFORMATION,REDACTED PERSONAL INFORMATION
North East Lincolnshire Council,http://statistics.data.gov.uk/id/local-authority/00FC),Children & Family Services,Ass Dir - Children & Families,Head Of Child Resource & Reg,Other Agencies,Child Care Payments,PJ104,14/07/2020,814613,437.87,REVENUE,REDACTED PERSONAL INFORMATION,REDACTED PERSONAL INFORMATION
North East Lincolnshire Council,http://statistics.data.gov.uk/id/local-authority/00FC),Children & Family Services,Ass Dir - Children & Families,Head Of Child Resource & Reg,Other Agencies,Child Care Payments,PJ104,21/07/2020,816357,437.87,REVENUE,REDACTED PERSONAL INFORMATION,REDACTED PERSONAL INFORMATION
North East Lincolnshire Council,http://statistics.data.gov.uk/id/local-authority/00FC),Children & Family Services,Ass Dir - Children & Families,Head Of Child Resource & Reg,Other Agencies,Child Care Payments,PJ104,28/07/2020,819047,437.87,REVENUE,REDACTED PERSONAL INFORMATION,REDACTED PERSONAL INFORMATION
North East Lincolnshire Council,http://statistics.data.gov.uk/id/local-authority/00FC),Children & Family Services,Ass Dir - Children & Families,Head Of Child Resource & Reg,Other Agencies,Child Care Payments,PJ104,07/07/2020,812097,598,REVENUE,REDACTED PERSONAL INFORMATION,REDACTED PERSONAL INFORMATION
North East Lincolnshire Council,http://statistics.data.gov.uk/id/local-authority/00FC),Children & Family Services,Ass Dir - Children & Families,Head Of Child Resource & Reg,Other Agencies,Child Care Payments,PJ104,14/07/2020,814503,-468,REVENUE,REDACTED PERSONAL INFORMATION,REDACTED PERSONAL INFORMATION
North East Lincolnshire Council,http://statistics.data.gov.uk/id/local-authority/00FC),Children & Family Services,Ass Dir - Children & Families,Head Of Child Resource & Reg,Other Agencies,Child Care Payments,PJ104,07/07/2020,812097,443.57,REVENUE,REDACTED PERSONAL INFORMATION,REDACTED PERSONAL INFORMATION
North East Lincolnshire Council,http://statistics.data.gov.uk/id/local-authority/00FC),Children & Family Services,Ass Dir - Children & Families,Head Of Child Resource & Reg,Other Agencies,Child Care Payments,PJ104,14/07/2020,814503,-347.14,REVENUE,REDACTED PERSONAL INFORMATION,REDACTED PERSONAL INFORMATION
North East Lincolnshire Council,http://statistics.data.gov.uk/id/local-authority/00FC),Children & Family Services,Ass Dir - Children & Families,Head Of Child Resource & Reg,Other Agencies,Child Care Payments,PJ104,21/07/2020,816244,-501.43,REVENUE,REDACTED PERSONAL INFORMATION,REDACTED PERSONAL INFORMATION
North East Lincolnshire Council,http://statistics.data.gov.uk/id/local-authority/00FC),Children & Family Services,Ass Dir - Children & Families,Head Of Child Resource & Reg,Other Agencies,Child Care Payments,PJ104,28/07/2020,818756,546,REVENUE,REDACTED PERSONAL INFORMATION,REDACTED PERSONAL INFORMATION
North East Lincolnshire Council,http://statistics.data.gov.uk/id/local-authority/00FC),Children & Family Services,Ass Dir - Children & Families,Head Of Child Resource & Reg,Other Agencies,Child Care Payments,PJ104,07/07/2020,812419,340,REVENUE,REDACTED PERSONAL INFORMATION,REDACTED PERSONAL INFORMATION
North East Lincolnshire Council,http://statistics.data.gov.uk/id/local-authority/00FC),Children & Family Services,Ass Dir - Children & Families,Head Of Child Resource & Reg,Other Agencies,Child Care Payments,PJ104,07/07/2020,811912,546,REVENUE,REDACTED PERSONAL INFORMATION,REDACTED PERSONAL INFORMATION
North East Lincolnshire Council,http://statistics.data.gov.uk/id/local-authority/00FC),Children & Family Services,Ass Dir - Children & Families,Head Of Child Resource & Reg,Other Agencies,Child Care Payments,PJ104,14/07/2020,814399,1380,REVENUE,REDACTED PERSONAL INFORMATION,REDACTED PERSONAL INFORMATION
North East Lincolnshire Council,http://statistics.data.gov.uk/id/local-authority/00FC),Children & Family Services,Ass Dir - Children & Families,Head Of Child Resource & Reg,Other Agencies,Child Care Payments,PJ104,14/07/2020,814406,1415,REVENUE,REDACTED PERSONAL INFORMATION,REDACTED PERSONAL INFORMATION
North East Lincolnshire Council,http://statistics.data.gov.uk/id/local-authority/00FC),Children & Family Services,Ass Dir - Children & Families,Head Of Child Resource & Reg,Other Agencies,Child Care Payments,PJ104,14/07/2020,814463,1345,REVENUE,REDACTED PERSONAL INFORMATION,REDACTED PERSONAL INFORMATION
North East Lincolnshire Council,http://statistics.data.gov.uk/id/local-authority/00FC),Children & Family Services,Ass Dir - Children & Families,Head Of Child Resource & Reg,Other Agencies,Child Care Payments,PJ104,14/07/2020,814491,1035,REVENUE,REDACTED PERSONAL INFORMATION,REDACTED PERSONAL INFORMATION
North East Lincolnshire Council,http://statistics.data.gov.uk/id/local-authority/00FC),Children & Family Services,Ass Dir - Children & Families,Head Of Child Resource & Reg,Other Agencies,Child Care Payments,PJ104,14/07/2020,814496,683,REVENUE,REDACTED PERSONAL INFORMATION,REDACTED PERSONAL INFORMATION
North East Lincolnshire Council,http://statistics.data.gov.uk/id/local-authority/00FC),Children & Family Services,Ass Dir - Children & Families,Head Of Child Resource & Reg,Other Agencies,Child Care Payments,PJ104,14/07/2020,814534,683,REVENUE,REDACTED PERSONAL INFORMATION,REDACTED PERSONAL INFORMATION
North East Lincolnshire Council,http://statistics.data.gov.uk/id/local-authority/00FC),Children & Family Services,Ass Dir - Children & Families,Head Of Child Resource & Reg,Other Agencies,Child Care Payments,PJ104,14/07/2020,814573,993,REVENUE,REDACTED PERSONAL INFORMATION,REDACTED PERSONAL INFORMATION
North East Lincolnshire Council,http://statistics.data.gov.uk/id/local-authority/00FC),Children & Family Services,Ass Dir - Children & Families,Head Of Child Resource & Reg,Other Agencies,Child Care Payments,PJ104,14/07/2020,814295,1056,REVENUE,REDACTED PERSONAL INFORMATION,REDACTED PERSONAL INFORMATION
North East Lincolnshire Council,http://statistics.data.gov.uk/id/local-authority/00FC),Children & Family Services,Ass Dir - Children & Families,Head Of Child Resource & Reg,Other Agencies,Child Care Payments,PJ104,14/07/2020,814301,352,REVENUE,REDACTED PERSONAL INFORMATION,REDACTED PERSONAL INFORMATION
North East Lincolnshire Council,http://statistics.data.gov.uk/id/local-authority/00FC),Children & Family Services,Ass Dir - Children & Families,Head Of Child Resource & Reg,Other Agencies,Child Care Payments,PJ104,14/07/2020,814305,732,REVENUE,REDACTED PERSONAL INFORMATION,REDACTED PERSONAL INFORMATION
North East Lincolnshire Council,http://statistics.data.gov.uk/id/local-authority/00FC),Children & Family Services,Ass Dir - Children & Families,Head Of Child Resource & Reg,Other Agencies,Child Care Payments,PJ104,14/07/2020,814321,546,REVENUE,REDACTED PERSONAL INFORMATION,REDACTED PERSONAL INFORMATION
North East Lincolnshire Council,http://statistics.data.gov.uk/id/local-authority/00FC),Children & Family Services,Ass Dir - Children & Families,Head Of Child Resource & Reg,Other Agencies,Child Care Payments,PJ104,14/07/2020,814324,1084,REVENUE,REDACTED PERSONAL INFORMATION,REDACTED PERSONAL INFORMATION
North East Lincolnshire Council,http://statistics.data.gov.uk/id/local-authority/00FC),Children & Family Services,Ass Dir - Children & Families,Head Of Child Resource & Reg,Other Agencies,Child Care Payments,PJ104,14/07/2020,814326,1014,REVENUE,REDACTED PERSONAL INFORMATION,REDACTED PERSONAL INFORMATION
North East Lincolnshire Council,http://statistics.data.gov.uk/id/local-authority/00FC),Children & Family Services,Ass Dir - Children & Families,Head Of Child Resource & Reg,Other Agencies,Child Care Payments,PJ104,21/07/2020,816065,546,REVENUE,REDACTED PERSONAL INFORMATION,REDACTED PERSONAL INFORMATION
North East Lincolnshire Council,http://statistics.data.gov.uk/id/local-authority/00FC),Children & Family Services,Ass Dir - Children & Families,Head Of Child Resource & Reg,Other Agencies,Child Care Payments,PJ104,21/07/2020,816241,352,REVENUE,REDACTED PERSONAL INFORMATION,REDACTED PERSONAL INFORMATION
North East Lincolnshire Council,http://statistics.data.gov.uk/id/local-authority/00FC),Children & Family Services,Ass Dir - Children & Families,Head Of Child Resource & Reg,Other Agencies,Child Care Payments,PJ104,21/07/2020,816143,352,REVENUE,REDACTED PERSONAL INFORMATION,REDACTED PERSONAL INFORMATION
North East Lincolnshire Council,http://statistics.data.gov.uk/id/local-authority/00FC),Children & Family Services,Ass Dir - Children & Families,Head Of Child Resource & Reg,Other Agencies,Child Care Payments,PJ104,07/07/2020,812401,284,REVENUE,REDACTED PERSONAL INFORMATION,REDACTED PERSONAL INFORMATION
North East Lincolnshire Council,http://statistics.data.gov.uk/id/local-authority/00FC),Children & Family Services,Ass Dir - Children & Families,Head Of Child Resource & Reg,Other Agencies,Child Care Payments,PJ104,14/07/2020,814803,284,REVENUE,REDACTED PERSONAL INFORMATION,REDACTED PERSONAL INFORMATION
North East Lincolnshire Council,http://statistics.data.gov.uk/id/local-authority/00FC),Children & Family Services,Ass Dir - Children & Families,Head Of Child Resource & Reg,Other Agencies,Child Care Payments,PJ104,21/07/2020,816549,284,REVENUE,REDACTED PERSONAL INFORMATION,REDACTED PERSONAL INFORMATION
North East Lincolnshire Council,http://statistics.data.gov.uk/id/local-authority/00FC),Children & Family Services,Ass Dir - Children & Families,Head Of Child Resource & Reg,Other Agencies,Child Care Payments,PJ104,28/07/2020,819237,284,REVENUE,REDACTED PERSONAL INFORMATION,REDACTED PERSONAL INFORMATION
North East Lincolnshire Council,http://statistics.data.gov.uk/id/local-authority/00FC),Children & Family Services,Ass Dir - Children & Families,Head Of Child Resource & Reg,Other Agencies,Child Care Payments,PJ104,07/07/2020,812097,598,REVENUE,REDACTED PERSONAL INFORMATION,REDACTED PERSONAL INFORMATION
North East Lincolnshire Council,http://statistics.data.gov.uk/id/local-authority/00FC),Children & Family Services,Ass Dir - Children & Families,Head Of Child Resource & Reg,Other Agencies,Child Care Payments,PJ104,14/07/2020,814503,-468,REVENUE,REDACTED PERSONAL INFORMATION,REDACTED PERSONAL INFORMATION
North East Lincolnshire Council,http://statistics.data.gov.uk/id/local-authority/00FC),Children & Family Services,Ass Dir - Children & Families,Head Of Child Resource & Reg,Other Agencies,Child Care Payments,PJ104,07/07/2020,812097,489.57,REVENUE,REDACTED PERSONAL INFORMATION,REDACTED PERSONAL INFORMATION
North East Lincolnshire Council,http://statistics.data.gov.uk/id/local-authority/00FC),Children & Family Services,Ass Dir - Children & Families,Head Of Child Resource & Reg,Other Agencies,Child Care Payments,PJ104,14/07/2020,814503,-383.14,REVENUE,REDACTED PERSONAL INFORMATION,REDACTED PERSONAL INFORMATION
North East Lincolnshire Council,http://statistics.data.gov.uk/id/local-authority/00FC),Children & Family Services,Ass Dir - Children & Families,Head Of Child Resource & Reg,Other Agencies,Child Care Payments,PJ104,21/07/2020,816143,380,REVENUE,REDACTED PERSONAL INFORMATION,REDACTED PERSONAL INFORMATION
North East Lincolnshire Council,http://statistics.data.gov.uk/id/local-authority/00FC),Children & Family Services,Ass Dir - Children & Families,Head Of Child Resource & Reg,Other Agencies,Child Care Payments,PJ104,21/07/2020,816150,331,REVENUE,REDACTED PERSONAL INFORMATION,REDACTED PERSONAL INFORMATION
North East Lincolnshire Council,http://statistics.data.gov.uk/id/local-authority/00FC),Children & Family Services,Ass Dir - Children & Families,Head Of Child Resource & Reg,Other Agencies,Child Care Payments,PJ104,07/07/2020,812185,352,REVENUE,REDACTED PERSONAL INFORMATION,REDACTED PERSONAL INFORMATION
North East Lincolnshire Council,http://statistics.data.gov.uk/id/local-authority/00FC),Children & Family Services,Ass Dir - Children & Families,Head Of Child Resource & Reg,Other Agencies,Child Care Payments,PJ104,14/07/2020,814593,352,REVENUE,REDACTED PERSONAL INFORMATION,REDACTED PERSONAL INFORMATION
